Workbook

Sheet Ex 1 HDD
A1: Heating Degree Days | G1: Docket | I1: Dominion Energy Utah
I2: Docket No. 20-057-02
I3: IRP Variance Exhibit
A7: Month/Year | B7: Actual | C7: IRP Forecast (Normal) | F7: Actual | G7: IRP Forecast (Normal)
A8: 2020-06-01 | B8: 66 | C8: =G8 -> 37.52 | D8: =B8-C8 -> 28.48 | F8: =B8 -> 66 | G8: 37.52
A9: 2020-07-01 | B9: 0 | C9: =G9 -> 0 | D9: =B9-C9 -> 0 | F9: =B9+F8 -> 66 | G9: 0
A10: 2020-08-01 | B10: 0 | C10: 1.87 | D10: -1.87 | F10: 66 | G10: 1.87
A11: 2020-09-01 | C11: 61.41 | D11: -61.41 | F11: 66 | G11: 61.41
A12: 2020-10-01 | C12: 342.03 | D12: -342.03 | F12: 66 | G12: 342.03
A13: 2020-11-01 | C13: 711.58 | D13: -711.58 | F13: 66 | G13: 711.58
A14: 2020-12-01 | C14: 1054.69 | D14: -1054.69 | F14: 66 | G14: 1054.69
A15: 2021-01-01 | C15: 1083.33 | D15: -1083.33 | F15: 66 | G15: 1083.33
A16: 2021-02-01 | C16: 819.68 | D16: -819.68 | F16: 66 | G16: 819.68
A17: 2021-03-01 | C17: 620.3 | D17: -620.3 | F17: 66 | G17: 620.3
A18: 2021-04-01 | C18: 423.69 | D18: -423.69 | F18: 66 | G18: 423.69
A19: 2021-05-01 | C19: 196.8 | D19: -196.8 | F19: 66 | G19: 196.8
B20: =SUM(B8:B19) -> 66 | C20: =SUM(G8:G19) -> 5352.9 | D20: =SUM(D8:D19) -> -5286.9
G36: =4.08-3.28 -> 0.8 | H36: =3.86-3.59 -> 0.27

Sheet Exhibit 1.1
O31: ='Ex 1 HDD'!I3 -> IRP Variance Exhibit | P31: ='Ex 1 HDD'!I2 -> Docket No. 20-057-02 | Q31: ='Ex 1 HDD'!I1 -> Dominion Energy Utah
O32: 1.1

Sheet Exhibit 1.2
O31: ='Ex 1 HDD'!I3 -> IRP Variance Exhibit | P31: ='Ex 1 HDD'!I2 -> Docket No. 20-057-02 | Q31: ='Ex 1 HDD'!I1 -> Dominion Energy Utah
O32: 1.2

Sheet Exhibit 1.3
O31: ='Ex 1 HDD'!I3 -> IRP Variance Exhibit | P31: ='Ex 1 HDD'!I2 -> Docket No. 20-057-02 | Q31: ='Ex 1 HDD'!I1 -> Dominion Energy Utah
O32: 1.3

Sheet Ex 2 Clay Basin
A1: Clay Basin Ending Inventory (MDths)
M5: Plan Year 1 | N5: 1106
K6: Month/Year | L6: Month | M6: Inj | N6: With | O6: Total
A7: Month/Year | B7: Actual | C7: IRP Forecast (Normal) | E7: Actual | F7: Actual/1000 | H7: Actual | I7: Normal | O7: 3690
A8: ='Ex 1 HDD'!$A$8 -> 2020-06-01 | B8: =F8 -> 5206.814 | C8: =O8 -> 5441.2 | D8: =B8-C8 -> -234.386 | E8: 5206814 | F8: =E8/1000 -> 5206.814 | H8: =F8 -> 5206.814 | I8: =C8 -> 5441.2 | K8: =A8 -> 2020-06-01 | L8: =O7 -> 3690 | M8: 1751.2 | N8: 0 | O8: =L8+M8-N8 -> 5441.2 | Q8: 123.428 | S8: =M8/30 -> 58.37333333 | U8: =(M8-N8)/30 -> 58.37333333
A9: ='Ex 1 HDD'!$A$9 -> 2020-07-01 | B9: =F9 -> 7129.464 | C9: =O9 -> 7662.1 | D9: -532.636 | E9: 7129464 | F9: =E9/1000 -> 7129.464 | H9: =H8+F9 -> 12336.278 | I9: =C9+I8 -> 13103.3 | K9: =A9 -> 2020-07-01 | L9: =O8 -> 5441.2 | M9: 2220.9 | N9: 0 | O9: 7662.1 | Q9: 66.7795 | S9: =M9/31 -> 71.64193548 | U9: =(M9-N9)/31 -> 71.64193548
A10: ='Ex 1 HDD'!$A$10 -> 2020-08-01 | B10: 8625.529 | C10: 9769.1 | D10: -1143.571 | E10: 8625529 | F10: 8625.529 | H10: =H9+F10 -> 20961.807 | I10: 22872.4 | K10: 2020-08-01 | L10: =O9 -> 7662.1 | M10: 2107 | N10: 0 | O10: 9769.1 | Q10: 19.9656 | S10: =M10/31 -> 67.96774194 | U10: =(M10-N10)/31 -> 67.96774194
A11: ='Ex 1 HDD'!$A$11 -> 2020-09-01 | C11: 12169.1 | D11: -12169.1 | F11: 0 | H11: 20961.807 | I11: =C11+I10 -> 35041.5 | K11: 2020-09-01 | L11: 9769.1 | M11: 2400 | N11: 0 | O11: 12169.1 | Q11: 0 | S11: 77.41935484 | U11: 77.41935484
A12: ='Ex 1 HDD'!$A12 -> 2020-10-01 | C12: 12998.9 | D12: -12998.9 | F12: 0 | H12: 20961.807 | I12: 48040.4 | K12: 2020-10-01 | L12: 12169.1 | M12: 829.8 | N12: 0 | O12: 12998.9 | Q12: 0 | S12: 26.76774194 | U12: 26.76774194
A13: ='Ex 1 HDD'!$A13 -> 2020-11-01 | C13: 12998.9 | D13: -12998.9 | F13: 0 | H13: 20961.807 | I13: 61039.3 | K13: 2020-11-01 | L13: 12998.9 | M13: 0 | N13: 0 | O13: 12998.9 | Q13: 0 | S13: 0 | U13: 0
A14: ='Ex 1 HDD'!$A14 -> 2020-12-01 | C14: 12998.9 | D14: -12998.9 | F14: 0 | H14: 20961.807 | I14: 74038.2 | K14: 2020-12-01 | L14: 12998.9 | M14: 0 | N14: 0 | O14: 12998.9 | Q14: 3417.48 | S14: 0 | U14: 0
A15: ='Ex 1 HDD'!$A15 -> 2021-01-01 | C15: =O15 -> 8901.9 | D15: -8901.9 | F15: 0 | H15: 20961.807 | I15: 82940.1 | K15: 2021-01-01 | L15: 12998.9 | M15: 0 | N15: 4097 | O15: 8901.9 | Q15: 5311.68 | S15: 0 | U15: -132.1612903
A16: ='Ex 1 HDD'!$A16 -> 2021-02-01 | C16: =O16 -> 5794.5 | D16: -5794.5 | F16: 0 | H16: 20961.807 | I16: 88734.6 | K16: 2021-02-01 | L16: 8901.9 | M16: 0 | N16: 3107.4 | O16: 5794.5 | Q16: 3252.24 | S16: 0 | U16: -100.2387097
A17: ='Ex 1 HDD'!$A17 -> 2021-03-01 | C17: =O17 -> 2389.6 | F17: 0 | H17: 20961.807 | I17: 91124.2 | K17: 2021-03-01 | L17: 5794.5 | M17: 0 | N17: 3404.9 | O17: 2389.6 | Q17: 0 | S17: 0 | U17: -109.8354839
A18: ='Ex 1 HDD'!$A18 -> 2021-04-01 | C18: =O18 -> 519 | F18: 0 | H18: 20961.807 | I18: 91643.2 | K18: 2021-04-01 | L18: 2389.6 | M18: 0 | N18: 1870.6 | O18: 519 | Q18: 0 | S18: 0 | U18: -60.34193548
A19: ='Ex 1 HDD'!$A19 -> 2021-05-01 | C19: =O19 -> 519 | F19: 0 | H19: 20961.807 | I19: 92162.2 | K19: 2021-05-01 | L19: 519 | M19: 0 | N19: 0 | O19: 519 | Q19: 0 | S19: 0 | U19: 0
M21: =SUM(M8:M19) -> 9308.9 | N21: =SUM(N8:N19) -> 12479.9 | O21: =SUM(N8:N19) -> 12479.9
J25: =O15 -> 8901.9 | M25: =M18/30 -> 0
H26: 1 | I26: =N16/29 -> 107.1517241 | J26: =J25-$I$26 -> 8794.748276 | M26: 0.4444444444 | N26: =M8*$M$26 -> 778.3111111 | O26: =M8*$M$27 -> 486.4444444 | P26: =O26 -> 486.4444444
H27: 2 | J27: =J26-$I$26 -> 8687.596552 | M27: 0.2777777778 | N27: =M9*$M$26 -> 987.0666667 | O27: =M9*$M$27 -> 616.9166667 | P27: =O27 -> 616.9166667
H28: 3 | J28: 8580.444828 | M28: 0.2777777778 | N28: 936.4444444 | O28: 585.2777778 | P28: 585.2777778
H29: 4 | J29: 8473.293103 | N29: 1066.666667 | O29: 666.6666667 | P29: 666.6666667
H30: 5 | J30: 8366.141379 | N30: 368.8 | O30: 230.5 | P30: 230.5
H31: 6 | J31: 8258.989655 | N31: 0 | O31: 0 | P31: 0
H32: 7 | J32: 8151.837931 | N32: 0 | O32: 0 | P32: 0
H33: 8 | J33: 8044.686207
H34: 9 | J34: 7937.534483
H35: 10 | J35: 7830.382759
H36: 11 | J36: 7723.231034
H37: 12 | J37: 7616.07931
H38: 13 | J38: 7508.927586
H39: 14 | J39: 7401.775862
H40: 15 | J40: 7294.624138
H41: 16 | J41: =J40-$I$26 -> 7187.472414
H42: 17 | J42: 7080.32069
B43: 5626242 | C43: 8026685 | D43: 10622439 | E43: 12607382 | H43: 18 | J43: 6973.168966
E44: 12434437 | H44: 19 | J44: 6866.017241
E45: 10491542 | H45: 20 | J45: 6758.865517
H46: 21 | J46: 6651.713793
H47: 22 | J47: 6544.562069
H48: 23 | J48: 6437.410345
B49: 13419 | H49: 24 | J49: 6330.258621
B50: 0.2276 | H50: 25 | J50: 6223.106897
B51: =B49*B50 -> 3054.1644 | H51: 26 | J51: 6115.955172
H52: 27 | J52: 6008.803448
H53: 28 | J53: 5901.651724
H54: 29 | J54: 5794.5
H55: 30
F58: June | G58: July | H58: August | I58: September | J58: October | K58: November | L58: December | M58: January | N58: February | O58: March | P58: April | Q58: May
F59: 4587175 | G59: 7350188 | H59: 10347695 | I59: 12594397 | J59: 12186418 | K59: =E13 -> 0 | L59: =E14 -> 0 | M59: =E15 -> 0 | N59: =E16 -> 0
E60: 0.4444444 | F60: =$E60*F$59/1000 -> 2038.744241 | G60: =$E60*G$59/1000 -> 3266.749896 | H60: 4598.975096 | I60: 5597.509218 | J60: 5416.185236 | K60: 0 | L60: 0 | M60: 0 | N60: 0
E61: 0.2777778 | F61: =$E61*F$59/1000 -> 1274.21538 | G61: 2041.719052 | H61: 2874.359952 | I61: 3498.443891 | J61: 3385.116382 | K61: 0 | L61: 0 | M61: 0 | N61: 0
E62: 0.2777778 | F62: 1274.21538 | G62: 2041.719052 | H62: 2874.359952 | I62: 3498.443891 | J62: 3385.116382 | K62: 0 | L62: 0 | M62: 0 | N62: 0
E63: =SUM(E60:E62) -> 1 | F63: =SUM(F60:F62) -> 4587.175 | G63: =SUM(G60:G62) -> 7350.188 | H63: 10347.695 | I63: 12594.397 | J63: 12186.418 | K63: 0 | L63: 0 | M63: 0 | N63: 0
F65: 13419
F66: =F60/$F$65 -> 0.1519296699 | G66: 0.2434421265 | H66: 0.3427211488 | I66: 0.4171331111 | J66: 0.4036206302 | K66: 0 | L66: 0 | M66: 0 | N66: 0
F67: =F61/$F$65 -> 0.09495606079 | G67: 0.1521513565 | H67: 0.2142007566 | I67: 0.2607082414 | J67: 0.2522629393 | K67: 0 | L67: 0 | M67: 0 | N67: 0
F68: =F62/$F$65 -> 0.09495606079 | G68: 0.1521513565 | H68: 0.2142007566 | I68: 0.2607082414 | J68: 0.2522629393 | K68: 0 | L68: 0 | M68: 0 | N68: 0
F69: =F63/$F$65 -> 0.3418417915 | G69: 0.5477448394 | H69: 0.7711226619 | I69: 0.9385495939 | J69: 0.9081465087 | K69: 0 | L69: 0 | M69: 0 | N69: 0
F72: 13419
F73: =F60/$F$65*100 -> 15.19296699 | G73: =G60/$F$65*100 -> 24.34421265 | H73: 34.27211488 | I73: 41.71331111 | J73: 40.36206302 | K73: 0 | L73: 0 | M73: 0 | N73: 0
F74: =F61/$F$65*100 -> 9.495606079 | G74: 15.21513565 | H74: 21.42007566 | I74: 26.07082414 | J74: 25.22629393 | K74: 0 | L74: 0 | M74: 0 | N74: 0
F75: =F62/$F$65*100 -> 9.495606079 | G75: 15.21513565 | H75: 21.42007566 | I75: 26.07082414 | J75: 25.22629393 | K75: 0 | L75: 0 | M75: 0 | N75: 0
F76: =F70/$F$65 -> 0 | G76: 0 | H76: 0 | I76: 0 | J76: 0 | K76: 0 | L76: 0 | M76: 0 | N76: 0

Sheet Ex 2 Aquifers
A1: Total Aquifer Storage Ending Inventory (MDths)
O4: 1082 | P4: 1106
H6: 1.055 | M6: Month/Year | N6: Month | O6: Inj | P6: With | Q6: Total
A7: Month/Year | B7: Actual | C7: IRP Forecast (Normal) | E7: Actual | F7: IRP Forecast (Normal) | H7: MCF | I7: DTH | J7: MDTH | Q7: 804 | U7: 497.538
A8: ='Ex 1 HDD'!$A$8 -> 2020-06-01 | B8: =J8 -> 735.704 | C8: =Q8 -> 804 | D8: =B8-C8 -> -68.296 | E8: =B8 -> 735.704 | F8: =C8 -> 804 | H8: =I8/$H$6 -> 697349.763 | I8: 735704 | J8: =I8/1000 -> 735.704 | M8: =A8 -> 2020-06-01 | N8: =Q7 -> 804 | O8: 0 | P8: 0 | Q8: =N8+O8-P8 -> 804 | U8: 365
A9: ='Ex 1 HDD'!$A$9 -> 2020-07-01 | B9: =J9 -> 735.704 | C9: =Q9 -> 804 | D9: =B9-C9 -> -68.296 | E9: =B9+E8 -> 1471.408 | F9: =C9+F8 -> 1608 | H9: =I9/$H$6 -> 697349.763 | I9: 735704 | J9: =I9/1000 -> 735.704 | M9: =A9 -> 2020-07-01 | N9: =Q8 -> 804 | O9: 0 | P9: 0 | Q9: =N9+O9-P9 -> 804 | U9: 12
A10: ='Ex 1 HDD'!$A$10 -> 2020-08-01 | B10: 732.596 | C10: 804 | D10: =B10-C10 -> -71.404 | E10: =B10+E9 -> 2204.004 | F10: =C10+F9 -> 2412 | H10: 694403.7915 | I10: 732596 | J10: 732.596 | M10: 2020-08-01 | N10: =Q9 -> 804 | O10: 0 | P10: 0 | Q10: 804 | U10: =SUM(U7:U9) -> 874.538
A11: ='Ex 1 HDD'!$A$11 -> 2020-09-01 | C11: 1224 | D11: =B11-C11 -> -1224 | E11: =B11+E10 -> 2204.004 | F11: 3636 | H11: 0 | J11: 0 | M11: 2020-09-01 | N11: 804 | O11: 420 | P11: 0 | Q11: =N11+O11-P11 -> 1224
A12: ='Ex 1 HDD'!$A12 -> 2020-10-01 | C12: 1807.368 | D12: -1807.368 | E12: =B12+E11 -> 2204.004 | F12: 5443.368 | H12: 0 | J12: 0 | M12: 2020-10-01 | N12: 1224 | O12: 583.368 | P12: 0 | Q12: =N12+O12-P12 -> 1807.368
A13: ='Ex 1 HDD'!$A13 -> 2020-11-01 | C13: 1927.368 | D13: -1927.368 | E13: 2204.004 | F13: 7370.736 | H13: 0 | J13: 0 | M13: 2020-11-01 | N13: 1807.368 | O13: 120 | P13: 0 | Q13: =N13+O13-P13 -> 1927.368
A14: ='Ex 1 HDD'!$A14 -> 2020-12-01 | C14: 1928.368 | D14: -1928.368 | E14: 2204.004 | F14: 9299.104 | H14: =I14/$H$6 -> 0 | J14: 0 | M14: 2020-12-01 | N14: 1927.368 | O14: 1 | P14: 0 | Q14: =N14+O14-P14 -> 1928.368
A15: ='Ex 1 HDD'!$A15 -> 2021-01-01 | C15: 1928.368 | D15: -1928.368 | E15: 2204.004 | F15: 11227.472 | H15: 0 | J15: 0 | M15: 2021-01-01 | N15: 1928.368 | O15: 0 | P15: 0 | Q15: 1928.368
A16: ='Ex 1 HDD'!$A16 -> 2021-02-01 | C16: 1748.528 | D16: -1748.528 | E16: 2204.004 | F16: 12976 | H16: 0 | J16: =I16/1000 -> 0 | M16: 2021-02-01 | N16: 1928.368 | O16: 0 | P16: 179.84 | Q16: 1748.528
A17: ='Ex 1 HDD'!$A17 -> 2021-03-01 | C17: 869.025 | D17: -869.025 | E17: 2204.004 | F17: 13845.025 | H17: 0 | J17: =I17/1000 -> 0 | M17: 2021-03-01 | N17: 1748.528 | O17: 0 | P17: 879.503 | Q17: 869.025
A18: ='Ex 1 HDD'!$A18 -> 2021-04-01 | C18: 828.98 | D18: -828.98 | E18: 2204.004 | F18: 14674.005 | H18: 0 | J18: =I18/1000 -> 0 | M18: 2021-04-01 | N18: 869.025 | O18: 0 | P18: 40.045 | Q18: 828.98
A19: ='Ex 1 HDD'!$A19 -> 2021-05-01 | C19: 828.98 | D19: -828.98 | E19: 2204.004 | F19: 15502.985 | H19: 0 | J19: =I19/1000 -> 0 | M19: 2021-05-01 | N19: 828.98 | O19: 0 | P19: 0 | Q19: 828.98
O20: =SUM(O8:O19) -> 1124.368 | P20: =SUM(P8:P19) -> 1099.388
B22: =SUM(B14:B16) -> 0 | C22: =SUM(C14:C16) -> 5605.264 | H22: 5 | I22: =H22*$H$6 -> 5.275 | O22: Inj | P22: With
H23: 6 | I23: =H23*$H$6 -> 6.33 | O23: 0 | P23: 0
H24: 7 | I24: =H24*$H$6 -> 7.385 | O24: 0 | P24: 0
H25: 8 | I25: =H25*$H$6 -> 8.44 | O25: 0 | P25: 0
O26: 0 | P26: 0
O27: 154.246 | P27: 0
O28: 0 | P28: 0
O29: 0 | P29: 331.744
O30: 0 | P30: 238.151
O31: 0 | P31: 0
O32: 0 | P32: 0
O33: 0 | P33: 0
O34: 0 | P34: 0
O35: 154.246 | P35: 569.895
A36: chalk | B36: 252153 | C36: 252153 | H36: Second | J36: First
A37: coal | B37: 648967 | C37: 648967 | H37: 1761005.049 | J37: 1761005.049
A38: leroy | B38: 774377 | C38: 774377 | H38: 1423780.049 | J38: 1423780.049
B39: =SUM(B36:B38) -> 1675497 | C39: =SUM(C36:C38) -> 1675497 | H39: 851240.0486 | J39: 851240.0486
H40: 1009513.049 | J40: 1009513.049
H41: 750042.0486 | J41: 750042.0486
F42: June | H42: 741193.0486 | J42: 741193.0486
F43: July | H43: 742210.0486 | J43: 742210.0486
F44: August | H44: 733274.0486 | J44: 733274.0486
F45: September | H45: 779680.0486 | J45: 824078.0486 | L45: =J45-H45 -> 44398
F46: October | H46: 1488952.049 | J46: 1533352.049 | L46: =J46-H46 -> 44400
F47: November | H47: 1625943.049 | J47: 1681681.049 | L47: =J47-H47 -> 55738
F48: December | H48: 1627170.049

Sheet Ex 2 Spire Storage West
O5: 1082 | P5: 1106
H6: 1000 | N6: Month | O6: Inj | P6: With | Q6: Total
A7: ='Ex 1 HDD'!A7 -> Month/Year | B7: Actual | C7: IRP Forecast (Normal) | D7: Days | E7: Daily Demand | G7: Actual Dth | H7: MDth | J7: Actual | K7: IRP Forecast (Normal) | Q7: 731
A8: ='Ex 1 HDD'!A8 -> 2020-06-01 | B8: =H8 -> 843.033 | C8: =Q8 -> 1072.73 | D8: =DAY(EOMONTH(A8,0)) -> 30 | E8: =C8/D8 -> 35.75766667 | G8: 843033 | H8: =G8/$H$6 -> 843.033 | J8: 949.736 | K8: =C8 -> 1072.73 | M8: =A8 -> 2020-06-01 | N8: =Q7 -> 731 | O8: 341.73 | P8: 0 | Q8: =N8+O8-P8 -> 1072.73
A9: ='Ex 1 HDD'!A9 -> 2020-07-01 | B9: =H9 -> 1195.162 | C9: =Q9 -> 1425.85 | D9: =DAY(EOMONTH(A9,0)) -> 31 | E9: =C9/D9 -> 45.99516129 | G9: 1195162 | H9: =G9/$H$6 -> 1195.162 | J9: =B9+J8 -> 2144.898 | K9: =C9+K8 -> 2498.58 | M9: =A9 -> 2020-07-01 | N9: =Q8 -> 1072.73 | O9: 353.12 | P9: 0 | Q9: 1425.85
A10: ='Ex 1 HDD'!A10 -> 2020-08-01 | B10: =H10 -> 1547.291 | C10: 1778.97 | D10: 31 | E10: 57.38612903 | G10: 1547291 | H10: 1547.291 | J10: 3692.189 | K10: 4277.55 | M10: 2020-08-01 | N10: =Q9 -> 1425.85 | O10: 353.12 | P10: 0 | Q10: 1778.97
A11: ='Ex 1 HDD'!A11 -> 2020-09-01 | B11: =H11 -> 0 | C11: 2120.7 | D11: 30 | E11: 70.69 | H11: 0 | J11: 3692.189 | K11: 6398.25 | M11: 2020-09-01 | N11: 1778.97 | O11: 341.73 | P11: 0 | Q11: 2120.7
A12: ='Ex 1 HDD'!A12 -> 2020-10-01 | B12: 0 | C12: 2473.819 | D12: 31 | E12: 79.8006129 | H12: 0 | J12: 3692.189 | K12: 8872.069 | M12: 2020-10-01 | N12: 2120.7 | O12: 353.119 | P12: 0 | Q12: 2473.819
A13: ='Ex 1 HDD'!A13 -> 2020-11-01 | B13: 0 | C13: 2511.007 | D13: 30 | E13: 83.70023333 | H13: 0 | J13: 3692.189 | K13: 11383.076 | M13: 2020-11-01 | N13: 2473.819 | O13: 37.188 | P13: 0 | Q13: 2511.007
A14: ='Ex 1 HDD'!A14 -> 2020-12-01 | B14: 0 | C14: 2003.007 | D14: 31 | E14: 64.61312903 | H14: 0 | J14: 3692.189 | K14: 13386.083 | M14: 2020-12-01 | N14: 2511.007 | O14: 0 | P14: 508 | Q14: 2003.007
A15: ='Ex 1 HDD'!A15 -> 2021-01-01 | B15: 0 | C15: 1488.407 | D15: 31 | E15: 48.01312903 | H15: 0 | J15: 3692.189 | K15: 14874.49 | M15: 2021-01-01 | N15: 2003.007 | O15: 0 | P15: 514.6 | Q15: 1488.407
A16: ='Ex 1 HDD'!A16 -> 2021-02-01 | B16: 0 | C16: 1023.607 | D16: 28 | E16: 36.55739286 | H16: 0 | J16: 3692.189 | K16: 15898.097 | M16: 2021-02-01 | N16: 1488.407 | O16: 0 | P16: 464.8 | Q16: 1023.607
A17: ='Ex 1 HDD'!A17 -> 2021-03-01 | B17: =G17 -> 0 | C17: 509.007 | D17: 31 | E17: 16.41958065 | H17: 0 | J17: 3692.189 | K17: 16407.104 | M17: 2021-03-01 | N17: 1023.607 | O17: 0 | P17: 514.6 | Q17: 509.007
A18: ='Ex 1 HDD'!A18 -> 2021-04-01 | B18: 0 | C18: 11.007 | D18: 30 | E18: 0.3669 | H18: 0 | J18: 3692.189 | K18: 16418.111 | M18: 2021-04-01 | N18: 509.007 | O18: 0 | P18: 498 | Q18: 11.007
A19: ='Ex 1 HDD'!A19 -> 2021-05-01 | B19: 0 | C19: 11.007 | D19: 31 | E19: 0.3550645161 | H19: 0 | J19: 3692.189 | K19: 16429.118 | M19: 2021-05-01 | N19: 11.007 | O19: 0 | P19: 0 | Q19: 11.007
O21: =SUM(O8:O20) -> 1780.007 | P21: =SUM(O8:O19) -> 1780.007 | Q21: =SUM(P8:P19) -> 2500

Sheet Exhibit 2.1
O31: ='Exhibit 1.1'!O31 -> IRP Variance Exhibit | P31: ='Exhibit 1.1'!P31 -> Docket No. 20-057-02 | Q31: ='Exhibit 1.1'!Q31 -> Dominion Energy Utah
O32: 2.1

Sheet Exhibit 2.2
O31: ='Exhibit 1.1'!O31 -> IRP Variance Exhibit | P31: ='Exhibit 1.1'!P31 -> Docket No. 20-057-02 | Q31: ='Exhibit 1.1'!Q31 -> Dominion Energy Utah
O32: 2.2

Sheet Exhibit 2.3
O31: ='Exhibit 1.1'!O31 -> IRP Variance Exhibit | P31: ='Exhibit 1.1'!P31 -> Docket No. 20-057-02 | Q31: ='Exhibit 1.1'!Q31 -> Dominion Energy Utah
O32: 2.3

Sheet Exhibit 2.4
O31: ='Exhibit 1.1'!O31 -> IRP Variance Exhibit | P31: ='Exhibit 1.1'!P31 -> Docket No. 20-057-02 | Q31: ='Exhibit 1.1'!Q31 -> Dominion Energy Utah
O32: 2.4

Sheet Exhibit 2.5
O31: ='Exhibit 1.1'!O31 -> IRP Variance Exhibit | P31: ='Exhibit 1.1'!P31 -> Docket No. 20-057-02 | Q31: ='Exhibit 1.1'!Q31 -> Dominion Energy Utah
O32: 2.5

Sheet Exhibit 2.6
O31: ='Exhibit 1.1'!O31 -> IRP Variance Exhibit | P31: ='Exhibit 1.1'!P31 -> Docket No. 20-057-02 | Q31: ='Exhibit 1.1'!Q31 -> Dominion Energy Utah
O32: 2.6

Sheet Exhibit Firm Sales Volume
A1: Demand
H6: Cumulative
A7: ='Ex 1 HDD'!A7 -> Month/Year | B7: Actual | C7: IRP Forecast (Normal) | D7: Days | E7: Daily Demand | H7: Actual | I7: IRP Forecast (Normal)
A8: ='Ex 1 HDD'!A8 -> 2020-06-01 | B8: 3122.233819 | C8: 3089.289 | D8: =DAY(EOMONTH(A8,0)) -> 30 | E8: =C8/D8 -> 102.9763 | H8: =B8 -> 3122.233819 | I8: =C8 -> 3089.289
A9: ='Ex 1 HDD'!A9 -> 2020-07-01 | B9: 2480.625529 | C9: 2596.671 | D9: =DAY(EOMONTH(A9,0)) -> 31 | E9: =C9/D9 -> 83.76358065 | H9: =H8+B9 -> 5602.859348 | I9: =I8+C9 -> 5685.96
A10: ='Ex 1 HDD'!A10 -> 2020-08-01 | B10: 2519.782456 | C10: 2533.417 | D10: 31 | E10: 81.72312903 | H10: =H9+B10 -> 8122.641804 | I10: =I9+C10 -> 8219.377
A11: ='Ex 1 HDD'!A11 -> 2020-09-01 | C11: 2852.178 | D11: 30 | E11: 95.0726 | H11: 8122.641804 | I11: 11071.555
A12: ='Ex 1 HDD'!A12 -> 2020-10-01 | C12: 6368.419 | D12: 31 | E12: 205.432871 | H12: 8122.641804 | I12: 17439.974
A13: ='Ex 1 HDD'!A13 -> 2020-11-01 | C13: 12327.492 | D13: 30 | E13: 410.9164 | H13: 8122.641804 | I13: 29767.466
A14: ='Ex 1 HDD'!A14 -> 2020-12-01 | C14: 19164.224 | D14: 31 | E14: 618.2007742 | H14: 8122.641804 | I14: 48931.69
A15: ='Ex 1 HDD'!A15 -> 2021-01-01 | C15: 20907.78 | D15: 31 | E15: 674.4445161 | H15: 8122.641804 | I15: 69839.47
A16: ='Ex 1 HDD'!A16 -> 2021-02-01 | C16: 17279.181 | D16: 28 | E16: 617.1136071 | H16: 8122.641804 | I16: 87118.651
A17: ='Ex 1 HDD'!A17 -> 2021-03-01 | C17: 13570.139 | D17: 31 | E17: 437.7464194 | H17: 8122.641804 | I17: 100688.79
A18: ='Ex 1 HDD'!A18 -> 2021-04-01 | C18: 9629.358 | D18: 30 | E18: 320.9786 | H18: 8122.641804 | I18: 110318.148
A19: ='Ex 1 HDD'!A19 -> 2021-05-01 | C19: 5601.264 | D19: 31 | E19: 180.6859355 | H19: 8122.641804 | I19: 115919.412
C20: =SUM(C8:C19) -> 115919.412

Sheet Exhibit 3.1
O31: DEU Variance Exhibit | P31: Docket No. 20-057-02 | Q31: Dominion Energy Utah
O32: 3.1

Sheet Exhibit 3.2
O31: DEU Variance Exhibit | P31: Docket No. 20-057-02 | Q31: Dominion Energy Utah
O32: 3.2

Sheet Exhibit 3.3
O31: DEU Variance Exhibit | P31: Docket No. 20-057-02 | Q31: Dominion Energy Utah
O32: 3.3

Sheet Exhibit 3.4
H1: Dominion Energy Utah
H2: Docket No. 20-057-02
H3: DEU Variance Exhibit 3.4
B6: IRP Variance
B8: Actual Results
C9: 2020-06-01 | E9: 2020-07-02 | G9: 2020-08-02
B10: SUPPLY | C10: Actual | D10: IRP | E10: Actual | F10: IRP | G10: Actual | H10: IRP
A11: 1 | B11: Cost of Service Prod (Mbtu) | C11: 5335 | D11: 5236.581024 | E11: 5132 | F11: 5317.76784 | G11: 4998 | H11: 5231.749093
A12: =A11+1 -> 2 | B12: Purchases (Mbtu) | C12: 390 | D12: 0 | E12: 55 | F12: 0 | G12: 0 | H12: 0
A13: 3 | B13: Clay Basin With (Mbtu) | C13: 49.711 | D13: 0 | E13: 0 | F13: 0 | G13: 0 | H13: 0
A14: 4 | B14: Acquifers With (Mbtu) | C14: 3.651 | D14: 0 | E14: 0.093 | F14: 0 | G14: 3.64 | H14: 0
A15: 5 | B15: Spire Storage West With (Mbtu) | C15: 0 | D15: 0 | E15: 0 | F15: 0 | G15: 0 | H15: 0
A16: 6 | B16: Off-System | C16: 26.64859 | D16: 42.04508686 | E16: 30.32165 | F16: 43.21867275 | G16: 27.23765 | H16: 42.96226501
A18: =A16+1 -> 7 | B18: Total Supply | C18: 5805.01059 | D18: 5278.626111 | E18: 5217.41465 | F18: 5360.986513 | G18: 5028.87765 | H18: 5274.711358
B20: DEMAND
A21: =A18+1 -> 8 | B21: Firm Sales (Mbtu) | C21: 3122.233819 | D21: 2912.532034 | E21: 2480.625529 | F21: 2511.784635 | G21: 2519.782456 | H21: 2542.897652
A22: =A21+1 -> 9 | B22: Interruptible Sales (Mbtu) | C22: 16.152801 | D22: 11.92412431 | E22: 17.515459 | F22: 11.52213335 | G22: 16.178793 | H22: 11.54599127
A23: 10 | B23: Clay Basin Inj (Mbtu) | C23: 1882.215 | D23: 1751.233 | E23: 1950.511 | F23: 2220.875 | G23: 1496.069 | H23: 2107.068
A24: =A23+1 -> 11 | B24: Acquifers Inj (Mbtu) | C24: 24.497 | D24: 0 | E24: 0.146 | F24: 0 | G24: 1.855 | H24: 0
A25: =A24+1 -> 12 | B25: Spire Storage West Inj (Mbtu) | C25: 340.77 | D25: 341.728 | E25: 352.129 | F25: 353.119 | G25: 352.129 | H25: 353.119
A26: 13 | B26: Off-System | C26: 26.64859 | D26: 38.88750076 | E26: 30.32165 | F26: 39.97294998 | G26: 27.23765 | H26: 39.7358017
A27: 14 | B27: Fuel | C27: 74.68876 | D27: 205.798 | E27: 75.786 | F27: 209.457 | G27: 81.749 | H27: 205.913
A28: 15 | B28: Company Use / L&U | C28: 317.42672 | D28: 16.52317695 | E28: 310.62868 | F28: 14.25668272 | G28: 533.59368 | H28: 14.43260568
A30: =A28+1 -> 16 | B30: Total Demand | C30: 5804.63269 | D30: 5278.625836 | E30: 5217.663318 | F30: 5360.987401 | G30: 5028.594579 | H30: 5274.712051
A32: =A30+1 -> 17 | B32: Clay Basin Fuel Usage Adjustment | C32: -0.007 | D32: 0 | E32: -0.01 | F32: 0 | G32: -0.004 | H32: 0
A33: =A32+1 -> 18 | B33: Clay Basin Transfers | C33: 0 | D33: 0 | E33: -27.851 | F33: 0 | G33: 0 | H33: 0
A34: =A33+1 -> 19 | B34: Acquifers Fuel Usage Adjustment | C34: -1.317 | D34: 0 | E34: -0.624 | F34: 0 | G34: -0.752 | H34: 0
A35: =A34+1 -> 20 | B35: Acquifers Transfers | C35: 0 | D35: 0 | E35: 0 | F35: 0 | G35: 0 | H35: 0
A36: 21 | B36: Clay Basin Current Bal | C36: 5206.814 | D36: 3956.260804 | E36: 7129.464 | F36: 6124.620362 | G36: 8625.529 | H36: 8712.347291
A37: 22 | B37: Acquifers Current Bal | C37: 735.704 | D37: 799 | E37: 735.133 | F37: 799 | G37: 732.596 | H37: 799
A38: 23 | B38: Spire Storage West Current Bal | C38: 843.033 | D38: 952 | E38: 1195.162 | F38: 1302 | G38: 1547.291 | H38: 1658
A40: =+A38+1 -> 24 | B40: Purchases($/Dth) | C40: 1.45 | D40: 0 | E40: 1.36 | F40: 0 | G40: 0 | H40: 0
A41: =A40+1 -> 25 | B41: Purchases $ (000) | C41: 565.5 | D41: 0 | E41: 74.8 | F41: 0 | G41: 0 | H41: 0
B44: Variances | C44: 98.41897628 | D44: 0 | E44: 0 | F44: 0 | G44: 0 | H44: 0
A45: =A41+1 -> 26 | B45: Cost of service volumes | C45: 390 | D45: 0 | E45: 55 | F45: 0 | G45: 0 | H45: 0
A46: =A45+1 -> 27 | B46: Purchase volumes | C46: 565.5 | D46: 0 | E46: 74.8 | F46: 0 | G46: 0 | H46: 0
A47: 28 | B47: Purchase $ Act over (under) IRP | C47: 0 | D47: 0 | E47: 0 | F47: 0 | G47: 0 | H47: 0
A48: 29 | B48: Purchase Variance | C48: 565.5 | D48: 0 | E48: 74.8 | F48: 0 | G48: 0 | H48: 0
A49: 30 | B49: $ Variance | C49: 0 | D49: 0 | E49: 0 | F49: 0 | G49: 0 | H49: 0
A50: 31 | B50: Check | G50: 640.3
A51: 32 | B51: Quarter Variance | G51: 0
A52: 33 | B52: Purchase Variance | G52: 640.3
A53: 34 | B53: $ Variance | G53: 0
A54: 35 | B54: Check

Sheet Ex 4 Purchase Gas
A1: Purchase Gas Variance (Brady Included) MDths
G6: Cumulative
A7: Month/Year | B7: Actual | C7: IRP Forecast (Normal) | E7: Month/Year | F7: Actual | G7: IRP Forecast (Normal) | I7: Month/Year | J7: DTHS | K7: MDTHS | L7: $'S | M7: $1,000'S
A8: ='Ex 1 HDD'!A8 -> 2020-06-01 | B8: =K8 -> 390 | C8: 0 | E8: =A8 -> 2020-06-01 | F8: =K8 -> 390 | G8: =C8 -> 0 | I8: =A8 -> 2020-06-01 | J8: 390000 | K8: =J8/1000 -> 390 | L8: 565650 | M8: =L8/1000 -> 565.65
A9: ='Ex 1 HDD'!A9 -> 2020-07-01 | B9: =K9 -> 55 | C9: 0 | E9: 2020-07-01 | F9: =F8+K9 -> 445 | G9: =G8+C9 -> 0 | I9: 2020-07-01 | J9: 55000 | K9: =J9/1000 -> 55 | L9: 74675 | M9: 74.675
A10: ='Ex 1 HDD'!A10 -> 2020-08-01 | B10: 0 | C10: 0 | E10: 2020-08-01 | F10: =F9+K10 -> 445 | G10: 0 | I10: 2020-08-01 | J10: 0 | K10: =J10/1000 -> 0 | L10: 0 | M10: 0
A11: ='Ex 1 HDD'!A11 -> 2020-09-01 | C11: 1934.3 | E11: 2020-09-01 | F11: =F10+K11 -> 445 | G11: 1934.3 | I11: 2020-09-01 | K11: 0 | M11: 0
A12: ='Ex 1 HDD'!A12 -> 2020-10-01 | C12: 2467.2 | E12: 2020-10-01 | F12: 445 | G12: 4401.5 | I12: 2020-10-01 | K12: 0 | M12: 0
A13: ='Ex 1 HDD'!A13 -> 2020-11-01 | C13: 7175.5 | E13: 2020-11-01 | F13: 445 | G13: 11577 | I13: 2020-11-01 | K13: 0 | M13: 0
A14: ='Ex 1 HDD'!A14 -> 2020-12-01 | C14: 13238.1 | E14: 2020-12-01 | F14: 445 | G14: 24815.1 | I14: 2020-12-01 | K14: 0 | M14: 0
A15: ='Ex 1 HDD'!A15 -> 2021-01-01 | C15: 11026 | E15: 2021-01-01 | F15: 445 | G15: 35841.1 | I15: 2021-01-01 | K15: 0 | M15: 0
A16: ='Ex 1 HDD'!A16 -> 2021-02-01 | C16: 8816 | E16: 2021-02-01 | F16: 445 | G16: 44657.1 | I16: 2021-02-01 | K16: 0 | M16: 0
A17: ='Ex 1 HDD'!A17 -> 2021-03-01 | C17: 3402.447 | E17: 2021-03-01 | F17: 445 | G17: 48059.547 | I17: 2021-03-01 | K17: 0 | M17: 0
A18: ='Ex 1 HDD'!A18 -> 2021-04-01 | C18: 2103.9 | E18: 2021-04-01 | F18: 445 | G18: =G17+C18 -> 50163.447 | I18: 2021-04-01 | K18: 0 | M18: 0
A19: ='Ex 1 HDD'!A19 -> 2021-05-01 | C19: 390.151 | E19: 2021-05-01 | F19: 445 | G19: 50553.598 | I19: 2021-05-01 | K19: 0 | M19: 0
B21: =SUM(B8:B19) -> 445 | C21: =SUM(C8:C20) -> 50553.598
B23: =B16-B17 -> 0

Sheet Exhibit 4.1
O31: ='Exhibit 1.1'!O31 -> IRP Variance Exhibit | P31: ='Exhibit 1.1'!P31 -> Docket No. 20-057-02 | Q31: ='Exhibit 1.1'!Q31 -> Dominion Energy Utah
O32: 4.1

Sheet Exhibit 4.2
O30: ='Exhibit 1.1'!O31 -> IRP Variance Exhibit | P30: ='Exhibit 1.1'!P31 -> Docket No. 20-057-02 | Q30: ='Exhibit 1.1'!Q31 -> Dominion Energy Utah
O31: 4.2

Sheet Exhibit 4.3
N31: ='Exhibit 1.1'!O31 -> IRP Variance Exhibit | O31: ='Exhibit 1.1'!P31 -> Docket No. 20-057-02 | P31: ='Exhibit 1.1'!Q31 -> Dominion Energy Utah
O32: 4.3

Sheet Ex 5 Purchase Gas Cost
A1: Purchase Gas Cost Variance ($1,000's)
E6: Cumulative
A7: Month/Year | B7: Actual | C7: IRP Forecast (Normal) | E7: Actual | F7: IRP Forecast (Normal)
A8: ='Ex 1 HDD'!A8 -> 2020-06-01 | B8: ='Ex 4 Purchase Gas'!M8 -> 565.65 | C8: 0 | E8: =B8 -> 565.65 | F8: =C8 -> 0
A9: ='Ex 1 HDD'!A9 -> 2020-07-01 | B9: ='Ex 4 Purchase Gas'!M9 -> 74.675 | C9: 0 | E9: =E8+B9 -> 640.325 | F9: =C9+F8 -> 0
A10: ='Ex 1 HDD'!A10 -> 2020-08-01 | B10: ='Ex 4 Purchase Gas'!M10 -> 0 | C10: 0 | E10: 640.325 | F10: =C10+F9 -> 0
A11: ='Ex 1 HDD'!A11 -> 2020-09-01 | C11: 2839.944 | E11: 640.325 | F11: 2839.944
A12: ='Ex 1 HDD'!A12 -> 2020-10-01 | C12: 3890.017 | E12: 640.325 | F12: 6729.961
A13: ='Ex 1 HDD'!A13 -> 2020-11-01 | C13: 10886.54 | E13: 640.325 | F13: 17616.501
A14: ='Ex 1 HDD'!A14 -> 2020-12-01 | C14: 27329.43 | E14: 640.325 | F14: 44945.931
A15: ='Ex 1 HDD'!A15 -> 2021-01-01 | C15: 24656.69 | E15: 640.325 | F15: 69602.621
A16: ='Ex 1 HDD'!A16 -> 2021-02-01 | C16: 19788.75 | E16: 640.325 | F16: 89391.371
A17: ='Ex 1 HDD'!A17 -> 2021-03-01 | C17: 9828.601 | E17: 640.325 | F17: 99219.972
A18: ='Ex 1 HDD'!A18 -> 2021-04-01 | C18: 5783.888 | E18: 640.325 | F18: 105003.86
A19: ='Ex 1 HDD'!A19 -> 2021-05-01 | C19: 1004.215 | E19: 640.325 | F19: 106008.075
C21: =SUM(C8:C19) -> 106008.075

Sheet Exhibit 5.1
N31: ='Exhibit 1.1'!O31 -> IRP Variance Exhibit | O31: ='Exhibit 1.1'!P31 -> Docket No. 20-057-02 | P31: ='Exhibit 1.1'!Q31 -> Dominion Energy Utah
N32: 5.1

Sheet Exhibit 5.2
O31: ='Exhibit 1.1'!O31 -> IRP Variance Exhibit | P31: ='Exhibit 1.1'!P31 -> Docket No. 20-057-02 | Q31: ='Exhibit 1.1'!Q31 -> Dominion Energy Utah
O32: 5.2

Sheet Exhibit 5.3
O31: ='Exhibit 1.1'!O31 -> IRP Variance Exhibit | P31: ='Exhibit 1.1'!P31 -> Docket No. 20-057-02 | Q31: ='Exhibit 1.1'!Q31 -> Dominion Energy Utah
O32: 5.3

Sheet Ex 6 Purch Gas Unit Cost
A1: Purchase Gas Unit Cost Variance ($1,000's)
E6: Actual | F6: Actual | G6: Actual | I6: Normal | J6: Normal | K6: Normal
A7: Month/Year | B7: Actual $/Dth | C7: IRP Forecast (Normal) $/Dth | E7: Dth | F7: Cost | G7: $/Dth | I7: Dth | J7: Cost | K7: $/Dth | M7: May Forward Strip
A8: ='Ex 1 HDD'!A8 -> 2020-06-01 | B8: =G8 -> 1.450384615 | C8: =K8 -> 0 | E8: ='Ex 4 Purchase Gas'!B8 -> 390 | F8: ='Ex 4 Purchase Gas'!M8 -> 565.65 | G8: =IFERROR(F8/E8,0) -> 1.450384615 | I8: ='Ex 4 Purchase Gas'!C8 -> 0 | J8: ='Ex 5 Purchase Gas Cost'!C8 -> 0 | K8: =IFERROR(J8/I8,0) -> 0 | M8: 1.57
A9: ='Ex 1 HDD'!A9 -> 2020-07-01 | B9: 1.357727273 | C9: 0 | E9: ='Ex 4 Purchase Gas'!B9 -> 55 | F9: ='Ex 4 Purchase Gas'!M9 -> 74.675 | G9: =IFERROR(F9/E9,0) -> 1.357727273 | I9: ='Ex 4 Purchase Gas'!C9 -> 0 | J9: ='Ex 5 Purchase Gas Cost'!C9 -> 0 | K9: =IFERROR(J9/I9,0) -> 0 | M9: 1.54
A10: ='Ex 1 HDD'!A10 -> 2020-08-01 | B10: 0 | C10: 0 | E10: ='Ex 4 Purchase Gas'!B10 -> 0 | F10: ='Ex 4 Purchase Gas'!M10 -> 0 | G10: 0 | I10: ='Ex 4 Purchase Gas'!C10 -> 0 | J10: ='Ex 5 Purchase Gas Cost'!C10 -> 0 | K10: 0 | M10: 1.53
A11: ='Ex 1 HDD'!A11 -> 2020-09-01 | B11: 0 | C11: =K11 -> 1.46820245 | E11: ='Ex 4 Purchase Gas'!B11 -> 0 | F11: ='Ex 4 Purchase Gas'!M11 -> 0 | G11: 0 | I11: ='Ex 4 Purchase Gas'!C11 -> 1934.3 | J11: ='Ex 5 Purchase Gas Cost'!C11 -> 2839.944 | K11: 1.46820245 | M11: 1.49
A12: ='Ex 1 HDD'!A12 -> 2020-10-01 | B12: 0 | C12: =K12 -> 1.576693012 | E12: ='Ex 4 Purchase Gas'!B12 -> 0 | F12: ='Ex 4 Purchase Gas'!M12 -> 0 | G12: 0 | I12: ='Ex 4 Purchase Gas'!C12 -> 2467.2 | J12: ='Ex 5 Purchase Gas Cost'!C12 -> 3890.017 | K12: 1.576693012 | M12: 1.53
A13: ='Ex 1 HDD'!A13 -> 2020-11-01 | B13: 0 | C13: =K13 -> 1.517182078 | E13: ='Ex 4 Purchase Gas'!B13 -> 0 | F13: ='Ex 4 Purchase Gas'!M13 -> 0 | G13: 0 | I13: ='Ex 4 Purchase Gas'!C13 -> 7175.5 | J13: ='Ex 5 Purchase Gas Cost'!C13 -> 10886.54 | K13: =IFERROR(J13/I13,0) -> 1.517182078 | M13: 1.99
A14: ='Ex 1 HDD'!A14 -> 2020-12-01 | B14: 0 | C14: 2.064452603 | E14: ='Ex 4 Purchase Gas'!B14 -> 0 | F14: ='Ex 4 Purchase Gas'!M14 -> 0 | G14: 0 | I14: ='Ex 4 Purchase Gas'!C14 -> 13238.1 | J14: ='Ex 5 Purchase Gas Cost'!C14 -> 27329.43 | K14: 2.064452603 | M14: 2.57
A15: ='Ex 1 HDD'!A15 -> 2021-01-01 | B15: 0 | C15: 2.236231634 | E15: ='Ex 4 Purchase Gas'!B15 -> 0 | F15: ='Ex 4 Purchase Gas'!M15 -> 0 | G15: 0 | I15: ='Ex 4 Purchase Gas'!C15 -> 11026 | J15: ='Ex 5 Purchase Gas Cost'!C15 -> 24656.69 | K15: 2.236231634 | M15: 2.94
A16: ='Ex 1 HDD'!A16 -> 2021-02-01 | B16: 0 | C16: 2.244640426 | E16: ='Ex 4 Purchase Gas'!B16 -> 0 | F16: ='Ex 4 Purchase Gas'!M16 -> 0 | G16: 0 | I16: ='Ex 4 Purchase Gas'!C16 -> 8816 | J16: ='Ex 5 Purchase Gas Cost'!C16 -> 19788.75 | K16: 2.244640426 | M16: 3.09
A17: ='Ex 1 HDD'!A17 -> 2021-03-01 | B17: 0 | C17: 2.888685996 | E17: ='Ex 4 Purchase Gas'!B17 -> 0 | F17: ='Ex 4 Purchase Gas'!M17 -> 0 | G17: 0 | I17: ='Ex 4 Purchase Gas'!C17 -> 3402.447 | J17: ='Ex 5 Purchase Gas Cost'!C17 -> 9828.601 | K17: 2.888685996 | M17: 2.89
A18: ='Ex 1 HDD'!A18 -> 2021-04-01 | B18: 0 | C18: 2.74912686 | E18: ='Ex 4 Purchase Gas'!B18 -> 0 | F18: ='Ex 4 Purchase Gas'!M18 -> 0 | G18: 0 | I18: ='Ex 4 Purchase Gas'!C18 -> 2103.9 | J18: ='Ex 5 Purchase Gas Cost'!C18 -> 5783.888 | K18: 2.74912686 | M18: 2.76
A19: ='Ex 1 HDD'!A19 -> 2021-05-01 | B19: 0 | C19: 2.57391369 | E19: ='Ex 4 Purchase Gas'!B19 -> 0 | F19: ='Ex 4 Purchase Gas'!M19 -> 0 | G19: 0 | I19: ='Ex 4 Purchase Gas'!C19 -> 390.151 | J19: ='Ex 5 Purchase Gas Cost'!C19 -> 1004.215 | K19: 2.57391369 | M19: 2.68
A47: 2017-10-26 | B47: Unit Cost per Decatherm | C47: The Purchase Gas Unit Cost is usually a calculated value. That value is derived from purchase dollars divided by purchase decatherms. Columns I - K show those decatherms, costs and calculated Unit costs. In the unusual case of summer 2017 the model used no spot gas during the summer and so incurred zero purchased volumes and zero associated costs making the Unit cost also zero. If purchase volumes had been incurred then the question arrises as to what value should be used as the "model" unit cost value. - Zero could have been reasonably used because the model had no volumes or costs, even though the actual usage may have had volumes. (In this case it did not.) - The May forward strip could have been used because that was the best guess for monthly prices at the time the model was created - Some actual value from each month could have also been used as a filler.

Sheet Exhibit 6.1
O31: ='Exhibit 1.1'!O31 -> IRP Variance Exhibit | P31: ='Exhibit 1.1'!P31 -> Docket No. 20-057-02 | Q31: ='Exhibit 1.1'!Q31 -> Dominion Energy Utah
O32: 6.1

Sheet Exhibit 6.2
O31: ='Exhibit 1.1'!O31 -> IRP Variance Exhibit | P31: ='Exhibit 1.1'!P31 -> Docket No. 20-057-02 | Q31: ='Exhibit 1.1'!Q31 -> Dominion Energy Utah
O32: 6.2

Sheet Ex 7 Co. Owned Gas
A1: Cost-of-Service Gas Variance (MDths)
H6: Cumulative
A7: Month/Year | B7: Actual | C7: IRP Forecast (Normal) | D7: Full Production | E7: Shut-in Est. Month | F7: Shut-in Daily | H7: Actual | I7: IRP Forecast (Normal) | K7: Days in Mo. | L7: Dthms | M7: Dthms/Day
A8: ='Ex 1 HDD'!A8 -> 2020-06-01 | B8: 5334.561 | C8: 5278.6 | D8: 5471 | E8: =D8-C8 -> 192.4 | F8: =(E8/30)*1000 -> 6413.333333 | H8: =B8 -> 5334.561 | I8: =C8 -> 5278.6 | K8: =DAY(EOMONTH(A8,0)) -> 30 | L8: =C8 -> 5278.6 | M8: =L8/K8 -> 175.9533333 | Q8: 5754.478384
A9: ='Ex 1 HDD'!A9 -> 2020-07-01 | B9: 5132.206 | C9: 5360.98 | D9: 5558 | E9: 197.02 | F9: =(E9/30)*1000 -> 6567.333333 | H9: =H8+B9 -> 10466.767 | I9: =I8+C9 -> 10639.58 | K9: =DAY(EOMONTH(A9,0)) -> 31 | L9: =C9 -> 5360.98 | M9: =L9/K9 -> 172.9348387 | Q9: 5867.413019
A10: ='Ex 1 HDD'!A10 -> 2020-08-01 | B10: 4998.134 | C10: 5274.711 | D10: 5471 | E10: 196.289 | F10: 6542.966667 | H10: 15464.901 | I10: 15914.291 | K10: 31 | L10: 5274.711 | M10: 170.1519677 | Q10: 5986.085205
A11: ='Ex 1 HDD'!A11 -> 2020-09-01 | C11: 5026.519 | D11: 5215 | E11: 188.481 | F11: 6282.7 | H11: 15464.901 | I11: 20940.81 | K11: 30 | L11: 5026.519 | M11: 167.5506333 | Q11: 5618.719149
A12: ='Ex 1 HDD'!A12 -> 2020-10-01 | C12: 5716.15 | D12: 5951 | E12: 234.85 | F12: 7828.333333 | H12: 15464.901 | I12: 26656.96 | K12: 31 | L12: 5716.15 | M12: 184.3919355 | Q12: 5665.433802
A13: ='Ex 1 HDD'!A13 -> 2020-11-01 | C13: 5401.851 | D13: 5608 | E13: 206.149 | F13: 6871.633333 | H13: 15464.901 | I13: 32058.811 | K13: 30 | L13: 5401.851 | M13: 180.0617 | Q13: 5366.261282
A14: ='Ex 1 HDD'!A14 -> 2020-12-01 | C14: 5627.61 | D14: 5667 | E14: 39.39 | F14: 1313 | H14: 15464.901 | I14: 37686.421 | K14: 31 | L14: 5627.61 | M14: 181.5358065 | Q14: 5567.876643
A15: ='Ex 1 HDD'!A15 -> 2021-01-01 | C15: 5517.327 | D15: 5553 | E15: 35.673 | F15: 1189.1 | H15: 15464.901 | I15: 43203.748 | K15: 31 | L15: 5517.327 | M15: 177.9782903 | Q15: 5438.795676
A16: ='Ex 1 HDD'!A16 -> 2021-02-01 | C16: 4727.225 | D16: 4728 | E16: 0.775 | F16: 25.83333333 | H16: 15464.901 | I16: 47930.973 | K16: 28 | L16: 4727.225 | M16: 168.8294643 | Q16: 5101.590072
A17: ='Ex 1 HDD'!A17 -> 2021-03-01 | C17: 5328.404 | D17: 5360 | E17: 31.596 | F17: 1053.2 | H17: 15464.901 | I17: 53259.377 | K17: 31 | L17: 5328.404 | M17: 171.884 | Q17: 5326.091886
A18: ='Ex 1 HDD'!A18 -> 2021-04-01 | C18: 5075.944 | D18: 5105 | E18: 29.056 | F18: 968.5333333 | H18: 15464.901 | I18: 58335.321 | K18: 30 | L18: 5075.944 | M18: 169.1981333 | Q18: 5051.585887
A19: ='Ex 1 HDD'!A19 -> 2021-05-01 | C19: 5167.9 | D19: 5196 | E19: 28.1 | F19: =(E19/30)*1000 -> 936.6666667 | H19: 15464.901 | I19: 63503.221 | K19: 31 | L19: 5167.9 | M19: 166.7064516 | Q19: 5126.305828
B21: =SUM(B8:B19) -> 15464.901 | C21: =SUM(C8:C19) -> 63503.221 | D21: =SUM(D8:D19) -> 64883

Sheet Exhibit 7.1
O32: ='Exhibit 1.1'!O31 -> IRP Variance Exhibit | P32: ='Exhibit 1.1'!P31 -> Docket No. 20-057-02 | Q32: ='Exhibit 1.1'!Q31 -> Dominion Energy Utah
O33: 7.1

Sheet Exhibit 7.2
O31: ='Exhibit 1.1'!O31 -> IRP Variance Exhibit | P31: ='Exhibit 1.1'!P31 -> Docket No. 20-057-02 | Q31: ='Exhibit 1.1'!Q31 -> Dominion Energy Utah
O32: 7.2

Sheet Exhibit 7.3
O31: ='Exhibit 1.1'!O31 -> IRP Variance Exhibit | P31: ='Exhibit 1.1'!P31 -> Docket No. 20-057-02 | Q31: ='Exhibit 1.1'!Q31 -> Dominion Energy Utah
O32: 7.3

Sheet Ex 8 New Drill
A1: Isolated New Drill Component (MDths)
J6: Cumulative | L6: Cumulative
A7: Month/Year | B7: ND Actual | C7: ND IRP Forecast (Normal) | D7: Legacy Actual | E7: Legacy IRP Forecast (Normal) | H7: Prod Actual | I7: Prod Normal | J7: ND Actual | K7: ND IRP Forecast (Normal) | L7: Legacy Actual | M7: Legacy IRP Forecast (Normal)
A8: ='Ex 1 HDD'!A8 -> 2020-06-01 | B8: 0 | C8: ='Company Nom Groups'!B129 -> 0 | D8: =H8-B8 -> 5334.561 | E8: =I8-C8 -> 5278.6 | H8: ='Ex 7 Co. Owned Gas'!B8 -> 5334.561 | I8: ='Ex 7 Co. Owned Gas'!C8 -> 5278.6 | J8: =B8 -> 0 | K8: =C8 -> 0 | L8: =D8 -> 5334.561 | M8: =E8 -> 5278.6
A9: ='Ex 1 HDD'!A9 -> 2020-07-01 | B9: 0 | C9: ='Company Nom Groups'!C129 -> 0 | D9: 5132.206 | E9: 5360.98 | H9: ='Ex 7 Co. Owned Gas'!B9 -> 5132.206 | I9: ='Ex 7 Co. Owned Gas'!C9 -> 5360.98 | J9: =B8+B9 -> 0 | K9: =K8+C9 -> 0 | L9: 10466.767 | M9: 10639.58
A10: ='Ex 1 HDD'!A10 -> 2020-08-01 | B10: 0 | C10: ='Company Nom Groups'!D129 -> 0 | D10: 4998.134 | E10: 5274.711 | H10: ='Ex 7 Co. Owned Gas'!B10 -> 4998.134 | I10: ='Ex 7 Co. Owned Gas'!C10 -> 5274.711 | J10: =J9+B10 -> 0 | K10: 0 | L10: 15464.901 | M10: 15914.291
A11: ='Ex 1 HDD'!A11 -> 2020-09-01 | C11: ='Company Nom Groups'!E129 -> 0 | D11: 0 | E11: 5026.519 | H11: ='Ex 7 Co. Owned Gas'!B11 -> 0 | I11: ='Ex 7 Co. Owned Gas'!C11 -> 5026.519 | J11: 0 | K11: =K10+C11 -> 0 | L11: =L10+D11 -> 15464.901 | M11: =M10+E11 -> 20940.81
A12: ='Ex 1 HDD'!A12 -> 2020-10-01 | C12: ='Company Nom Groups'!F129 -> 599.4563141 | D12: 0 | E12: 5116.693686 | H12: ='Ex 7 Co. Owned Gas'!B12 -> 0 | I12: ='Ex 7 Co. Owned Gas'!C12 -> 5716.15 | J12: 0 | K12: 599.4563141 | L12: =L11+D12 -> 15464.901 | M12: 26057.50369
A13: ='Ex 1 HDD'!A13 -> 2020-11-01 | C13: ='Company Nom Groups'!G129 -> 510.0059814 | D13: 0 | E13: 4891.845019 | H13: ='Ex 7 Co. Owned Gas'!B13 -> 0 | I13: ='Ex 7 Co. Owned Gas'!C13 -> 5401.851 | J13: 0 | K13: 1109.462296 | L13: 15464.901 | M13: 30949.3487
A14: ='Ex 1 HDD'!A14 -> 2020-12-01 | C14: ='Company Nom Groups'!H129 -> 474.2534943 | D14: 0 | E14: 5153.356506 | H14: ='Ex 7 Co. Owned Gas'!B14 -> 0 | I14: ='Ex 7 Co. Owned Gas'!C14 -> 5627.61 | J14: 0 | K14: 1583.71579 | L14: 15464.901 | M14: 36102.70521
A15: ='Ex 1 HDD'!A15 -> 2021-01-01 | C15: ='Company Nom Groups'!I129 -> 433.7210083 | D15: 0 | E15: 5083.605992 | H15: ='Ex 7 Co. Owned Gas'!B15 -> 0 | I15: ='Ex 7 Co. Owned Gas'!C15 -> 5517.327 | J15: 0 | K15: 2017.436798 | L15: 15464.901 | M15: 41186.3112
A16: ='Ex 1 HDD'!A16 -> 2021-02-01 | C16: ='Company Nom Groups'!J129 -> 350.0307999 | D16: 0 | E16: 4377.1942 | H16: ='Ex 7 Co. Owned Gas'!B16 -> 0 | I16: ='Ex 7 Co. Owned Gas'!C16 -> 4727.225 | J16: 0 | K16: 2367.467598 | L16: 15464.901 | M16: 45563.5054
A17: ='Ex 1 HDD'!A17 -> 2021-03-01 | C17: ='Company Nom Groups'!K129 -> 374.8179092 | D17: 0 | E17: 4953.586091 | H17: ='Ex 7 Co. Owned Gas'!B17 -> 0 | I17: ='Ex 7 Co. Owned Gas'!C17 -> 5328.404 | J17: 0 | K17: 2742.285507 | L17: 15464.901 | M17: 50517.09149
A18: ='Ex 1 HDD'!A18 -> 2021-04-01 | C18: ='Company Nom Groups'!L129 -> 341.1600037 | D18: 0 | E18: 4734.783996 | H18: ='Ex 7 Co. Owned Gas'!B18 -> 0 | I18: ='Ex 7 Co. Owned Gas'!C18 -> 5075.944 | J18: 0 | K18: 3083.445511 | L18: 15464.901 | M18: 55251.87549
A19: ='Ex 1 HDD'!A19 -> 2021-05-01 | C19: ='Company Nom Groups'!M129 -> 333.5010986 | D19: 0 | E19: 4834.398901 | H19: ='Ex 7 Co. Owned Gas'!B19 -> 0 | I19: ='Ex 7 Co. Owned Gas'!C19 -> 5167.9 | J19: 0 | K19: 3416.946609 | L19: 15464.901 | M19: 60086.27439

Sheet Exhibit 8.1
O31: ='Exhibit 1.1'!O31 -> IRP Variance Exhibit | P31: ='Exhibit 1.1'!P31 -> Docket No. 20-057-02 | Q31: ='Exhibit 1.1'!Q31 -> Dominion Energy Utah
O32: 8.1

Sheet Exhibit 8.2
O31: ='Exhibit 1.1'!O31 -> IRP Variance Exhibit | P31: ='Exhibit 1.1'!P31 -> Docket No. 20-057-02 | Q31: ='Exhibit 1.1'!Q31 -> Dominion Energy Utah
O32: 8.2

Sheet Exhibit 8.3
O31: ='Exhibit 1.1'!O31 -> IRP Variance Exhibit | P31: ='Exhibit 1.1'!P31 -> Docket No. 20-057-02 | Q31: ='Exhibit 1.1'!Q31 -> Dominion Energy Utah
O32: 8.3

Sheet Company Nom Groups (hidden)
A1: Company Nom Groups
A2: Withdrawn Gross Volume (MDths) | D2: 1106 | R2: June 2019 Cost-of-Service | V2: July 2019 Cost-of-Service | Z2: August 2019 Cost-of-Service | AD2: First Quarter Cost-of-Service | AL2: September 2019 Cost-of-Service | AP2: October 2019 Cost-of-Service | AT2: November 2019 Cost-of-Service | AX2: Second Quarter Cost-of-Service | BG2: December 2019 Cost-of-Service | BK2: January 2020 Cost-of-Service | BO2: February 2020 Cost-of-Service | BS2: Third Quarter Cost-of-Service | CD2: March 2020 Cost-of-Service | CH2: April 2020 Cost-of-Service | CL2: May 2020 Cost-of-Service | CP2: Fourth Quarter Cost-of-Service
A3: Source: IRP Base Case, Monthly Custom Report Writer | R3: Variance Mdth | V3: Variance Mdth | Z3: Variance Mdth | AD3: Variance Mdth | AL3: Variance Mdth | AP3: Variance Mdth | AT3: Variance Mdth | AX3: Variance Mdth | BG3: Variance Mdth | BK3: Variance Mdth | BO3: Variance Mdth | BS3: Variance Mdth | CD3: Variance Mdth | CH3: Variance Mdth | CL3: Variance Mdth | CP3: Variance Mdth
B4: 2 | C4: 3 | D4: 4 | E4: 5 | F4: 6 | G4: 7 | H4: 8 | I4: 9 | J4: 10 | K4: 11 | L4: 12 | M4: 13
A5: Nomination Group Production | B5: 2020-06-01 | C5: 2020-07-01 | D5: 2020-08-01 | E5: 2020-09-01 | F5: 2020-10-01 | G5: 2020-11-01 | H5: 2020-12-01 | I5: 2021-01-01 | J5: 2021-02-01 | K5: 2021-03-01 | L5: 2021-04-01 | M5: 2021-05-01 | N5: Total | R5: Nomination Group | S5: Actual | T5: Normal | V5: Nomination Group | W5: Actual | X5: Normal | Z5: Nomination Group | AA5: Actual | AB5: Normal | AD5: Nomination Group | AE5: Actual | AF5: Normal | AL5: Nomination Group | AM5: Actual | AN5: Normal | AP5: Nomination Group | AQ5: Actual | AR5: Normal | AT5: =AP5 -> Nomination Group | AU5: =AQ5 -> Actual | AV5: Normal | AX5: =AT5 -> Nomination Group | AY5: =AU5 -> Actual | AZ5: =AV5 -> Normal | BG5: Nomination Group | BH5: Actual | BI5: Normal | BK5: Nomination Group | BL5: Actual | BM5: Normal | BO5: Nomination Group | BP5: Actual | BQ5: Normal | BS5: =BO5 -> Nomination Group | BT5: =BP5 -> Actual | BU5: =BQ5 -> Normal | CD5: Nomination Group | CE5: Actual | CF5: Normal | CH5: Nomination Group | CI5: Actual | CJ5: Normal | CL5: Nomination Group | CM5: Actual | CN5: Normal | CP5: Nomination Group | CQ5: Actual | CR5: Normal
A6: BIRCH CREEK | B6: 116.9369965 | C6: 120.0908966 | D6: 119.3531036 | E6: 114.7949982 | F6: 117.8929977 | G6: 113.3909988 | H6: 116.4514999 | I6: 115.413002 | J6: 100.0327988 | K6: 114.0025024 | L6: 109.6500015 | M6: 112.6106033 | N6: =SUM(B6:M6) -> 1370.620399 | R6: =A6 -> BIRCH CREEK | S6: =IFERROR(VLOOKUP(R6,$R$116:$S$210,2,FALSE),0)+S120 -> 133.524 | T6: =IFERROR(VLOOKUP(R6,$A$6:$M$119,2,FALSE),"") -> 116.9369965 | V6: =R6 -> BIRCH CREEK | W6: =IFERROR(VLOOKUP(V6,$V$116:$W$210,2,FALSE),0) -> 134.366 | X6: =IFERROR(VLOOKUP(V6,$A$6:$M$119,3,FALSE),"") -> 120.0908966 | Z6: =R6 -> BIRCH CREEK | AA6: =IFERROR(VLOOKUP(A6,$Z$116:$AA$210,2,FALSE),0) -> 133.616 | AB6: =IFERROR(VLOOKUP(Z6,$A$6:$M$119,4,FALSE),"") -> 119.3531036 | AD6: =R6 -> BIRCH CREEK | AE6: =SUM(S6,W6,AA6) -> 401.506 | AF6: =SUM(T6,X6,AB6) -> 356.3809967 | AL6: =AD6 -> BIRCH CREEK | AM6: =IFERROR(VLOOKUP(AL6,$AL$116:$AM$206,2,FALSE),0) -> 0 | AN6: =IFERROR(VLOOKUP(AL6,$A$6:$M$119,5,FALSE),"") -> 114.7949982 | AP6: =AL6 -> BIRCH CREEK | AQ6: =IFERROR(VLOOKUP(AP6,$AP$116:$AQ$215,2,FALSE),0) -> 0 | AR6: =IFERROR(VLOOKUP($AP6,$A$6:$M$119,6,FALSE),"") -> 117.8929977 | AT6: =AP6 -> BIRCH CREEK | AU6: =IFERROR(VLOOKUP(AT6,$AT$116:$AU$208,2,FALSE),0) -> 0 | AV6: =IFERROR(VLOOKUP($AT6,$A$6:$M$119,7,FALSE),"") -> 113.3909988 | AX6: =AT6 -> BIRCH CREEK | AY6: =SUM(AM6,AQ6,AU6) -> 0 | AZ6: =SUM(AN6,AR6,AV6) -> 346.0789948 | BG6: =R6 -> BIRCH CREEK | BH6: =IFERROR(VLOOKUP($BG6,$BG$114:$BH$209,2,FALSE),0) -> 0 | BI6: =IFERROR(VLOOKUP($BG6,$A$6:$M$119,8,FALSE),"") -> 116.4514999 | BK6: =R6 -> BIRCH CREEK | BL6: =IFERROR(VLOOKUP($BK6,$BK$114:$BL$209,2,FALSE),0) -> 0 | BM6: =IFERROR(VLOOKUP($BK6,$A$6:$M$119,9,FALSE),"") -> 115.413002 | BO6: =A6 -> BIRCH CREEK | BP6: =IFERROR(VLOOKUP($BO6,$BO$114:$BP$209,2,FALSE),0) -> 0 | BQ6: =IFERROR(VLOOKUP($BO6,$A$6:$M$119,10,FALSE),0) -> 100.0327988 | BS6: =A6 -> BIRCH CREEK | BT6: =SUM(BH6,BL6,BP6) -> 0 | BU6: =SUM(BI6,BM6,BQ6) -> 331.8973007 | CD6: =A6 -> BIRCH CREEK | CE6: 2.7 | CF6: =IFERROR(VLOOKUP($A6,$A$6:$M$119,11,FALSE),"") -> 114.0025024 | CH6: =A6 -> BIRCH CREEK | CI6: 2.7 | CJ6: =IFERROR(VLOOKUP($A6,$A$6:$M$119,12,FALSE),"") -> 109.6500015 | CL6: =A6 -> BIRCH CREEK | CM6: 2.7 | CN6: =IFERROR(VLOOKUP($A6,$A$6:$M$119,13,FALSE),"") -> 112.6106033 | CP6: BIRCH CREEK | CQ6: 0 | CR6: 386.6897888
A7: ACEJDMT D24 | B7: 8.333999634 | C7: 8.540499687 | D7: 8.466099739 | E7: 8.123999596 | F7: 8.32349968 | G7: 7.988999844 | H7: 8.184000015 | I7: 8.115799904 | J7: 7.016799927 | K7: 7.979400158 | L7: 7.656000137 | M7: 7.842999935 | N7: =SUM(B7:M7) -> 96.57209826 | R7: =A7 -> ACEJDMT D24 | S7: =IFERROR(VLOOKUP(R7,$R$116:$S$210,2,FALSE),0) -> 11.616 | T7: 8.333999634 | V7: =R7 -> ACEJDMT D24 | W7: 9.432 | X7: 8.540499687 | Z7: =R7 -> ACEJDMT D24 | AA7: 11.519 | AB7: 8.466099739 | AD7: =R7 -> ACEJDMT D24 | AE7: =SUM(S7,W7,AA7) -> 32.567 | AF7: =SUM(T7,X7,AB7) -> 25.34059906 | AL7: =AD7 -> ACEJDMT D24 | AM7: 0 | AN7: 8.123999596 | AP7: =AL7 -> ACEJDMT D24 | AQ7: 0 | AR7: 8.32349968 | AT7: =AP7 -> ACEJDMT D24 | AU7: 0 | AV7: 7.988999844 | AX7: =AT7 -> ACEJDMT D24 | AY7: =SUM(AM7,AQ7,AU7) -> 0 | AZ7: =SUM(AN7,AR7,AV7) -> 24.43649912 | BG7: =R7 -> ACEJDMT D24 | BH7: 0 | BI7: 8.184000015 | BK7: =R7 -> ACEJDMT D24 | BL7: 0 | BM7: 8.115799904 | BO7: ACEJDMT D24 | BP7: 0 | BQ7: 7.016799927 | BS7: ACEJDMT D24 | BT7: 0 | BU7: 23.31659985 | CD7: ACEJDMT D24 | CE7: 3.7 | CF7: 7.979400158 | CH7: ACEJDMT D24 | CI7: 3.7 | CJ7: 7.656000137 | CL7: ACEJDMT D24 | CM7: 3.7 | CN7: 7.842999935 | CP7: PDW1A1B D21 | CQ7: 0 | CR7: 2.157500029
A8: BRFM D24 | B8: 1.853999972 | C8: 1.906499982 | D8: 1.894099951 | E8: 1.82099998 | F8: 1.872400045 | G8: 1.799999952 | H8: 1.847599983 | I8: 1.83829999 | J8: 1.593199968 | K8: 1.816599965 | L8: 1.746000051 | M8: 1.79489994 | N8: 21.78459978 | R8: BRFM D24 | S8: 1.996 | T8: 1.853999972 | V8: BRFM D24 | W8: 2.298 | X8: 1.906499982 | Z8: BRFM D24 | AA8: 2.242 | AB8: 1.894099951 | AD8: BRFM D24 | AE8: =SUM(S8,W8,AA8) -> 6.536 | AF8: =SUM(T8,X8,AB8) -> 5.654599905 | AL8: BRFM D24 | AM8: 0 | AN8: 1.82099998 | AP8: BRFM D24 | AQ8: 0 | AR8: 1.872400045 | AT8: BRFM D24 | AU8: 0 | AV8: 1.799999952 | AX8: BRFM D24 | AY8: =SUM(AM8,AQ8,AU8) -> 0 | AZ8: =SUM(AN8,AR8,AV8) -> 5.493399978 | BG8: BRFM D24 | BH8: 0 | BI8: 1.847599983 | BK8: =R8 -> BRFM D24 | BL8: 0 | BM8: 1.83829999 | BO8: BRFM D24 | BP8: 0 | BQ8: 1.593199968 | BS8: BRFM D24 | BT8: 0 | BU8: 5.279099941 | CD8: BRFM D24 | CE8: 4.7 | CF8: 1.816599965 | CH8: BRFM D24 | CI8: 4.7 | CJ8: 1.746000051 | CL8: BRFM D24 | CM8: 4.7 | CN8: 1.79489994 | CP8: ACEJDMT D24 | CQ8: 0 | CR8: 30.1548996
A9: BRFQ D24 | B9: 0 | C9: 0 | D9: 0 | E9: 0 | F9: 0 | G9: 0 | H9: 138.2940979 | I9: 137.3083038 | J9: 118.8908005 | K9: 135.3645935 | L9: 130.0679932 | M9: 133.4519043 | N9: 793.3776932 | R9: BRFQ D24 | S9: 149.781 | T9: 0 | V9: BRFQ D24 | W9: 153.818 | X9: 0 | Z9: BRFQ D24 | AA9: 147.947 | AB9: 0 | AD9: BRFQ D24 | AE9: 451.546 | AF9: 0 | AL9: BRFQ D24 | AM9: 0 | AN9: 0 | AP9: BRFQ D24 | AQ9: 0 | AR9: 0 | AT9: BRFQ D24 | AU9: 0 | AV9: 0 | AX9: BRFQ D24 | AY9: 0 | AZ9: 0 | BG9: BRFQ D24 | BH9: 0 | BI9: 138.2940979 | BK9: =R9 -> BRFQ D24 | BL9: 0 | BM9: 137.3083038 | BO9: BRFQ D24 | BP9: 0 | BQ9: 118.8908005 | BS9: BRFQ D24 | BT9: 0 | BU9: 394.4932022 | CD9: BRFQ D24 | CE9: 5.7 | CF9: 135.3645935 | CH9: BRFQ D24 | CI9: 5.7 | CJ9: 130.0679932 | CL9: BRFQ D24 | CM9: 5.7 | CN9: 133.4519043 | CP9: BRFM D24 | CQ9: 0 | CR9: 5.968199849
A10: BRFQMT D24 | B10: 4.673999786 | C10: 4.804999828 | D10: 4.777100086 | E10: 4.598999977 | F10: 4.724400043 | G10: 4.547999859 | H10: 4.671700001 | I10: 4.646900177 | J10: 4.029200077 | K10: 4.597300053 | L10: 4.421999931 | M10: 4.54460001 | N10: 55.03919983 | R10: BRFQMT D24 | S10: 2.026 | T10: 4.673999786 | V10: BRFQMT D24 | W10: 1.199 | X10: 4.804999828 | Z10: BRFQMT D24 | AA10: 4.928 | AB10: 4.777100086 | AD10: BRFQMT D24 | AE10: 8.153 | AF10: 14.2560997 | AL10: BRFQMT D24 | AM10: 0 | AN10: 4.598999977 | AP10: BRFQMT D24 | AQ10: 0 | AR10: 4.724400043 | AT10: BRFQMT D24 | AU10: 0 | AV10: 4.547999859 | AX10: BRFQMT D24 | AY10: 0 | AZ10: 13.87139988 | BG10: BRFQMT D24 | BH10: 0 | BI10: 4.671700001 | BK10: =R10 -> BRFQMT D24 | BL10: 0 | BM10: 4.646900177 | BO10: BRFQMT D24 | BP10: 0 | BQ10: 4.029200077 | BS10: BRFQMT D24 | BT10: 0 | BU10: 13.34780025 | CD10: BRFQMT D24 | CE10: 6.7 | CF10: 4.597300053 | CH10: BRFQMT D24 | CI10: 6.7 | CJ10: 4.421999931 | CL10: BRFQMT D24 | CM10: 6.7 | CN10: 4.54460001 | CP10: BRFQ D24 | CQ10: 0 | CR10: 460.7208099
A11: BRFW D24 | B11: 55.5359993 | C11: 56.96559906 | D11: 56.55020142 | E11: 54.32400131 | F11: 55.72249985 | G11: 53.39099884 | H11: 54.7677002 | I11: 54.3708992 | J11: 47.07080078 | K11: 53.58349991 | L11: 51.47700119 | M11: 52.80540085 | N11: 646.5646019 | R11: BRFW D24 | S11: 63.577 | T11: 55.5359993 | V11: BRFW D24 | W11: 71.723 | X11: 56.96559906 | Z11: BRFW D24 | AA11: 70.355 | AB11: 56.55020142 | AD11: BRFW D24 | AE11: 205.655 | AF11: 169.0517998 | AL11: BRFW D24 | AM11: 0 | AN11: 54.32400131 | AP11: BRFW D24 | AQ11: 0 | AR11: 55.72249985 | AT11: BRFW D24 | AU11: 0 | AV11: 53.39099884 | AX11: BRFW D24 | AY11: 0 | AZ11: 163.4375 | BG11: BRFW D24 | BH11: 0 | BI11: 54.7677002 | BK11: =BG11 -> BRFW D24 | BL11: 0 | BM11: 54.3708992 | BO11: BRFW D24 | BP11: 0 | BQ11: 47.07080078 | BS11: BRFW D24 | BT11: 0 | BU11: 156.2094002 | CD11: BRFW D24 | CE11: 7.7 | CF11: 53.58349991 | CH11: BRFW D24 | CI11: 7.7 | CJ11: 51.47700119 | CL11: BRFW D24 | CM11: 7.7 | CN11: 52.80540085 | CP11: BRFQMT D24 | CQ11: 0 | CR11: 17.04929972
A12: CBFR D24 | B12: 15.62699986 | C12: 16.00219917 | D12: 15.85960007 | E12: 15.21000004 | F12: 15.57439995 | G12: 14.93700027 | H12: 15.29850006 | I12: 15.16209984 | J12: 13.10400009 | K12: 14.88930035 | L12: 14.27999973 | M12: 14.62580013 | N12: 180.5698996 | R12: CBFR D24 | S12: 12.064 | T12: 15.62699986 | V12: CBFR D24 | W12: 4.681 | X12: 16.00219917 | Z12: CBFR D24 | AA12: 0 | AB12: 15.85960007 | AD12: CBFR D24 | AE12: 16.745 | AF12: 47.4887991 | AL12: CBFR D24 | AM12: 0 | AN12: 15.21000004 | AP12: CBFR D24 | AQ12: 0 | AR12: 15.57439995 | AT12: CBFR D24 | AU12: 0 | AV12: 14.93700027 | AX12: CBFR D24 | AY12: 0 | AZ12: 45.72140026 | BG12: CBFR D24 | BH12: 0 | BI12: 15.29850006 | BK12: =R12 -> CBFR D24 | BL12: 0 | BM12: 15.16209984 | BO12: CBFR D24 | BP12: 0 | BQ12: 13.10400009 | BS12: CBFR D24 | BT12: 0 | BU12: 43.56459999 | CD12: CBFR D24 | CE12: 8.7 | CF12: 14.88930035 | CH12: CBFR D24 | CI12: 8.7 | CJ12: 14.27999973 | CL12: CBFR D24 | CM12: 8.7 | CN12: 14.62580013 | CP12: BRFW D24 | CQ12: 0 | CR12: 173.982399
A13: CCRUNIT D24 | B13: 497.4599915 | C13: 509.1781006 | D13: 504.428894 | E13: 483.6600037 | F13: 495.2312012 | G13: 474.9360046 | H13: 486.3869019 | I13: 482.0871887 | J13: 416.7323914 | K13: 473.7016907 | L13: 454.4639893 | M13: 465.5889893 | N13: 5743.855347 | R13: CCRUNIT D24 | S13: 457.373 | T13: 497.4599915 | V13: CCRUNIT D24 | W13: 481.667 | X13: 509.1781006 | Z13: CCRUNIT D24 | AA13: 487.875 | AB13: 504.428894 | AD13: CCRUNIT D24 | AE13: 1426.915 | AF13: 1511.066986 | AL13: CCRUNIT D24 | AM13: 0 | AN13: 483.6600037 | AP13: CCRUNIT D24 | AQ13: 0 | AR13: 495.2312012 | AT13: CCRUNIT D24 | AU13: 0 | AV13: 474.9360046 | AX13: CCRUNIT D24 | AY13: 0 | AZ13: 1453.827209 | BG13: CCRUNIT D24 | BH13: 0 | BI13: 486.3869019 | BK13: CCRUNIT D24 | BL13: 0 | BM13: 482.0871887 | BO13: CCRUNIT D24 | BP13: 0 | BQ13: 416.7323914 | BS13: CCRUNIT D24 | BT13: 0 | BU13: 1385.206482 | CD13: CCRUNIT D24 | CE13: 9.7 | CF13: 473.7016907 | CH13: CCRUNIT D24 | CI13: 9.7 | CJ13: 454.4639893 | CL13: CCRUNIT D24 | CM13: 9.7 | CN13: 465.5889893 | CP13: CBFR D24 | CQ13: 0 | CR13: 46.92340088
A14: CCRUNITMTD24 | B14: 42.11700058 | C14: 43.18920135 | D14: 42.86059952 | E14: 41.1629982 | F14: 42.21269989 | G14: 40.0379982 | H14: 41.06570053 | I14: 40.76499939 | J14: 35.28839874 | K14: 40.16669846 | L14: 38.5890007 | M14: 39.58390045 | N14: 487.039196 | R14: CCRUNITMTD24 | S14: 38.791 | T14: 42.11700058 | V14: CCRUNITMTD24 | W14: 40.24 | X14: 43.18920135 | Z14: CCRUNITMTD24 | AA14: 40.298 | AB14: 42.86059952 | AD14: CCRUNITMTD24 | AE14: 119.329 | AF14: 128.1668015 | AL14: CCRUNITMTD24 | AM14: 0 | AN14: 41.1629982 | AP14: CCRUNITMTD24 | AQ14: 0 | AR14: 42.21269989 | AT14: CCRUNITMTD24 | AU14: 0 | AV14: 40.0379982 | AX14: CCRUNITMTD24 | AY14: 0 | AZ14: 123.4136963 | BG14: CCRUNITMTD24 | BH14: 0 | BI14: 41.06570053 | BK14: CCRUNITMTD24 | BL14: 0 | BM14: 40.76499939 | BO14: CCRUNITMTD24 | BP14: 0 | BQ14: 35.28839874 | BS14: CCRUNITMTD24 | BT14: 0 | BU14: 117.1190987 | CD14: CCRUNITMTD24 | CE14: 10.7 | CF14: 40.16669846 | CH14: CCRUNITMTD24 | CI14: 10.7 | CJ14: 38.5890007 | CL14: CCRUNITMTD24 | CM14: 10.7 | CN14: 39.58390045 | CP14: CCRUNIT D24 | CQ14: 0 | CR14: 1570.394928
A15: CHBT MT | B15: 15.25199986 | C15: 15.6704998 | D15: 15.58059978 | E15: 14.99400043 | F15: 15.40390015 | G15: 14.82299995 | H15: 15.23029995 | I15: 15.14350033 | J15: 13.13199997 | K15: 14.96990013 | L15: 14.40600014 | M15: 14.80249977 | N15: 179.4082003 | R15: CHBT MT | S15: 15.358 | T15: 15.25199986 | V15: CHBT MT | W15: 15.189 | X15: 15.6704998 | Z15: CHBT MT | AA15: 16.21 | AB15: 15.58059978 | AD15: CHBT MT | AE15: 46.757 | AF15: 46.50309944 | AL15: CHBT MT | AM15: 0 | AN15: 14.99400043 | AP15: CHBT MT | AQ15: 0 | AR15: 15.40390015 | AT15: CHBT MT | AU15: 0 | AV15: 14.82299995 | AX15: CHBT MT | AY15: 0 | AZ15: 45.22090054 | BG15: CHBT MT | BH15: 0 | BI15: 15.23029995 | BK15: CHBT MT | BL15: 0 | BM15: 15.14350033 | BO15: CHBT MT | BP15: 0 | BQ15: 13.13199997 | BS15: CHBT MT | BT15: 0 | BU15: 43.50580025 | CD15: CHBT MT | CE15: 11.7 | CF15: 14.96990013 | CH15: CHBT MT | CI15: 11.7 | CJ15: 14.40600014 | CL15: CHBT MT | CM15: 11.7 | CN15: 14.80249977 | CP15: CCRUNITMTD24 | CQ15: 0 | CR15: 126.5646019
A16: CHBTBUFF D24 | B16: 0 | C16: 0 | D16: 0 | E16: 0 | F16: 0 | G16: 0.7170000076 | H16: 0.7347000241 | I16: 0.7315999866 | J16: 0.6355999708 | K16: 0.722299993 | L16: 0.69599998 | M16: 0.7160999775 | N16: 4.95329994 | R16: CHBTBUFF D24 | S16: 0.834 | T16: 0 | V16: CHBTBUFF D24 | W16: 0.747 | X16: 0 | Z16: CHBTBUFF D24 | AA16: 0.983 | AB16: 0 | AD16: CHBTBUFF D24 | AE16: 2.564 | AF16: 0 | AL16: CHBTBUFF D24 | AM16: 0 | AN16: 0 | AP16: CHBTBUFF D24 | AQ16: 0 | AR16: 0 | AT16: CHBTBUFF D24 | AU16: 0 | AV16: 0.7170000076 | AX16: CHBTBUFF D24 | AY16: 0 | AZ16: 0.7170000076 | BG16: CHBTBUFF D24 | BH16: 0 | BI16: 0.7347000241 | BK16: CHBTBUFF D24 | BL16: 0 | BM16: 0.7315999866 | BO16: CHBTBUFF D24 | BP16: 0 | BQ16: 0.6355999708 | BS16: CHBTBUFF D24 | BT16: 0 | BU16: 2.101899981 | CD16: CHBTBUFF D24 | CE16: 12.7 | CF16: 0.722299993 | CH16: CHBTBUFF D24 | CI16: 12.7 | CJ16: 0.69599998 | CL16: CHBTBUFF D24 | CM16: 12.7 | CN16: 0.7160999775 | CP16: CHBTBUFF D24 | CQ16: 0 | CR16: 2.25059998
A17: CHBTCAT2 D24 | B17: 93.46499634 | C17: 95.938797 | D17: 95.30020142 | E17: 91.61399841 | F17: 94.03849792 | G17: 90.40200043 | H17: 92.79229736 | I17: 92.17849731 | J17: 79.85320282 | K17: 90.96019745 | L17: 87.44100189 | M17: 89.75740051 | N17: 1093.741089 | R17: CHBTCAT2 D24 | S17: 78.82 | T17: 93.46499634 | V17: CHBTCAT2 D24 | W17: 92.633 | X17: 95.938797 | Z17: CHBTCAT2 D24 | AA17: 108.025 | AB17: 95.30020142 | AD17: CHBTCAT2 D24 | AE17: 279.478 | AF17: 284.7039948 | AL17: CHBTCAT2 D24 | AM17: 0 | AN17: 91.61399841 | AP17: CHBTCAT2 D24 | AQ17: 0 | AR17: 94.03849792 | AT17: CHBTCAT2 D24 | AU17: 0 | AV17: 90.40200043 | AX17: CHBTCAT2 D24 | AY17: 0 | AZ17: 276.0544968 | BG17: CHBTCAT2 D24 | BH17: 0 | BI17: 92.79229736 | BK17: CHBTCAT2 D24 | BL17: 0 | BM17: 92.17849731 | BO17: CHBTCAT2 D24 | BP17: 0 | BQ17: 79.85320282 | BS17: CHBTCAT2 D24 | BT17: 0 | BU17: 264.8239975 | CD17: CHBTCAT2 D24 | CE17: 13.7 | CF17: 90.96019745 | CH17: CHBTCAT2 D24 | CI17: 13.7 | CJ17: 87.44100189 | CL17: CHBTCAT2 D24 | CM17: 13.7 | CN17: 89.75740051 | CP17: CHBTCAT2 D24 | CQ17: 0 | CR17: 316.7329025
A18: CHBTCAT3 D24 | B18: 156.852005 | C18: 160.9705963 | D18: 159.8701019 | E18: 153.6569977 | F18: 157.4304047 | G18: 151.3170013 | H18: 155.2976074 | I18: 154.2467041 | J18: 133.602005 | K18: 151.8162994 | L18: 145.9049988 | M18: 149.4199982 | N18: 1830.38472 | R18: CHBTCAT3 D24 | S18: 146.814 | T18: 156.852005 | V18: CHBTCAT3 D24 | W18: 152.336 | X18: 160.9705963 | Z18: CHBTCAT3 D24 | AA18: 162.037 | AB18: 159.8701019 | AD18: CHBTCAT3 D24 | AE18: 461.187 | AF18: 477.6927032 | AL18: CHBTCAT3 D24 | AM18: 0 | AN18: 153.6569977 | AP18: CHBTCAT3 D24 | AQ18: 0 | AR18: 157.4304047 | AT18: CHBTCAT3 D24 | AU18: 0 | AV18: 151.3170013 | AX18: CHBTCAT3 D24 | AY18: 0 | AZ18: 462.4044037 | BG18: CHBTCAT3 D24 | BH18: 0 | BI18: 155.2976074 | BK18: CHBTCAT3 D24 | BL18: 0 | BM18: 154.2467041 | BO18: CHBTCAT3 D24 | BP18: 0 | BQ18: 133.602005 | BS18: CHBTCAT3 D24 | BT18: 0 | BU18: 443.1463165 | CD18: CHBTCAT3 D24 | CE18: 14.7 | CF18: 151.8162994 | CH18: CHBTCAT3 D24 | CI18: 14.7 | CJ18: 145.9049988 | CL18: CHBTCAT3 D24 | CM18: 14.7 | CN18: 149.4199982 | CP18: CHBTCAT3 D24 | CQ18: 0 | CR18: 491.7114105
A19: DRY PINY MT | B19: 0 | C19: 0 | D19: 0 | E19: 0 | F19: 0 | G19: 5.105999947 | H19: 5.232800007 | I19: 5.189400196 | J19: 4.488399982 | K19: 5.105700016 | L19: 4.90199995 | M19: 5.025100231 | N19: 35.04940033 | R19: DRY PINY MT | S19: 4.242 | T19: 0 | V19: DRY PINY MT | W19: 4.202 | X19: 0 | Z19: DRY PINY MT | AA19: 4.305 | AB19: 0 | AD19: DRY PINY MT | AE19: 12.749 | AF19: 0 | AL19: DRY PINY MT | AM19: 0 | AN19: 0 | AP19: DRY PINY MT | AQ19: 0 | AR19: 0 | AT19: DRY PINY MT | AU19: 0 | AV19: 5.105999947 | AX19: DRY PINY MT | AY19: 0 | AZ19: 5.105999947 | BG19: DRY PINY MT | BH19: 0 | BI19: 5.232800007 | BK19: DRY PINY MT | BL19: 0 | BM19: 5.189400196 | BO19: DRY PINY MT | BP19: 0 | BQ19: 4.488399982 | BS19: DRY PINY MT | BT19: 0 | BU19: 14.91060019 | CD19: DRY PINY MT | CE19: 15.7 | CF19: 5.105700016 | CH19: DRY PINY MT | CI19: 15.7 | CJ19: 4.90199995 | CL19: DRY PINY MT | CM19: 15.7 | CN19: 5.025100231 | CP19: DRYPINY6 D24 | CQ19: 0 | CR19: 3.904399991
A20: DRYPINY6 D24 | B20: 1.026000023 | C20: 1.050899982 | D20: 1.041599989 | E20: 0.9990000129 | F20: 1.023000002 | G20: 0.9810000062 | H20: 1.004400015 | I20: 0.9951000214 | J20: 0.8596000075 | K20: 0.9764999747 | L20: 0.9359999895 | M20: 0.9610000253 | N20: 11.85410005 | R20: DRYPINY6 D24 | S20: 0.806 | T20: 1.026000023 | V20: DRYPINY6 D24 | W20: 0.729 | X20: 1.050899982 | Z20: DRYPINY6 D24 | AA20: 0.827 | AB20: 1.041599989 | AD20: DRYPINY6 D24 | AE20: 2.362 | AF20: 3.118499994 | AL20: DRYPINY6 D24 | AM20: 0 | AN20: 0.9990000129 | AP20: DRYPINY6 D24 | AQ20: 0 | AR20: 1.023000002 | AT20: DRYPINY6 D24 | AU20: 0 | AV20: 0.9810000062 | AX20: DRYPINY6 D24 | AY20: 0 | AZ20: 3.003000021 | BG20: DRYPINY6 D24 | BH20: 0 | BI20: 1.004400015 | BK20: DRYPINY6 D24 | BL20: 0 | BM20: 0.9951000214 | BO20: DRYPINY6 D24 | BP20: 0 | BQ20: 0.8596000075 | BS20: DRYPINY6 D24 | BT20: 0 | BU20: 2.859100044 | CD20: DRYPINY6 D24 | CE20: 16.7 | CF20: 0.9764999747 | CH20: DRYPINY6 D24 | CI20: 16.7 | CJ20: 0.9359999895 | CL20: DRYPINY6 D24 | CM20: 16.7 | CN20: 0.9610000253 | CP20: DRYPINYU D24 | CQ20: 0 | CR20: 21.70809984
A21: DRYPINYU D24 | B21: 1.835999966 | C21: 1.887899995 | D21: 1.878600001 | E21: 1.809000015 | F21: 1.860000014 | G21: 1.791000009 | H21: 1.841400027 | I21: 1.832100034 | J21: 1.590399981 | K21: 1.816599965 | L21: 1.748999953 | M21: 1.797999978 | N21: 21.68999994 | R21: DRYPINYU D24 | S21: 1.911 | T21: 1.835999966 | V21: DRYPINYU D24 | W21: 1.967 | X21: 1.887899995 | Z21: DRYPINYU D24 | AA21: 1.951 | AB21: 1.878600001 | AD21: DRYPINYU D24 | AE21: 5.829 | AF21: 5.602499962 | AL21: DRYPINYU D24 | AM21: 0 | AN21: 1.809000015 | AP21: DRYPINYU D24 | AQ21: 0 | AR21: 1.860000014 | AT21: DRYPINYU D24 | AU21: 0 | AV21: 1.791000009 | AX21: DRYPINYU D24 | AY21: 0 | AZ21: 5.460000038 | BG21: DRYPINYU D24 | BH21: 0 | BI21: 1.841400027 | BK21: DRYPINYU D24 | BL21: 0 | BM21: 1.832100034 | BO21: DRYPINYU D24 | BP21: 0 | BQ21: 1.590399981 | BS21: DRYPINYU D24 | BT21: 0 | BU21: 5.263900042 | CD21: DRYPINYU D24 | CE21: 17.7 | CF21: 1.816599965 | CH21: DRYPINYU D24 | CI21: 17.7 | CJ21: 1.748999953 | CL21: DRYPINYU D24 | CM21: 17.7 | CN21: 1.797999978 | CP21: HWA DEEP D24 | CQ21: 0 | CR21: 0
A22: HWA DEEP D24 | B22: 0.1410000026 | C22: 0.139500007 | D22: 0.1333000064 | E22: 0.1230000034 | F22: 0.123999998 | G22: 0.1140000001 | H22: 0.114699997 | I22: 0.1084999964 | J22: 0.0923999995 | K22: 0.09920000285 | L22: 0.09300000221 | M22: 0.09300000221 | N22: 1.375600018 | R22: HWA DEEP D24 | S22: 0.462 | T22: 0.1410000026 | V22: HWA DEEP D24 | W22: 0.344 | X22: 0.139500007 | Z22: HWA DEEP D24 | AA22: 0 | AB22: 0.1333000064 | AD22: HWA DEEP D24 | AE22: 0.806 | AF22: 0.413800016 | AL22: HWA DEEP D24 | AM22: 0 | AN22: 0.1230000034 | AP22: HWA DEEP D24 | AQ22: 0 | AR22: 0.123999998 | AT22: HWA DEEP D24 | AU22: 0 | AV22: 0.1140000001 | AX22: HWA DEEP D24 | AY22: 0 | AZ22: 0.3610000014 | BG22: HWA DEEP D24 | BH22: 0 | BI22: 0.114699997 | BK22: HWA DEEP D24 | BL22: 0 | BM22: 0.1084999964 | BO22: HWA DEEP D24 | BP22: 0 | BQ22: 0.0923999995 | BS22: HWA DEEP D24 | BT22: 0 | BU22: 0.3155999929 | CD22: HWA DEEP D24 | CE22: 18.7 | CF22: 0.09920000285 | CH22: HWA DEEP D24 | CI22: 18.7 | CJ22: 0.09300000221 | CL22: HWA DEEP D24 | CM22: 18.7 | CN22: 0.09300000221 | CP22: HWADEEPMTD24 | CQ22: 0 | CR22: 44.37110043
A23: HWA MT | B23: 2.811000109 | C23: 2.882999897 | D23: 2.861299992 | E23: 2.747999907 | F23: 2.817899942 | G23: 2.709000111 | H23: 2.77760005 | I23: 2.755899906 | J23: 2.38560009 | K23: 2.715600014 | L23: 2.607000113 | M23: 2.675299883 | N23: 32.74720001 | R23: HWA MT | S23: 2.909 | T23: 2.811000109 | V23: HWA MT | W23: 3.266 | X23: 2.882999897 | Z23: HWA MT | AA23: 3.26 | AB23: 2.861299992 | AD23: HWA MT | AE23: 9.435 | AF23: 8.555299997 | AL23: HWA MT | AM23: 0 | AN23: 2.747999907 | AP23: HWA MT | AQ23: 0 | AR23: 2.817899942 | AT23: HWA MT | AU23: 0 | AV23: 2.709000111 | AX23: HWA MT | AY23: 0 | AZ23: 8.27489996 | BG23: HWA MT | BH23: 0 | BI23: 2.77760005 | BK23: HWA MT | BL23: 0 | BM23: 2.755899906 | BO23: HWA MT | BP23: 0 | BQ23: 2.38560009 | BS23: HWA MT | BT23: 0 | BU23: 7.919100046 | CD23: HWA MT | CE23: 19.7 | CF23: 2.715600014 | CH23: HWA MT | CI23: 19.7 | CJ23: 2.607000113 | CL23: HWA MT | CM23: 19.7 | CN23: 2.675299883 | CP23: HWPL1&3MTD24 | CQ23: 0 | CR23: 24.84759998
A24: HWADEEPMTD24 | B24: 13.2869997 | C24: 13.64620018 | D24: 13.5656004 | E24: 13.04699993 | F24: 13.40130043 | G24: 12.89099979 | H24: 13.24009991 | I24: 13.15950012 | J24: 11.40719986 | K24: 12.9982996 | L24: 12.50399971 | M24: 12.84329987 | N24: 155.9904995 | R24: HWADEEPMTD24 | S24: 16.945 | T24: 13.2869997 | V24: HWADEEPMTD24 | W24: 16.376 | X24: 13.64620018 | Z24: HWADEEPMTD24 | AA24: 0 | AB24: 13.5656004 | AD24: HWADEEPMTD24 | AE24: 33.321 | AF24: 40.49880028 | AL24: HWADEEPMTD24 | AM24: 0 | AN24: 13.04699993 | AP24: HWADEEPMTD24 | AQ24: 0 | AR24: 13.40130043 | AT24: HWADEEPMTD24 | AU24: 0 | AV24: 12.89099979 | AX24: HWADEEPMTD24 | AY24: 0 | AZ24: 39.33930016 | BG24: HWADEEPMTD24 | BH24: 0 | BI24: 13.24009991 | BK24: HWADEEPMTD24 | BL24: 0 | BM24: 13.15950012 | BO24: HWADEEPMTD24 | BP24: 0 | BQ24: 11.40719986 | BS24: HWADEEPMTD24 | BT24: 0 | BU24: 37.80679989 | CD24: =A25 -> HWPL1&3MTD24 | CE24: 20.7 | CF24: =IFERROR(VLOOKUP($A25,$A$6:$M$119,11,FALSE),"") -> 7.576399803 | CH24: =A25 -> HWPL1&3MTD24 | CI24: 20.7 | CJ24: =IFERROR(VLOOKUP($A25,$A$6:$M$119,12,FALSE),"") -> 7.289999962 | CL24: =A25 -> HWPL1&3MTD24 | CM24: 20.7 | CN24: =IFERROR(VLOOKUP($A25,$A$6:$M$119,13,FALSE),"") -> 7.4927001 | CP24: HWPLT1&3 D24 | CQ24: 0 | CR24: 285.700798
A25: HWPL1&3MTD24 | B25: 7.710000038 | C25: 7.923600197 | D25: 7.880199909 | E25: 7.580999851 | F25: 7.790299892 | G25: 7.497000217 | H25: 7.703499794 | I25: 7.660099983 | J25: 6.64440012 | K25: 7.576399803 | L25: 7.289999962 | M25: 7.4927001 | N25: 90.74919987 | R25: HWPL1&3MTD24 | S25: 7.469 | T25: 7.710000038 | V25: HWPL1&3MTD24 | W25: 8.774 | X25: 7.923600197 | Z25: HWPL1&3MTD24 | AA25: 8.493 | AB25: 7.880199909 | AD25: HWPL1&3MTD24 | AE25: 24.736 | AF25: 23.51380014 | AL25: HWPL1&3MTD24 | AM25: 0 | AN25: 7.580999851 | AP25: HWPL1&3MTD24 | AQ25: 0 | AR25: 7.790299892 | AT25: HWPL1&3MTD24 | AU25: 0 | AV25: 7.497000217 | AX25: HWPL1&3MTD24 | AY25: 0 | AZ25: 22.86829996 | BG25: HWPL1&3MTD24 | BH25: 0 | BI25: 7.703499794 | BK25: HWPL1&3MTD24 | BL25: 0 | BM25: 7.660099983 | BO25: HWPL1&3MTD24 | BP25: 0 | BQ25: 6.64440012 | BS25: HWPL1&3MTD24 | BT25: 0 | BU25: 22.0079999 | CD25: HWPLT1&3 D24 | CE25: 21.7 | CF25: 72.85929871 | CH25: HWPLT1&3 D24 | CI25: 21.7 | CJ25: 69.73799896 | CL25: HWPLT1&3 D24 | CM25: 21.7 | CN25: 71.27210236 | CP25: HWPLT2 D24 | CQ25: 0 | CR25: 27.91779995
A26: HWPLT1&3 D24 | B26: 77.90399933 | C26: 79.61109924 | D26: 78.73069763 | E26: 75.35099792 | F26: 77.00090027 | G26: 73.69799805 | H26: 75.3144989 | I26: 74.48680115 | J26: 64.2460022 | K26: 72.85929871 | L26: 69.73799896 | M26: 71.27210236 | N26: 890.2123947 | R26: HWPLT1&3 D24 | S26: 77.469 | T26: 77.90399933 | V26: HWPLT1&3 D24 | W26: 88.022 | X26: 79.61109924 | Z26: HWPLT1&3 D24 | AA26: 87.575 | AB26: 78.73069763 | AD26: HWPLT1&3 D24 | AE26: 253.066 | AF26: 236.2457962 | AL26: HWPLT1&3 D24 | AM26: 0 | AN26: 75.35099792 | AP26: HWPLT1&3 D24 | AQ26: 0 | AR26: 77.00090027 | AT26: HWPLT1&3 D24 | AU26: 0 | AV26: 73.69799805 | AX26: HWPLT1&3 D24 | AY26: 0 | AZ26: 226.0498962 | BG26: HWPLT1&3 D24 | BH26: 0 | BI26: 75.3144989 | BK26: HWPLT1&3 D24 | BL26: 0 | BM26: 74.48680115 | BO26: HWPLT1&3 D24 | BP26: 0 | BQ26: 64.2460022 | BS26: HWPLT1&3 D24 | BT26: 0 | BU26: 214.0473022 | CD26: HWPLT2 D24 | CE26: 22.7 | CF26: 4.804999828 | CH26: HWPLT2 D24 | CI26: 22.7 | CJ26: 4.619999886 | CL26: HWPLT2 D24 | CM26: 22.7 | CN26: 4.743000031 | CP26: HWPLT2MT D24 | CQ26: 0 | CR26: 14.81040049
A27: HWPLT2 D24 | B27: 4.938000202 | C27: 5.068500042 | D27: 5.034399986 | E27: 4.842000008 | F27: 4.969299793 | G27: 4.776000023 | H27: 4.904200077 | I27: 4.870100021 | J27: 4.219600201 | K27: 4.804999828 | L27: 4.619999886 | M27: 4.743000031 | N27: 57.7901001 | R27: HWPLT2 D24 | S27: 8.167 | T27: 4.938000202 | V27: HWPLT2 D24 | W27: 8.321 | X27: 5.068500042 | Z27: HWPLT2 D24 | AA27: 7.369 | AB27: 5.034399986 | AD27: HWPLT2 D24 | AE27: 23.857 | AF27: 15.04090023 | AL27: HWPLT2 D24 | AM27: 0 | AN27: 4.842000008 | AP27: HWPLT2 D24 | AQ27: 0 | AR27: 4.969299793 | AT27: HWPLT2 D24 | AU27: 0 | AV27: 4.776000023 | AX27: HWPLT2 D24 | AY27: 0 | AZ27: 14.58729982 | BG27: HWPLT2 D24 | BH27: 0 | BI27: 4.904200077 | BK27: HWPLT2 D24 | BL27: 0 | BM27: 4.870100021 | BO27: HWPLT2 D24 | BP27: 0 | BQ27: 4.219600201 | BS27: HWPLT2 D24 | BT27: 0 | BU27: 13.9939003 | CD27: HWPLT2MT D24 | CE27: 23.7 | CF27: 3.977299929 | CH27: HWPLT2MT D24 | CI27: 23.7 | CJ27: 3.812999964 | CL27: HWPLT2MT D24 | CM27: 23.7 | CN27: 3.899800062 | CP27: ISLAND D24 | CQ27: 0 | CR27: 169.4888
A28: HWPLT2MT D24 | B28: 4.215000153 | C28: 4.312099934 | D28: 4.268700123 | E28: 4.089000225 | F28: 4.181900024 | G28: 4.007999897 | H28: 4.098199844 | I28: 4.057899952 | J28: 3.502799988 | K28: 3.977299929 | L28: 3.812999964 | M28: 3.899800062 | N28: 48.42370009 | R28: HWPLT2MT D24 | S28: 3.029 | T28: 4.215000153 | V28: HWPLT2MT D24 | W28: 3.294 | X28: 4.312099934 | Z28: HWPLT2MT D24 | AA28: 3.197 | AB28: 4.268700123 | AD28: HWPLT2MT D24 | AE28: 9.52 | AF28: 12.79580021 | AL28: HWPLT2MT D24 | AM28: 0 | AN28: 4.089000225 | AP28: HWPLT2MT D24 | AQ28: 0 | AR28: 4.181900024 | AT28: HWPLT2MT D24 | AU28: 0 | AV28: 4.007999897 | AX28: HWPLT2MT D24 | AY28: 0 | AZ28: 12.27890015 | BG28: HWPLT2MT D24 | BH28: 0 | BI28: 4.098199844 | BK28: HWPLT2MT D24 | BL28: 0 | BM28: 4.057899952 | BO28: HWPLT2MT D24 | BP28: 0 | BQ28: 3.502799988 | BS28: HWPLT2MT D24 | BT28: 0 | BU28: 11.65889978 | CD28: ISLAND D24 | CE28: 24.7 | CF28: 48.95830154 | CH28: ISLAND D24 | CI28: 24.7 | CJ28: 46.45500183 | CL28: ISLAND D24 | CM28: 24.7 | CN28: 47.68109894 | CP28: JNSNRDG D24 | CQ28: 0 | CR28: 6.609999895
A29: ISLAND D24 | B29: 52.90499878 | C29: 53.67649841 | D29: 53.31069946 | E29: 51.24000168 | F29: 52.58530045 | G29: 50.54399872 | H29: 51.87229919 | I29: 50.25719833 | J29: 42.98559952 | K29: 48.95830154 | L29: 46.45500183 | M29: 47.68109894 | N29: 602.4709969 | R29: ISLAND D24 | S29: 48.96 | T29: 52.90499878 | V29: ISLAND D24 | W29: 46.465 | X29: 53.67649841 | Z29: ISLAND D24 | AA29: 46.34 | AB29: 53.31069946 | AD29: ISLAND D24 | AE29: 141.765 | AF29: 159.8921967 | AL29: ISLAND D24 | AM29: 0 | AN29: 51.24000168 | AP29: ISLAND D24 | AQ29: 0 | AR29: 52.58530045 | AT29: ISLAND D24 | AU29: 0 | AV29: 50.54399872 | AX29: ISLAND D24 | AY29: 0 | AZ29: 154.3693008 | BG29: ISLAND D24 | BH29: 0 | BI29: 51.87229919 | BK29: ISLAND D24 | BL29: 0 | BM29: 50.25719833 | BO29: ISLAND D24 | BP29: 0 | BQ29: 42.98559952 | BS29: ISLAND D24 | BT29: 0 | BU29: 145.115097 | CD29: JNSNRDG D24 | CE29: 25.7 | CF29: 2.089400053 | CH29: JNSNRDG D24 | CI29: 25.7 | CJ29: 2.013000011 | CL29: JNSNRDG D24 | CM29: 25.7 | CN29: 2.073899984 | CP29: JRDG WFS D24 | CQ29: 0 | CR29: 7.087299824
A30: JNSNRDG D24 | B30: 2.096999884 | C30: 2.157599926 | D30: 2.148299932 | E30: 2.072999954 | F30: 2.132800102 | G30: 2.055000067 | H30: 2.114200115 | I30: 2.10800004 | J30: 1.828400016 | K30: 2.089400053 | L30: 2.013000011 | M30: 2.073899984 | N30: 24.89060009 | R30: JNSNRDG D24 | S30: 5.517 | T30: 2.096999884 | V30: JNSNRDG D24 | W30: 3.347 | X30: 2.157599926 | Z30: JNSNRDG D24 | AA30: 2.897 | AB30: 2.148299932 | AD30: JNSNRDG D24 | AE30: 11.761 | AF30: 6.402899742 | AL30: JNSNRDG D24 | AM30: 0 | AN30: 2.072999954 | AP30: JNSNRDG D24 | AQ30: 0 | AR30: 2.132800102 | AT30: JNSNRDG D24 | AU30: 0 | AV30: 2.055000067 | AX30: JNSNRDG D24 | AY30: 0 | AZ30: 6.260800123 | BG30: JNSNRDG D24 | BH30: 0 | BI30: 2.114200115 | BK30: JNSNRDG D24 | BL30: 0 | BM30: 2.10800004 | BO30: JNSNRDG D24 | BP30: 0 | BQ30: 1.828400016 | BS30: JNSNRDG D24 | BT30: 0 | BU30: 6.050600171 | CD30: JRDG WFS D24 | CE30: 26.7 | CF30: 2.659800053 | CH30: JRDG WFS D24 | CI30: 26.7 | CJ30: 2.559000015 | CL30: JRDG WFS D24 | CM30: 26.7 | CN30: 2.628799915 | CP30: KNY FLD D24 | CQ30: 0 | CR30: 53.44070053
A31: JRDG WFS D24 | B31: 2.720999956 | C31: 2.796200037 | D31: 2.77760005 | E31: 2.673000097 | F31: 2.743499994 | G31: 2.640000105 | H31: 2.709399939 | I31: 2.693900108 | J31: 2.335200071 | K31: 2.659800053 | L31: 2.559000015 | M31: 2.628799915 | N31: 31.93740034 | R31: JRDG WFS D24 | S31: 6.959 | T31: 2.720999956 | V31: JRDG WFS D24 | W31: 4.424 | X31: 2.796200037 | Z31: JRDG WFS D24 | AA31: 3.786 | AB31: 2.77760005 | AD31: JRDG WFS D24 | AE31: 15.169 | AF31: 8.294800043 | AL31: JRDG WFS D24 | AM31: 0 | AN31: 2.673000097 | AP31: JRDG WFS D24 | AQ31: 0 | AR31: 2.743499994 | AT31: JRDG WFS D24 | AU31: 0 | AV31: 2.640000105 | AX31: JRDG WFS D24 | AY31: 0 | AZ31: 8.056500196 | BG31: JRDG WFS D24 | BH31: 0 | BI31: 2.709399939 | BK31: JRDG WFS D24 | BL31: 0 | BM31: 2.693900108 | BO31: JRDG WFS D24 | BP31: 0 | BQ31: 2.335200071 | BS31: JRDG WFS D24 | BT31: 0 | BU31: 7.738500118 | CD31: KNY FLD D24 | CE31: 27.7 | CF31: 14.6196003 | CH31: KNY FLD D24 | CI31: 27.7 | CJ31: 14.0369997 | CL31: KNY FLD D24 | CM31: 27.7 | CN31: 14.39330006 | CP31: MESA D24 | CQ31: 0 | CR31: 2634.647339
A32: KNY FLD D24 | B32: 15.23099995 | C32: 15.60540009 | D32: 15.4751997 | E32: 14.85299969 | F32: 15.22099972 | G32: 14.60999966 | H32: 14.97299957 | I32: 14.85519981 | J32: 12.85200024 | K32: 14.6196003 | L32: 14.0369997 | M32: 14.39330006 | N32: 176.7256985 | R32: KNY FLD D24 | S32: 9.682 | T32: 15.23099995 | V32: KNY FLD D24 | W32: 7.419 | X32: 15.60540009 | Z32: KNY FLD D24 | AA32: 8.441 | AB32: 15.4751997 | AD32: KNY FLD D24 | AE32: =SUM(S32,W32,AA32) -> 25.542 | AF32: =SUM(T32,X32,AB32) -> 46.31159973 | AL32: KNY FLD D24 | AM32: 0 | AN32: 14.85299969 | AP32: KNY FLD D24 | AQ32: 0 | AR32: 15.22099972 | AT32: KNY FLD D24 | AU32: 0 | AV32: 14.60999966 | AX32: KNY FLD D24 | AY32: 0 | AZ32: 44.68399906 | BG32: KNY FLD D24 | BH32: 0 | BI32: 14.97299957 | BK32: KNY FLD D24 | BL32: 0 | BM32: 14.85519981 | BO32: KNY FLD D24 | BP32: 0 | BQ32: 12.85200024 | BS32: KNY FLD D24 | BT32: 0 | BU32: 42.68019962 | CD32: MESA D24 | CE32: 28.7 | CF32: 713.9547729 | CH32: MESA D24 | CI32: 28.7 | CJ32: 684.4140015 | CL32: MESA D24 | CM32: 28.7 | CN32: 700.5906982 | CP32: MOSUMT D24 | CQ32: 0 | CR32: 3.103399992
A33: MESA D24 | B33: 755.4780273 | C33: 772.9229736 | D33: 765.3156128 | E33: 733.3829956 | F33: 750.463501 | G33: 719.2379761 | H33: 736.0733032 | I33: 729.0424805 | J33: 629.7368164 | K33: 713.9547729 | L33: 684.4140015 | M33: 700.5906982 | N33: 8690.613159 | R33: MESA D24 | S33: 706.507 | T33: 755.4780273 | V33: MESA D24 | W33: 736.877 | X33: 772.9229736 | Z33: MESA D24 | AA33: 723.381 | AB33: 765.3156128 | AD33: MESA D24 | AE33: 2166.765 | AF33: 2293.716614 | AL33: MESA D24 | AM33: 0 | AN33: 733.3829956 | AP33: MESA D24 | AQ33: 0 | AR33: 750.463501 | AT33: MESA D24 | AU33: 0 | AV33: 719.2379761 | AX33: MESA D24 | AY33: 0 | AZ33: 2203.084473 | BG33: MESA D24 | BH33: 0 | BI33: 736.0733032 | BK33: MESA D24 | BL33: 0 | BM33: 729.0424805 | BO33: MESA D24 | BP33: 0 | BQ33: 629.7368164 | BS33: MESA D24 | BT33: 0 | BU33: 2094.8526 | CD33: MOSUMT D24 | CE33: 29.7 | CF33: 1.119099975 | CH33: MOSUMT D24 | CI33: 29.7 | CJ33: 1.062000036 | CL33: MOSUMT D24 | CM33: 29.7 | CN33: 1.078799963 | CP33: PDW1A1B D24 | CQ33: 0 | CR33: 5.689200044
A34: MOSUMT D24 | B34: 0 | C34: 0 | D34: 0 | E34: 0 | F34: 0 | G34: 1.164000034 | H34: 1.181100011 | I34: 1.159399986 | J34: 0.9940000176 | K34: 1.119099975 | L34: 1.062000036 | M34: 1.078799963 | N34: 7.758400023 | R34: MOSUMT D24 | S34: 0.683 | T34: 0 | V34: MOSUMT D24 | W34: 1.149 | X34: 0 | Z34: MOSUMT D24 | AA34: 1.119 | AB34: 0 | AD34: MOSUMT D24 | AE34: 2.951 | AF34: 0 | AL34: MOSUMT D24 | AM34: 0 | AN34: 0 | AP34: MOSUMT D24 | AQ34: 0 | AR34: 0 | AT34: MOSUMT D24 | AU34: 0 | AV34: 1.164000034 | AX34: MOSUMT D24 | AY34: 0 | AZ34: 1.164000034 | BG34: MOSUMT D24 | BH34: 0 | BI34: 1.181100011 | BK34: MOSUMT D24 | BL34: 0 | BM34: 1.159399986 | BO34: MOSUMT D24 | BP34: 0 | BQ34: 0.9940000176 | BS34: MOSUMT D24 | BT34: 0 | BU34: 3.334500015 | CD34: PDW MT | CE34: 30.7 | CF34: 187.673996 | CH34: PDW MT | CI34: 30.7 | CJ34: 180.1829987 | CL34: PDW MT | CM34: 30.7 | CN34: 184.7290039 | CP34: PDWCUT D24 | CQ34: 0 | CR34: 290.959404
A35: PDW MT | B35: 195.8880005 | C35: 200.6134033 | D35: 198.8650055 | E35: 190.8000031 | F35: 195.4983978 | G35: 187.6170044 | H35: 192.2774963 | I35: 190.7151031 | J35: 164.9815979 | K35: 187.673996 | L35: 180.1829987 | M35: 184.7290039 | N35: 2269.84201 | R35: PDW MT | S35: 187.392 | T35: 195.8880005 | V35: PDW MT | W35: 202.647 | X35: 200.6134033 | Z35: PDW MT | AA35: 198.192 | AB35: 198.8650055 | AD35: PDW MT | AE35: 588.231 | AF35: 595.3664093 | AL35: PDW MT | AM35: 0 | AN35: 190.8000031 | AP35: PDW MT | AQ35: 0 | AR35: 195.4983978 | AT35: PDW MT | AU35: 0 | AV35: 187.6170044 | AX35: PDW MT | AY35: =SUM(AM35,AQ35,AU35) -> 0 | AZ35: =SUM(AN35,AR35,AV35) -> 573.9154053 | BG35: PDW MT | BH35: 0 | BI35: 192.2774963 | BK35: PDW MT | BL35: 0 | BM35: 190.7151031 | BO35: PDW MT | BP35: 0 | BQ35: 164.9815979 | BS35: PDW MT | BT35: 0 | BU35: 547.9741974 | CD35: PDW1A1B D24 | CE35: 31.7 | CF35: 0.5734999776 | CH35: PDW1A1B D24 | CI35: 31.7 | CJ35: 0.5490000248 | CL35: PDW1A1B D24 | CM35: 31.7 | CN35: 0.5641999841 | CP35: PDWMT D24 | CQ35: 0 | CR35: 82.17730141
A36: PDW1A1B D24 | B36: 0.5879999995 | C36: 0.6044999957 | D36: 0.6014000177 | E36: 0.5759999752 | F36: 0.5921000242 | G36: 0.5699999928 | H36: 0.5827999711 | I36: 0.5796999931 | J36: 0.5012000203 | K36: 0.5734999776 | L36: 0.5490000248 | M36: 0.5641999841 | N36: 6.882399976 | R36: PDW1A1B D24 | S36: 0.185 | T36: 0.5879999995 | V36: PDW1A1B D24 | W36: 0.267 | X36: 0.6044999957 | Z36: PDW1A1B D24 | AA36: 0.199 | AB36: 0.6014000177 | AD36: PDW1A1B D24 | AE36: 0.651 | AF36: 1.793900013 | AL36: PDW1A1B D24 | AM36: 0 | AN36: 0.5759999752 | AP36: PDW1A1B D24 | AQ36: 0 | AR36: 0.5921000242 | AT36: PDW1A1B D24 | AU36: 0 | AV36: 0.5699999928 | AX36: PDW1A1B D24 | AY36: 0 | AZ36: 1.738099992 | BG36: PDW1A1B D24 | BH36: 0 | BI36: 0.5827999711 | BK36: PDW1A1B D24 | BL36: 0 | BM36: 0.5796999931 | BO36: PDW1A1B D24 | BP36: 0 | BQ36: 0.5012000203 | BS36: PDW1A1B D24 | BT36: 0 | BU36: 1.663699985 | CD36: PDWCUT D24 | CE36: 32.7 | CF36: 1.463199973 | CH36: PDWCUT D24 | CI36: 32.7 | CJ36: 1.406999946 | CL36: PDWCUT D24 | CM36: 32.7 | CN36: 1.447700024 | CP36: PDWPLT2 D24 | CQ36: 0 | CR36: 233.3149948
A37: PDWCUT D24 | B37: 0 | C37: 0 | D37: 0 | E37: 0 | F37: 0 | G37: 1.440000057 | H37: 1.48179996 | I37: 1.475600004 | J37: 1.279600024 | K37: 1.463199973 | L37: 1.406999946 | M37: 1.447700024 | N37: 9.994899988 | R37: PDWCUT D24 | S37: 0.799 | T37: 0 | V37: PDWCUT D24 | W37: 1.122 | X37: 0 | Z37: PDWCUT D24 | AA37: 0 | AB37: 0 | AD37: PDWCUT D24 | AE37: 1.921 | AF37: 0 | AL37: PDWCUT D24 | AM37: 0 | AN37: 0 | AP37: PDWCUT D24 | AQ37: 0 | AR37: 0 | AT37: PDWCUT D24 | AU37: 0 | AV37: 1.440000057 | AX37: PDWCUT D24 | AY37: 0 | AZ37: 1.440000057 | BG37: PDWCUT D24 | BH37: 0 | BI37: 1.48179996 | BK37: PDWCUT D24 | BL37: 0 | BM37: 1.475600004 | BO37: PDWCUT D24 | BP37: 0 | BQ37: 1.279600024 | BS37: PDWCUT D24 | BT37: 0 | BU37: 4.236999989 | CD37: PDWMT D24 | CE37: 33.7 | CF37: 26.03380013 | CH37: PDWMT D24 | CI37: 33.7 | CJ37: 24.98999977 | CL37: PDWMT D24 | CM37: 33.7 | CN37: 25.61529922 | CP37: PDWPLT3 D24 | CQ37: 0 | CR37: 33.02519989
A38: PDWMT D24 | B38: 27.22800064 | C38: 27.87829971 | D38: 27.63030052 | E38: 26.50499916 | F38: 27.14979935 | G38: 26.04899979 | H38: 26.69099998 | I38: 26.46780014 | J38: 22.88999939 | K38: 26.03380013 | L38: 24.98999977 | M38: 25.61529922 | N38: 315.1282978 | R38: PDWMT D24 | S38: 22.042 | T38: =IFERROR(VLOOKUP(R38,$A$6:$M$119,2,FALSE),"") -> 27.22800064 | V38: PDWMT D24 | W38: =IFERROR(VLOOKUP(V38,$V$116:$W$210,2,FALSE),0) -> 19.511 | X38: =IFERROR(VLOOKUP(V38,$A$6:$M$119,3,FALSE),"") -> 27.87829971 | Z38: PDWMT D24 | AA38: =IFERROR(VLOOKUP(A38,$Z$116:$AA$210,2,FALSE),0) -> 18.399 | AB38: =IFERROR(VLOOKUP(Z38,$A$6:$M$119,4,FALSE),"") -> 27.63030052 | AD38: PDWMT D24 | AE38: 59.952 | AF38: 82.73660088 | AL38: PDWMT D24 | AM38: =IFERROR(VLOOKUP(AL38,$AL$116:$AM$206,2,FALSE),0) -> 0 | AN38: =IFERROR(VLOOKUP(AL38,$A$6:$M$119,5,FALSE),"") -> 26.50499916 | AP38: PDWMT D24 | AQ38: =IFERROR(VLOOKUP(AP38,$AP$116:$AQ$215,2,FALSE),0) -> 0 | AR38: =IFERROR(VLOOKUP($AP38,$A$6:$M$119,6,FALSE),"") -> 27.14979935 | AT38: PDWMT D24 | AU38: =IFERROR(VLOOKUP(AT38,$AT$116:$AU$208,2,FALSE),0) -> 0 | AV38: =IFERROR(VLOOKUP($AT38,$A$6:$M$119,7,FALSE),"") -> 26.04899979 | AX38: PDWMT D24 | AY38: 0 | AZ38: 79.70379829 | BG38: PDWMT D24 | BH38: =IFERROR(VLOOKUP($BG38,$BG$114:$BH$209,2,FALSE),0) -> 0 | BI38: =IFERROR(VLOOKUP($BG38,$A$6:$M$119,8,FALSE),"") -> 26.69099998 | BK38: PDWMT D24 | BL38: =IFERROR(VLOOKUP($BK38,$BK$114:$BL$209,2,FALSE),0) -> 0 | BM38: =IFERROR(VLOOKUP($BK38,$A$6:$M$119,9,FALSE),"") -> 26.46780014 | BO38: =A38 -> PDWMT D24 | BP38: =IFERROR(VLOOKUP($BO38,$BO$114:$BP$209,2,FALSE),0) -> 0 | BQ38: =IFERROR(VLOOKUP($BO38,$A$6:$M$119,10,FALSE),0) -> 22.88999939 | BS38: =A38 -> PDWMT D24 | BT38: =SUM(BH38,BL38,BP38) -> 0 | BU38: =SUM(BI38,BM38,BQ38) -> 76.04879951 | CD38: PDWPLT2 D24 | CE38: 34.7 | CF38: 4.550799847 | CH38: PDWPLT2 D24 | CI38: 34.7 | CJ38: 4.376999855 | CL38: PDWPLT2 D24 | CM38: 34.7 | CN38: 4.494999886 | CP38: SGRLF D24 | CQ38: 0 | CR38: 5.275200009
A39: PDWPLT2 D24 | B39: 4.652999878 | C39: 4.780200005 | D39: 4.749199867 | E39: 4.568999767 | F39: 4.690299988 | G39: 4.512000084 | H39: 4.634500027 | I39: 4.606599808 | J39: 3.992799997 | K39: 4.550799847 | L39: 4.376999855 | M39: 4.494999886 | N39: 54.61039901 | R39: PDWPLT2 D24 | S39: =IFERROR(VLOOKUP(R39,$R$116:$S$210,2,FALSE),0) -> 4.2 | T39: 4.652999878 | V39: PDWPLT2 D24 | W39: 5.157 | X39: 4.780200005 | Z39: PDWPLT2 D24 | AA39: 4.914 | AB39: 4.749199867 | AD39: PDWPLT2 D24 | AE39: 14.271 | AF39: 14.18239975 | AL39: PDWPLT2 D24 | AM39: 0 | AN39: 4.568999767 | AP39: PDWPLT2 D24 | AQ39: 0 | AR39: 4.690299988 | AT39: PDWPLT2 D24 | AU39: 0 | AV39: 4.512000084 | AX39: PDWPLT2 D24 | AY39: 0 | AZ39: 13.77129984 | BG39: PDWPLT2 D24 | BH39: 0 | BI39: 4.634500027 | BK39: PDWPLT2 D24 | BL39: 0 | BM39: 4.606599808 | BO39: PDWPLT2 D24 | BP39: 0 | BQ39: 3.992799997 | BS39: PDWPLT2 D24 | BT39: 0 | BU39: 13.23389983 | CD39: SGRLF D24 | CE39: 35.7 | CF39: 1.643000007 | CH39: SGRLF D24 | CI39: 35.7 | CJ39: 1.577999949 | CL39: SGRLF D24 | CM39: 35.7 | CN39: 1.618199944 | CP39: SGRLFMT D24 | CQ39: 0 | CR39: 30.96720028
A40: SGRLF D24 | B40: 1.692000031 | C40: 1.735999942 | D40: 1.72360003 | E40: 1.656000018 | F40: 1.698799968 | G40: 1.63499999 | H40: 1.677099943 | I40: 1.664700031 | J40: 1.442000031 | K40: 1.643000007 | L40: 1.577999949 | M40: 1.618199944 | N40: 19.76439989 | R40: SGRLF D24 | S40: 1.115 | T40: 1.692000031 | V40: SGRLF D24 | W40: 1.351 | X40: 1.735999942 | Z40: SGRLF D24 | AA40: 0 | AB40: 1.72360003 | AD40: SGRLF D24 | AE40: 2.466 | AF40: 5.151600003 | AL40: SGRLF D24 | AM40: 0 | AN40: 1.656000018 | AP40: SGRLF D24 | AQ40: 0 | AR40: 1.698799968 | AT40: SGRLF D24 | AU40: 0 | AV40: 1.63499999 | AX40: SGRLF D24 | AY40: 0 | AZ40: 4.989799976 | BG40: SGRLF D24 | BH40: 0 | BI40: 1.677099943 | BK40: SGRLF D24 | BL40: 0 | BM40: 1.664700031 | BO40: SGRLF D24 | BP40: 0 | BQ40: 1.442000031 | BS40: SGRLF D24 | BT40: 0 | BU40: 4.783800006 | CD40: SGRLFMT D24 | CE40: 36.7 | CF40: 10.0781002 | CH40: SGRLFMT D24 | CI40: 36.7 | CJ40: 9.687000275 | CL40: SGRLFMT D24 | CM40: 36.7 | CN40: 9.938599586 | CP40: TRAIL D24 | CQ40: 0 | CR40: 1088.497711
A41: SGRLFMT D24 | B41: 10.38300037 | C41: 10.65470028 | D41: 10.58030033 | E41: 10.17000008 | F41: 10.43459988 | G41: 10.02900028 | H41: 10.29199982 | I41: 10.22070026 | J41: 8.850799561 | K41: 10.0781002 | L41: 9.687000275 | M41: 9.938599586 | N41: 121.3188009 | R41: SGRLFMT D24 | S41: 21.869 | T41: 10.38300037 | V41: SGRLFMT D24 | W41: 16.974 | X41: 10.65470028 | Z41: SGRLFMT D24 | AA41: 0 | AB41: 10.58030033 | AD41: SGRLFMT D24 | AE41: 38.843 | AF41: 31.61800098 | AL41: SGRLFMT D24 | AM41: 0 | AN41: 10.17000008 | AP41: SGRLFMT D24 | AQ41: 0 | AR41: 10.43459988 | AT41: SGRLFMT D24 | AU41: 0 | AV41: 10.02900028 | AX41: SGRLFMT D24 | AY41: 0 | AZ41: 30.63360023 | BG41: SGRLFMT D24 | BH41: 0 | BI41: 10.29199982 | BK41: SGRLFMT D24 | BL41: 0 | BM41: 10.22070026 | BO41: SGRLFMT D24 | BP41: 0 | BQ41: 8.850799561 | BS41: SGRLFMT D24 | BT41: 0 | BU41: 29.36349964 | CD41: TRAIL D24 | CE41: 37.7 | CF41: 330.7575989 | CH41: TRAIL D24 | CI41: 37.7 | CJ41: 315.7619934 | CL41: TRAIL D24 | CM41: 37.7 | CN41: 321.9908142 | CP41: TRAILMT D24 | CQ41: 0 | CR41: 198.712101
A42: TRAIL D24 | B42: 370.32901 | C42: 375.4317017 | D42: 368.6830139 | E42: 350.6669922 | F42: 356.3945923 | G42: 339.4349976 | H42: 345.3927002 | I42: 340.2901001 | J42: 292.5132141 | K42: 330.7575989 | L42: 315.7619934 | M42: 321.9908142 | N42: 4107.646729 | R42: TRAIL D24 | S42: 403.745 | T42: 370.32901 | V42: TRAIL D24 | W42: 295.407 | X42: 375.4317017 | Z42: =R42 -> TRAIL D24 | AA42: 299.98 | AB42: 368.6830139 | AD42: TRAIL D24 | AE42: 999.132 | AF42: 1114.443726 | AL42: TRAIL D24 | AM42: 0 | AN42: 350.6669922 | AP42: TRAIL D24 | AQ42: 0 | AR42: 356.3945923 | AT42: TRAIL D24 | AU42: 0 | AV42: 339.4349976 | AX42: TRAIL D24 | AY42: 0 | AZ42: 1046.496582 | BG42: TRAIL D24 | BH42: 0 | BI42: 345.3927002 | BK42: TRAIL D24 | BL42: 0 | BM42: 340.2901001 | BO42: TRAIL D24 | BP42: 0 | BQ42: 292.5132141 | BS42: TRAIL D24 | BT42: 0 | BU42: 978.1960144 | CD42: TRAILMT D24 | CE42: 38.7 | CF42: 51.80720139 | CH42: TRAILMT D24 | CI42: 38.7 | CJ42: 49.54499817 | CL42: TRAILMT D24 | CM42: 38.7 | CN42: 50.61059952 | CP42: WHLA D24 | CQ42: 0 | CR42: 102.9545994
A43: TRAILMT D24 | B43: 56.68799973 | C43: 57.6631012 | D43: 56.80130005 | E43: 54.18299866 | F43: 55.21409988 | G43: 52.71900177 | H43: 53.76639938 | I43: 53.08750153 | J43: 45.72679901 | K43: 51.80720139 | L43: 49.54499817 | M43: 50.61059952 | N43: 637.8120003 | R43: TRAILMT D24 | S43: 51.382 | T43: 56.68799973 | V43: TRAILMT D24 | W43: 51.208 | X43: 57.6631012 | Z43: TRAILMT D24 | AA43: 51.99 | AB43: 56.80130005 | AD43: TRAILMT D24 | AE43: 154.58 | AF43: 171.152401 | AL43: TRAILMT D24 | AM43: 0 | AN43: 54.18299866 | AP43: TRAILMT D24 | AQ43: 0 | AR43: 55.21409988 | AT43: TRAILMT D24 | AU43: 0 | AV43: 52.71900177 | AX43: TRAILMT D24 | AY43: 0 | AZ43: 162.1161003 | BG43: TRAILMT D24 | BH43: 0 | BI43: 53.76639938 | BK43: TRAILMT D24 | BL43: 0 | BM43: 53.08750153 | BO43: TRAILMT D24 | BP43: 0 | BQ43: 45.72679901 | BS43: TRAILMT D24 | BT43: 0 | BU43: 152.5806999 | CD43: WHLA D24 | CE43: 39.7 | CF43: 29.8715992 | CH43: WHLA D24 | CI43: 39.7 | CJ43: 28.69199944 | CL43: WHLA D24 | CM43: 39.7 | CN43: 29.4314003 | CP43: WWILSON D24 | CQ43: 0 | CR43: 10.05229974
A44: WHLA D24 | B44: 0 | C44: 0 | D44: 0 | E44: 0 | F44: 0 | G44: 0 | H44: 30.54430008 | I44: 30.31800079 | J44: 26.24440002 | K44: 29.8715992 | L44: 28.69199944 | M44: 29.4314003 | N44: 175.1016998 | R44: WHLA D24 | S44: 40.487 | T44: 0 | V44: WHLA D24 | W44: 43.626 | X44: 0 | Z44: WHLA D24 | AA44: 41.535 | AB44: 0 | AD44: WHLA D24 | AE44: 125.648 | AF44: 0 | AL44: WHLA D24 | AM44: 0 | AN44: 0 | AP44: WHLA D24 | AQ44: 0 | AR44: 0 | AT44: WHLA D24 | AU44: 0 | AV44: 0 | AX44: WHLA D24 | AY44: 0 | AZ44: 0 | BG44: WHLA D24 | BH44: 0 | BI44: 30.54430008 | BK44: =R44 -> WHLA D24 | BL44: 0 | BM44: 30.31800079 | BO44: WHLA D24 | BP44: 0 | BQ44: 26.24440002 | BS44: WHLA D24 | BT44: 0 | BU44: 87.1067009 | CD44: WWILSON D24 | CE44: 40.7 | CF44: 3.310800076 | CH44: WWILSON D24 | CI44: 40.7 | CJ44: 3.183000088 | CL44: WWILSON D24 | CM44: 40.7 | CN44: 3.267400026 | CP44: ACEJD PC | CQ44: 0 | CR44: 0
A45: WWILSON D24 | B45: 0 | C45: 0 | D45: 0 | E45: 0 | F45: 0 | G45: 3.288000107 | H45: 3.37590003 | I45: 3.354199886 | J45: 2.906399965 | K45: 3.310800076 | L45: 3.183000088 | M45: 3.267400026 | N45: 22.68570018 | R45: WWILSON D24 | S45: 3.395 | T45: 0 | V45: WWILSON D24 | W45: 3.742 | X45: 0 | Z45: WWILSON D24 | AA45: 3.493 | AB45: 0 | AD45: WWILSON D24 | AE45: 10.63 | AF45: 0 | AL45: WWILSON D24 | AM45: 0 | AN45: 0 | AP45: WWILSON D24 | AQ45: 0 | AR45: 0 | AT45: WWILSON D24 | AU45: 0 | AV45: 3.288000107 | AX45: WWILSON D24 | AY45: 0 | AZ45: 3.288000107 | BG45: WWILSON D24 | BH45: 0 | BI45: 3.37590003 | BK45: WWILSON D24 | BL45: 0 | BM45: 3.354199886 | BO45: WWILSON D24 | BP45: 0 | BQ45: 2.906399965 | BS45: WWILSON D24 | BT45: 0 | BU45: 9.636499882 | CD45: ACEJDMT PC | CE45: 41.7 | CF45: 3.636300087 | CH45: ACEJDMT PC | CI45: 41.7 | CJ45: 3.500999928 | CL45: ACEJDMT PC | CM45: 41.7 | CN45: 3.602200031 | CP45: ACEJDMT PC | CQ45: 0 | CR45: 11.64780045
A46: ACEJDMT PC | B46: 3.66899991 | C46: 3.77579999 | D46: 3.757200003 | E46: 3.618000031 | F46: 3.723099947 | G46: 3.585000038 | H46: 3.688999891 | I46: 3.670399904 | J46: 3.186399937 | K46: 3.636300087 | L46: 3.500999928 | M46: 3.602200031 | N46: 43.4133997 | R46: ACEJDMT PC | S46: 3.443 | T46: 3.66899991 | V46: ACEJDMT PC | W46: 3.93 | X46: 3.77579999 | Z46: ACEJDMT PC | AA46: 2.512 | AB46: 3.757200003 | AD46: ACEJDMT PC | AE46: 9.885 | AF46: 11.2019999 | AL46: ACEJDMT PC | AM46: 0 | AN46: 3.618000031 | AP46: ACEJDMT PC | AQ46: 0 | AR46: 3.723099947 | AT46: ACEJDMT PC | AU46: 0 | AV46: 3.585000038 | AX46: ACEJDMT PC | AY46: 0 | AZ46: 10.92610002 | BG46: ACEJDMT PC | BH46: 0 | BI46: 3.688999891 | BK46: ACEJDMT PC | BL46: 0 | BM46: 3.670399904 | BO46: ACEJDMT PC | BP46: 0 | BQ46: 3.186399937 | BS46: ACEJDMT PC | BT46: 0 | BU46: 10.54579973 | CD46: BKSPUNT6MTPC | CE46: 42.7 | CF46: 2.690799952 | CH46: BKSPUNT6MTPC | CI46: 42.7 | CJ46: 2.592000008 | CL46: BKSPUNT6MTPC | CM46: 42.7 | CN46: 2.665999889 | CP46: BKSPUNT6MTPC | CQ46: 0 | CR46: 7.471199989
A47: BKSPUNT6MTPC | B47: 2.714999914 | C47: 2.793100119 | D47: 2.780699968 | E47: 2.678999901 | F47: 2.755899906 | G47: 2.654999971 | H47: 2.731100082 | I47: 2.715600014 | J47: 2.357599974 | K47: 2.690799952 | L47: 2.592000008 | M47: 2.665999889 | N47: 32.1317997 | R47: BKSPUNT6MTPC | S47: 5.84 | T47: 2.714999914 | V47: BKSPUNT6MTPC | W47: 3.016 | X47: 2.793100119 | Z47: BKSPUNT6MTPC | AA47: 2.403 | AB47: 2.780699968 | AD47: BKSPUNT6MTPC | AE47: 11.259 | AF47: 8.288800001 | AL47: BKSPUNT6MTPC | AM47: 0 | AN47: 2.678999901 | AP47: BKSPUNT6MTPC | AQ47: 0 | AR47: 2.755899906 | AT47: BKSPUNT6MTPC | AU47: 0 | AV47: 2.654999971 | AX47: BKSPUNT6MTPC | AY47: 0 | AZ47: 8.089899778 | BG47: BKSPUNT6MTPC | BH47: 0 | BI47: 2.731100082 | BK47: BKSPUNT6MTPC | BL47: 0 | BM47: 2.715600014 | BO47: BKSPUNT6MTPC | BP47: 0 | BQ47: 2.357599974 | BS47: BKSPUNT6MTPC | BT47: 0 | BU47: 7.80430007 | CD47: BRFM PC | CE47: 43.7 | CF47: 0.1363999993 | CH47: BRFM PC | CI47: 43.7 | CJ47: 0.1319999993 | CL47: BRFM PC | CM47: 43.7 | CN47: 0.1363999993 | CP47: BRFM PC | CQ47: 0 | CR47: 0.465200007
A48: BRFM PC | B48: 0.1410000026 | C48: 0.1456999928 | D48: 0.1456999928 | E48: 0.1379999965 | F48: 0.1425999999 | G48: 0.1379999965 | H48: 0.139500007 | I48: 0.139500007 | J48: 0.1203999966 | K48: 0.1363999993 | L48: 0.1319999993 | M48: 0.1363999993 | N48: 1.65519999 | R48: BRFM PC | S48: 0.161 | T48: 0.1410000026 | V48: BRFM PC | W48: 0.165 | X48: 0.1456999928 | Z48: BRFM PC | AA48: 0.154 | AB48: 0.1456999928 | AD48: BRFM PC | AE48: 0.48 | AF48: 0.4323999882 | AL48: BRFM PC | AM48: 0 | AN48: 0.1379999965 | AP48: BRFM PC | AQ48: 0 | AR48: 0.1425999999 | AT48: BRFM PC | AU48: 0 | AV48: 0.1379999965 | AX48: BRFM PC | AY48: 0 | AZ48: 0.418599993 | BG48: BRFM PC | BH48: 0 | BI48: 0.139500007 | BK48: BRFM PC | BL48: 0 | BM48: 0.139500007 | BO48: BRFM PC | BP48: 0 | BQ48: 0.1203999966 | BS48: BRFM PC | BT48: 0 | BU48: 0.3994000107 | CD48: BRFQ PC | CE48: 44.7 | CF48: 9.532500267 | CH48: BRFQ PC | CI48: 44.7 | CJ48: 9.177000046 | CL48: BRFQ PC | CM48: 44.7 | CN48: 9.433300018 | CP48: BRFQ PC | CQ48: 0 | CR48: 43.73929977
A49: BRFQ PC | B49: 9.687000275 | C49: 9.954099655 | D49: 9.898300171 | E49: 9.527999878 | F49: 9.792900085 | G49: 9.425999641 | H49: 9.6875 | I49: 9.634799957 | J49: 8.357999802 | K49: 9.532500267 | L49: 9.177000046 | M49: 9.433300018 | N49: 114.1093998 | R49: BRFQ PC | S49: 10.736 | T49: 9.687000275 | V49: BRFQ PC | W49: 12.339 | X49: 9.954099655 | Z49: BRFQ PC | AA49: 9.308 | AB49: 9.898300171 | AD49: BRFQ PC | AE49: 32.383 | AF49: 29.5394001 | AL49: BRFQ PC | AM49: 0 | AN49: 9.527999878 | AP49: BRFQ PC | AQ49: 0 | AR49: 9.792900085 | AT49: BRFQ PC | AU49: 0 | AV49: 9.425999641 | AX49: BRFQ PC | AY49: 0 | AZ49: 28.7468996 | BB49: IRP Variance | BC49: Docket No. 17-057-12 | BD49: Dominion Energy Utah | BG49: BRFQ PC | BH49: 0 | BI49: 9.6875 | BK49: BRFQ PC | BL49: 0 | BM49: 9.634799957 | BO49: BRFQ PC | BP49: 0 | BQ49: 8.357999802 | BS49: BRFQ PC | BT49: 0 | BU49: 27.68029976 | CD49: BRFQMT PC | CE49: 45.7 | CF49: 3.189899921 | CH49: BRFQMT PC | CI49: 45.7 | CJ49: 3.065999985 | CL49: BRFQMT PC | CM49: 45.7 | CN49: 3.143399954 | CP49: BRFQMT PC | CQ49: 0 | CR49: 10.74250007
A50: BRFQMT PC | B50: 3.285000086 | C50: 3.369699955 | D50: 3.34800005 | E50: 3.21600008 | F50: 3.301500082 | G50: 3.174000025 | H50: 3.255000114 | I50: 3.233299971 | J50: 2.799999952 | K50: 3.189899921 | L50: 3.065999985 | M50: 3.143399954 | N50: 38.38180017 | R50: BRFQMT PC | S50: 6.549 | T50: 3.285000086 | V50: BRFQMT PC | W50: 6.742 | X50: 3.369699955 | Z50: BRFQMT PC | AA50: 7.094 | AB50: 3.34800005 | AD50: BRFQMT PC | AE50: 20.385 | AF50: 10.00270009 | AL50: BRFQMT PC | AM50: 0 | AN50: 3.21600008 | AP50: BRFQMT PC | AQ50: 0 | AR50: 3.301500082 | AT50: BRFQMT PC | AU50: 0 | AV50: 3.174000025 | AX50: BRFQMT PC | AY50: 0 | AZ50: 9.691500187 | BC50: 0 | BD50: 0 | BG50: BRFQMT PC | BH50: 0 | BI50: 3.255000114 | BK50: BRFQMT PC | BL50: 0 | BM50: 3.233299971 | BO50: BRFQMT PC | BP50: 0 | BQ50: 2.799999952 | BS50: BRFQMT PC | BT50: 0 | BU50: 9.288300037 | CD50: BRFW PC | CE50: 46.7 | CF50: 9.588299751 | CH50: BRFW PC | CI50: 46.7 | CJ50: 9.227999687 | CL50: BRFW PC | CM50: 46.7 | CN50: 9.482899666 | CP50: BRFW PC | CQ50: 0 | CR50: 30.49769974
A51: BRFW PC | B51: 9.75 | C51: 10.01920033 | D51: 9.963399887 | E51: 9.590999603 | F51: 9.85490036 | G51: 9.486000061 | H51: 9.746399879 | I51: 9.693699837 | J51: 8.408399582 | K51: 9.588299751 | L51: 9.227999687 | M51: 9.482899666 | N51: 114.8121986 | R51: BRFW PC | S51: 10.184 | T51: 9.75 | V51: BRFW PC | W51: 11.794 | X51: 10.01920033 | Z51: BRFW PC | AA51: 11.536 | AB51: 9.963399887 | AD51: BRFW PC | AE51: 33.514 | AF51: 29.73260021 | AH51: ='Ex 1 HDD'!I3 -> IRP Variance Exhibit | AI51: ='Ex 1 HDD'!I2 -> Docket No. 20-057-02 | AJ51: ='Ex 1 HDD'!I1 -> Dominion Energy Utah | AL51: BRFW PC | AM51: 0 | AN51: 9.590999603 | AP51: BRFW PC | AQ51: 0 | AR51: 9.85490036 | AT51: BRFW PC | AU51: 0 | AV51: 9.486000061 | AX51: BRFW PC | AY51: 0 | AZ51: 28.93190002 | BC51: 0 | BD51: 0 | BG51: BRFW PC | BH51: 0 | BI51: 9.746399879 | BK51: BRFW PC | BL51: 0 | BM51: 9.693699837 | BO51: BRFW PC | BP51: 0 | BQ51: 8.408399582 | BS51: BRFW PC | BT51: 0 | BU51: 27.8484993 | CD51: BRUFF MT | CE51: 47.7 | CF51: 4.724400043 | CH51: BRUFF MT | CI51: 47.7 | CJ51: 4.545000076 | CL51: BRUFF MT | CM51: 47.7 | CN51: 4.665500164 | CP51: CBFR PC | CQ51: 0 | CR51: 171.4421997
A52: BRUFF MT | B52: 4.835999966 | C52: 4.966199875 | D52: 4.935200214 | E52: 4.745999813 | F52: 4.87319994 | G52: 4.68900013 | H52: 4.81430006 | I52: 4.783299923 | J52: 4.146800041 | K52: 4.724400043 | L52: 4.545000076 | M52: 4.665500164 | N52: 56.72490025 | R52: BRUFF MT | S52: 9.123 | T52: 4.835999966 | V52: BRUFF MT | W52: 9.647 | X52: 4.966199875 | Z52: BRUFF MT | AA52: 8.882 | AB52: 4.935200214 | AD52: BRUFF MT | AE52: 27.652 | AF52: 14.73740005 | AL52: BRUFF MT | AM52: 0 | AN52: 4.745999813 | AP52: BRUFF MT | AQ52: 0 | AR52: 4.87319994 | AT52: BRUFF MT | AU52: 0 | AV52: 4.68900013 | AX52: BRUFF MT | AY52: 0 | AZ52: 14.30819988 | BC52: 0 | BD52: 0 | BG52: BRUFF MT | BH52: 0 | BI52: 4.81430006 | BK52: BRUFF MT | BL52: 0 | BM52: 4.783299923 | BO52: BRUFF MT | BP52: 0 | BQ52: 4.146800041 | BS52: BRUFF MT | BT52: 0 | BU52: 13.74440002 | BV52: QGC Variance Exhibit | BW52: Docket No. 15-057-07 | BX52: Questar Gas Company | CD52: CBFR PC | CE52: 48.7 | CF52: 55.3567009 | CH52: CBFR PC | CI52: 48.7 | CJ52: 53.12099838 | CL52: CBFR PC | CM52: 48.7 | CN52: 54.43600082 | CP52: CCRUNIT PC | CQ52: 0 | CR52: 149.0542984
A53: CBFR PC | B53: 57.91500092 | C53: 59.31230164 | D53: 58.78839874 | E53: 56.39400101 | F53: 57.76850128 | G53: 55.42499924 | H53: 56.78269958 | I53: 56.29909897 | J53: 48.68360138 | K53: 55.3567009 | L53: 53.12099838 | M53: 54.43600082 | N53: 670.2823029 | R53: CBFR PC | S53: 59.744 | T53: 57.91500092 | V53: CBFR PC | W53: 62.123 | X53: 59.31230164 | Z53: CBFR PC | AA53: 61.665 | AB53: 58.78839874 | AD53: CBFR PC | AE53: 183.532 | AF53: 176.0157013 | AL53: CBFR PC | AM53: 0 | AN53: 56.39400101 | AP53: CBFR PC | AQ53: 0 | AR53: 57.76850128 | AT53: CBFR PC | AU53: 0 | AV53: 55.42499924 | AX53: CBFR PC | AY53: 0 | AZ53: 169.5875015 | BC53: 0 | BD53: 0 | BG53: CBFR PC | BH53: 0 | BI53: 56.78269958 | BK53: CBFR PC | BL53: 0 | BM53: 56.29909897 | BO53: CBFR PC | BP53: 0 | BQ53: 48.68360138 | BS53: CBFR PC | BT53: 0 | BU53: 161.7653999 | CD53: CCRUNIT PC | CF53: 49.28379822 | CH53: CCRUNIT PC | CJ53: 47.34899902 | CL53: CCRUNIT PC | CN53: 48.57699966 | CP53: CCRUNITMT PC | CQ53: 0 | CR53: 36.75720024
A54: CCRUNIT PC | B54: 50.97600174 | C54: 52.28150177 | D54: 51.89400101 | E54: 49.84500122 | F54: 51.12829971 | G54: 49.11299896 | H54: 50.37810135 | I54: 50.00920105 | J54: 43.29359818 | K54: 49.28379822 | L54: 47.34899902 | M54: 48.57699966 | N54: 594.1285019 | R54: CCRUNIT PC | S54: 49.077 | T54: 50.97600174 | V54: CCRUNIT PC | W54: 51.611 | X54: 52.28150177 | Z54: CCRUNIT PC | AA54: 47.936 | AB54: 51.89400101 | AD54: CCRUNIT PC | AE54: 148.624 | AF54: 155.1515045 | AL54: CCRUNIT PC | AM54: 0 | AN54: 49.84500122 | AP54: CCRUNIT PC | AQ54: 0 | AR54: 51.12829971 | AT54: CCRUNIT PC | AU54: 0 | AV54: 49.11299896 | AX54: CCRUNIT PC | AY54: 0 | AZ54: 150.0862999 | BC54: 0 | BD54: 0 | BG54: CCRUNIT PC | BH54: 0 | BI54: 50.37810135 | BK54: CCRUNIT PC | BL54: 0 | BM54: 50.00920105 | BO54: CCRUNIT PC | BP54: 0 | BQ54: 43.29359818 | BS54: CCRUNIT PC | BT54: 0 | BU54: 143.6809006 | CD54: CCRUNITMT PC | CE54: 49.7 | CF54: 16.12619972 | CH54: CCRUNITMT PC | CI54: 49.7 | CJ54: 15.5010004 | CL54: CCRUNITMT PC | CM54: 49.7 | CN54: 15.91230011 | CP54: CHBTC1 MT PC | CQ54: 0 | CR54: 10.51779985
A55: CCRUNITMT PC | B55: 16.56299973 | C55: 17.00349998 | D55: 16.88879967 | E55: 16.23600006 | F55: 16.66869926 | G55: 16.02300072 | H55: 16.44860077 | I55: 16.34009933 | J55: 14.15680027 | K55: 16.12619972 | L55: 15.5010004 | M55: 15.91230011 | N55: 193.868 | R55: CCRUNITMT PC | S55: 13.841 | T55: 16.56299973 | V55: CCRUNITMT PC | W55: 14.451 | X55: 17.00349998 | Z55: CCRUNITMT PC | AA55: 16.351 | AB55: 16.88879967 | AD55: CCRUNITMT PC | AE55: 44.643 | AF55: 50.45529938 | AL55: CCRUNITMT PC | AM55: =IFERROR(VLOOKUP(AL55,$AL$116:$AM$206,2,FALSE),0)*O142 -> 0 | AN55: 16.23600006 | AP55: CCRUNITMT PC | AQ55: =IFERROR(VLOOKUP(AP55,$AP$116:$AQ$215,2,FALSE),0)*O143 -> 0 | AR55: 16.66869926 | AT55: CCRUNITMT PC | AU55: =IFERROR(VLOOKUP(AT55,$AT$116:$AU$208,2,FALSE),0)*O144 -> 0 | AV55: 16.02300072 | AX55: CCRUNITMT PC | AY55: 0 | AZ55: 48.92770004 | BC55: 0 | BD55: 0 | BG55: CCRUNITMT PC | BH55: =IFERROR(VLOOKUP($BG55,$BG$114:$BH$209,2,FALSE),0)*O145 -> 0 | BI55: 16.44860077 | BK55: CCRUNITMT PC | BL55: =IFERROR(VLOOKUP($BK55,$BK$114:$BL$209,2,FALSE),0)*O146 -> 0 | BM55: 16.34009933 | BO55: CCRUNITMT PC | BP55: =IFERROR(VLOOKUP($BO55,$BO$114:$BP$209,2,FALSE),0)*O147 -> 0 | BQ55: 14.15680027 | BS55: CCRUNITMT PC | BT55: 0 | BU55: 46.94550037 | CD55: CHBTC1 MT PC | CE55: 50.7 | CF55: 16.56949997 | CH55: CHBTC1 MT PC | CI55: 50.7 | CJ55: 15.67800045 | CL55: CHBTC1 MT PC | CM55: 50.7 | CN55: 15.8409996 | CP55: CHBTCAT1 PC | CQ55: 0 | CR55: 127.5614014
A56: CHBTC1 MT PC | B56: 19.68899918 | C56: 19.88030052 | D56: 19.43079948 | E56: 18.375 | F56: 18.55970001 | G56: 17.55599976 | H56: 17.73200035 | I56: 17.33519936 | J56: 14.77840042 | K56: 16.56949997 | L56: 15.67800045 | M56: 15.8409996 | N56: 211.4248991 | R56: CHBTC1 MT PC | S56: 19.572 | T56: 19.68899918 | V56: CHBTC1 MT PC | W56: 13.359 | X56: 19.88030052 | Z56: CHBTC1 MT PC | AA56: 25.3 | AB56: 19.43079948 | AD56: CHBTC1 MT PC | AE56: 58.231 | AF56: 59.00009918 | AL56: CHBTC1 MT PC | AM56: =IFERROR(VLOOKUP(AL56,$AL$116:$AM$206,2,FALSE),0) -> 0 | AN56: 18.375 | AP56: CHBTC1 MT PC | AQ56: =IFERROR(VLOOKUP(AP56,$AP$116:$AQ$215,2,FALSE),0) -> 0 | AR56: 18.55970001 | AT56: CHBTC1 MT PC | AU56: =IFERROR(VLOOKUP(AT56,$AT$116:$AU$208,2,FALSE),0) -> 0 | AV56: 17.55599976 | AX56: CHBTC1 MT PC | AY56: 0 | AZ56: 54.49069977 | BG56: CHBTC1 MT PC | BH56: =IFERROR(VLOOKUP($BG56,$BG$114:$BH$209,2,FALSE),0) -> 0 | BI56: 17.73200035 | BK56: CHBTC1 MT PC | BL56: =IFERROR(VLOOKUP($BK56,$BK$114:$BL$209,2,FALSE),0) -> 0 | BM56: 17.33519936 | BO56: CHBTC1 MT PC | BP56: =IFERROR(VLOOKUP($BO56,$BO$114:$BP$209,2,FALSE),0) -> 0 | BQ56: 14.77840042 | BS56: CHBTC1 MT PC | BT56: 0 | BU56: 49.84560013 | CD56: CHBTCAT1 PC | CE56: 51.7 | CF56: 44.24010086 | CH56: CHBTCAT1 PC | CI56: 51.7 | CJ56: 42.47399902 | CL56: CHBTCAT1 PC | CM56: 51.7 | CN56: 43.54570007 | CP56: CHBTCAT2 PC | CQ56: 0 | CR56: 1.443399996
A57: CHBTCAT1 PC | B57: 46.02000046 | C57: 47.16960144 | D57: 46.79140091 | E57: 44.91899872 | F57: 46.04430008 | G57: 44.20199966 | H57: 45.30960083 | I57: 44.95000076 | J57: 38.8891983 | K57: 44.24010086 | L57: 42.47399902 | M57: 43.54570007 | N57: 534.5549011 | R57: CHBTCAT1 PC | S57: 36.562 | T57: 46.02000046 | V57: CHBTCAT1 PC | W57: 41.836 | X57: 47.16960144 | Z57: CHBTCAT1 PC | AA57: 31.399 | AB57: 46.79140091 | AD57: CHBTCAT1 PC | AE57: 109.797 | AF57: 139.9810028 | AL57: CHBTCAT1 PC | AM57: 0 | AN57: 44.91899872 | AP57: CHBTCAT1 PC | AQ57: 0 | AR57: 46.04430008 | AT57: CHBTCAT1 PC | AU57: 0 | AV57: 44.20199966 | AX57: CHBTCAT1 PC | AY57: 0 | AZ57: 135.1652985 | BB57: 9.1 | BG57: CHBTCAT1 PC | BH57: 0 | BI57: 45.30960083 | BK57: CHBTCAT1 PC | BL57: 0 | BM57: 44.95000076 | BO57: CHBTCAT1 PC | BP57: 0 | BQ57: 38.8891983 | BS57: CHBTCAT1 PC | BT57: 0 | BU57: 129.1487999 | CD57: CHBTCAT2 PC | CE57: 52.7 | CF57: 2.297100067 | CH57: CHBTCAT2 PC | CI57: 52.7 | CJ57: 2.204999924 | CL57: CHBTCAT2 PC | CM57: 52.7 | CN57: 2.256799936 | CP57: DRYPINY6 PC | CQ57: 0 | CR57: 3.045399964
A58: CHBTCAT2 PC | B58: 2.403000116 | C58: 2.461400032 | D58: 2.439699888 | E58: 2.342999935 | F58: 2.399399996 | G58: 2.301000118 | H58: 2.359100103 | I58: 2.33739996 | J58: 2.021600008 | K58: 2.297100067 | L58: 2.204999924 | M58: 2.256799936 | N58: 27.82450008 | R58: CHBTCAT2 PC | S58: 2.041 | T58: 2.403000116 | V58: CHBTCAT2 PC | W58: 2.363 | X58: 2.461400032 | Z58: CHBTCAT2 PC | AA58: 2.435 | AB58: 2.439699888 | AD58: CHBTCAT2 PC | AE58: 6.839 | AF58: 7.304100037 | AL58: CHBTCAT2 PC | AM58: 0 | AN58: 2.342999935 | AP58: CHBTCAT2 PC | AQ58: 0 | AR58: 2.399399996 | AT58: CHBTCAT2 PC | AU58: 0 | AV58: 2.301000118 | AX58: CHBTCAT2 PC | AY58: 0 | AZ58: 7.043400049 | BG58: CHBTCAT2 PC | BH58: 0 | BI58: 2.359100103 | BK58: CHBTCAT2 PC | BL58: 0 | BM58: 2.33739996 | BO58: CHBTCAT2 PC | BP58: 0 | BQ58: 2.021600008 | BS58: CHBTCAT2 PC | BT58: 0 | BU58: 6.718100071 | CD58: DRYPINY6 PC | CE58: 53.7 | CF58: 1.078799963 | CH58: DRYPINY6 PC | CI58: 53.7 | CJ58: 1.037999988 | CL58: DRYPINY6 PC | CM58: 53.7 | CN58: 1.069499969 | CP58: DRYPINYU PC | CQ58: 0 | CR58: 37.82579994
A59: DRYPINY6 PC | B59: 1.082999945 | C59: 1.116000056 | D59: 1.109799981 | E59: 1.07099998 | F59: 1.100499988 | G59: 1.062000036 | H59: 1.091199994 | I59: 1.088099957 | J59: 0.943599999 | K59: 1.078799963 | L59: 1.037999988 | M59: 1.069499969 | N59: 12.85149986 | R59: DRYPINY6 PC | S59: 1.134 | T59: 1.082999945 | V59: DRYPINY6 PC | W59: 1.108 | X59: 1.116000056 | Z59: DRYPINY6 PC | AA59: 1.137 | AB59: 1.109799981 | AD59: DRYPINY6 PC | AE59: 3.379 | AF59: 3.308799982 | AH59: 9.1 | AL59: DRYPINY6 PC | AM59: 0 | AN59: 1.07099998 | AP59: DRYPINY6 PC | AQ59: 0 | AR59: 1.100499988 | AT59: DRYPINY6 PC | AU59: 0 | AV59: 1.062000036 | AX59: DRYPINY6 PC | AY59: 0 | AZ59: 3.233500004 | BG59: DRYPINY6 PC | BH59: 0 | BI59: 1.091199994 | BK59: DRYPINY6 PC | BL59: 0 | BM59: 1.088099957 | BO59: DRYPINY6 PC | BP59: 0 | BQ59: 0.943599999 | BS59: DRYPINY6 PC | BT59: 0 | BU59: 3.12289995 | CD59: DRYPINYU PC | CE59: 54.7 | CF59: 11.98149967 | CH59: DRYPINYU PC | CI59: 54.7 | CJ59: 11.52299976 | CL59: DRYPINYU PC | CM59: 54.7 | CN59: 11.83269978 | CP59: FOGARTY PC | CQ59: 0 | CR59: 1.266499996
A60: DRYPINYU PC | B60: 12.26399994 | C60: 12.59220028 | D60: 12.51469994 | E60: 12.03600025 | F60: 12.3597002 | G60: 11.88599968 | H60: 12.20779991 | I60: 12.13029957 | J60: 10.51399994 | K60: 11.98149967 | L60: 11.52299976 | M60: 11.83269978 | N60: 143.8418989 | R60: DRYPINYU PC | S60: 9.202 | T60: 12.26399994 | V60: DRYPINYU PC | W60: 10.166 | X60: 12.59220028 | Z60: DRYPINYU PC | AA60: 9.829 | AB60: 12.51469994 | AD60: DRYPINYU PC | AE60: 29.197 | AF60: 37.37090015 | AL60: DRYPINYU PC | AM60: 0 | AN60: 12.03600025 | AP60: DRYPINYU PC | AQ60: 0 | AR60: 12.3597002 | AT60: DRYPINYU PC | AU60: 0 | AV60: 11.88599968 | AX60: DRYPINYU PC | AY60: 0 | AZ60: 36.28170013 | BG60: DRYPINYU PC | BH60: 0 | BI60: 12.20779991 | BK60: DRYPINYU PC | BL60: 0 | BM60: 12.13029957 | BO60: DRYPINYU PC | BP60: 0 | BQ60: 10.51399994 | BS60: DRYPINYU PC | BT60: 0 | BU60: 34.85209942 | CD60: FOGARTY PC | CE60: 55.7 | CF60: 0.4526000023 | CH60: FOGARTY PC | CI60: 55.7 | CJ60: 0.4350000024 | CL60: FOGARTY PC | CM60: 55.7 | CN60: 0.4463999867 | CP60: HWA DEEP PC | CQ60: 0 | CR60: 5.185199976
A61: FOGARTY PC | B61: 0.4740000069 | C61: 0.4866999984 | D61: 0.4805000126 | E61: 0.4620000124 | F61: 0.4742999971 | G61: 0.4530000091 | H61: 0.4650000036 | I61: 0.4618999958 | J61: 0.3975999951 | K61: 0.4526000023 | L61: 0.4350000024 | M61: 0.4463999867 | N61: 5.489000022 | R61: FOGARTY PC | S61: 0 | T61: 0.4740000069 | V61: FOGARTY PC | W61: 1.249 | X61: 0.4866999984 | Z61: FOGARTY PC | AA61: 1.108 | AB61: 0.4805000126 | AD61: FOGARTY PC | AE61: 2.357 | AF61: 1.441200018 | AL61: FOGARTY PC | AM61: 0 | AN61: 0.4620000124 | AP61: FOGARTY PC | AQ61: 0 | AR61: 0.4742999971 | AT61: FOGARTY PC | AU61: 0 | AV61: 0.4530000091 | AX61: FOGARTY PC | AY61: 0 | AZ61: 1.389300019 | BG61: FOGARTY PC | BH61: 0 | BI61: 0.4650000036 | BK61: FOGARTY PC | BL61: 0 | BM61: 0.4618999958 | BO61: FOGARTY PC | BP61: 0 | BQ61: 0.3975999951 | BS61: FOGARTY PC | BT61: 0 | BU61: 1.324499995 | BW61: 9.1 | CD61: HWA DEEP PC | CE61: 56.7 | CF61: 1.091199994 | CH61: HWA DEEP PC | CI61: 56.7 | CJ61: 1.049999952 | CL61: HWA DEEP PC | CM61: 56.7 | CN61: 1.078799963 | CP61: HWPL1&3MTPC | CQ61: 0 | CR61: 21.44340038
A62: HWA DEEP PC | B62: 1.121999979 | C62: 1.150099993 | D62: 1.143900037 | E62: 1.09800005 | F62: 1.128399968 | G62: 1.085999966 | H62: 1.112900019 | I62: 1.106699944 | J62: 0.9575999975 | K62: 1.091199994 | L62: 1.049999952 | M62: 1.078799963 | N62: 13.12559986 | R62: HWA DEEP PC | S62: 0.197 | T62: 1.121999979 | V62: HWA DEEP PC | W62: 0.133 | X62: 1.150099993 | Z62: HWA DEEP PC | AA62: 0 | AB62: 1.143900037 | AD62: HWA DEEP PC | AE62: 0.33 | AF62: 3.416000009 | AL62: HWA DEEP PC | AM62: 0 | AN62: 1.09800005 | AP62: HWA DEEP PC | AQ62: 0 | AR62: 1.128399968 | AT62: HWA DEEP PC | AU62: 0 | AV62: 1.085999966 | AX62: HWA DEEP PC | AY62: 0 | AZ62: 3.312399983 | BG62: HWA DEEP PC | BH62: 0 | BI62: 1.112900019 | BK62: HWA DEEP PC | BL62: 0 | BM62: 1.106699944 | BO62: HWA DEEP PC | BP62: 0 | BQ62: 0.9575999975 | BS62: HWA DEEP PC | BT62: 0 | BU62: 3.17719996 | CD62: HWPL1&3MTPC | CE62: 57.7 | CF62: 6.187600136 | CH62: HWPL1&3MTPC | CI62: 57.7 | CJ62: 5.94299984 | CL62: HWPL1&3MTPC | CM62: 57.7 | CN62: 6.094600201 | CP62: HWPLT1&3 PC | CQ62: 0 | CR62: 181.0788994
A63: HWPL1&3MTPC | B63: 6.414000034 | C63: 6.578199863 | D63: 6.528600216 | E63: 6.269999981 | F63: 6.429399967 | G63: 6.173999786 | H63: 6.330200195 | I63: 6.283699989 | J63: 5.437600136 | K63: 6.187600136 | L63: 5.94299984 | M63: 6.094600201 | N63: 74.67090034 | R63: HWPL1&3MTPC | S63: 4.412 | T63: 6.414000034 | V63: HWPL1&3MTPC | W63: 8.21 | X63: 6.578199863 | Z63: HWPL1&3MTPC | AA63: 6.123 | AB63: 6.528600216 | AD63: HWPL1&3MTPC | AE63: 18.745 | AF63: 19.52080011 | AL63: HWPL1&3MTPC | AM63: 0 | AN63: 6.269999981 | AP63: HWPL1&3MTPC | AQ63: 0 | AR63: 6.429399967 | AT63: HWPL1&3MTPC | AU63: 0 | AV63: 6.173999786 | AX63: HWPL1&3MTPC | AY63: 0 | AZ63: 18.87339973 | BG63: HWPL1&3MTPC | BH63: 0 | BI63: 6.330200195 | BK63: HWPL1&3MTPC | BL63: 0 | BM63: 6.283699989 | BO63: HWPL1&3MTPC | BP63: 0 | BQ63: 5.437600136 | BS63: HWPL1&3MTPC | BT63: 0 | BU63: 18.05150032 | CD63: HWPLT1&3 PC | CE63: 58.7 | CF63: 54.14459991 | CH63: HWPLT1&3 PC | CI63: 58.7 | CJ63: 52.04399872 | CL63: HWPLT1&3 PC | CM63: 58.7 | CN63: 53.4192009 | CP63: HWPLT2 PC | CQ63: 0 | CR63: 2.820700049
A64: HWPLT1&3 PC | B64: 55.72200012 | C64: 57.18259811 | D64: 56.78889847 | E64: 54.58200073 | F64: 56.01699829 | G64: 53.8409996 | H64: 55.25749969 | I64: 54.88240051 | J64: 47.53839874 | K64: 54.14459991 | L64: 52.04399872 | M64: 53.4192009 | N64: 651.4195938 | R64: HWPLT1&3 PC | S64: 56.234 | T64: 55.72200012 | V64: HWPLT1&3 PC | W64: 25.878 | X64: 57.18259811 | Z64: =R64 -> HWPLT1&3 PC | AA64: 14.04 | AB64: 56.78889847 | AD64: HWPLT1&3 PC | AE64: 96.152 | AF64: 169.6934967 | AL64: HWPLT1&3 PC | AM64: 0 | AN64: 54.58200073 | AP64: HWPLT1&3 PC | AQ64: 0 | AR64: 56.01699829 | AT64: HWPLT1&3 PC | AU64: 0 | AV64: 53.8409996 | AX64: HWPLT1&3 PC | AY64: 0 | AZ64: 164.4399986 | BG64: HWPLT1&3 PC | BH64: 0 | BI64: 55.25749969 | BK64: HWPLT1&3 PC | BL64: 0 | BM64: 54.88240051 | BO64: HWPLT1&3 PC | BP64: 0 | BQ64: 47.53839874 | BS64: HWPLT1&3 PC | BT64: 0 | BU64: 157.678299 | CD64: HWPLT2 PC | CE64: 59.7 | CF64: 0.7843000293 | CH64: HWPLT2 PC | CI64: 59.7 | CJ64: 0.753000021 | CL64: HWPLT2 PC | CM64: 59.7 | CN64: 0.7749999762 | CP64: ISLAND PC | CQ64: 0 | CR64: 2.382499993
A65: HWPLT2 PC | B65: 0.8519999981 | C65: 0.8711000085 | D65: 0.8648999929 | E65: 0.8280000091 | F65: 0.8493999839 | G65: 0.8159999847 | H65: 0.8029000163 | I65: 0.7967000008 | J65: 0.6887999773 | K65: 0.7843000293 | L65: 0.753000021 | M65: 0.7749999762 | N65: 9.682099998 | R65: HWPLT2 PC | S65: 0.617 | T65: 0.8519999981 | V65: HWPLT2 PC | W65: 1.079 | X65: 0.8711000085 | Z65: HWPLT2 PC | AA65: 0.988 | AB65: 0.8648999929 | AD65: HWPLT2 PC | AE65: 2.684 | AF65: 2.588 | AL65: HWPLT2 PC | AM65: 0 | AN65: 0.8280000091 | AP65: HWPLT2 PC | AQ65: 0 | AR65: 0.8493999839 | AT65: HWPLT2 PC | AU65: 0 | AV65: 0.8159999847 | AX65: HWPLT2 PC | AY65: 0 | AZ65: 2.493399978 | BG65: HWPLT2 PC | BH65: 0 | BI65: 0.8029000163 | BK65: HWPLT2 PC | BL65: 0 | BM65: 0.7967000008 | BO65: HWPLT2 PC | BP65: 0 | BQ65: 0.6887999773 | BS65: HWPLT2 PC | BT65: 0 | BU65: 2.288399994 | CD65: ISLAND PC | CE65: 60.7 | CF65: 0.6633999944 | CH65: ISLAND PC | CI65: 60.7 | CJ65: 0.6389999986 | CL65: ISLAND PC | CM65: 60.7 | CN65: 0.6541000009 | CP65: JNSNRDG PC | CQ65: 0 | CR65: 7.78030014
A66: ISLAND PC | B66: 0.6779999733 | C66: 0.6974999905 | D66: 0.6912999749 | E66: 0.6660000086 | F66: 0.685100019 | G66: 0.6570000052 | H66: 0.6758000255 | I66: 0.6726999879 | J66: 0.5824000239 | K66: 0.6633999944 | L66: 0.6389999986 | M66: 0.6541000009 | N66: 7.962300003 | R66: ISLAND PC | S66: 0.579 | T66: 0.6779999733 | V66: ISLAND PC | W66: 0.56 | X66: 0.6974999905 | Z66: ISLAND PC | AA66: 0.607 | AB66: 0.6912999749 | AD66: ISLAND PC | AE66: 1.746 | AF66: 2.066799939 | AL66: ISLAND PC | AM66: 0 | AN66: 0.6660000086 | AP66: ISLAND PC | AQ66: 0 | AR66: 0.685100019 | AT66: ISLAND PC | AU66: 0 | AV66: 0.6570000052 | AX66: ISLAND PC | AY66: 0 | AZ66: 2.008100033 | BG66: ISLAND PC | BH66: 0 | BI66: 0.6758000255 | BK66: ISLAND PC | BL66: 0 | BM66: 0.6726999879 | BO66: ISLAND PC | BP66: 0 | BQ66: 0.5824000239 | BS66: ISLAND PC | BT66: 0 | BU66: 1.930900037 | CD66: JNSNRDG PC | CE66: 61.7 | CF66: 2.424200058 | CH66: JNSNRDG PC | CI66: 61.7 | CJ66: 2.336999893 | CL66: JNSNRDG PC | CM66: 61.7 | CN66: 2.402499914 | CP66: KNY FLD PC | CQ66: 0 | CR66: 12.9630003
A67: JNSNRDG PC | B67: 2.436000109 | C67: 2.5079 | D67: 2.495500088 | E67: 2.405999899 | F67: 2.476900101 | G67: 2.38499999 | H67: 2.455199957 | I67: 2.445899963 | J67: 2.122400045 | K67: 2.424200058 | L67: 2.336999893 | M67: 2.402499914 | N67: 28.89450002 | R67: JNSNRDG PC | S67: 4.041 | T67: 2.436000109 | V67: JNSNRDG PC | W67: 2.982 | X67: 2.5079 | Z67: JNSNRDG PC | AA67: 2.556 | AB67: 2.495500088 | AD67: JNSNRDG PC | AE67: 9.579 | AF67: 7.439400196 | AL67: JNSNRDG PC | AM67: 0 | AN67: 2.405999899 | AP67: JNSNRDG PC | AQ67: 0 | AR67: 2.476900101 | AT67: JNSNRDG PC | AU67: 0 | AV67: 2.38499999 | AX67: JNSNRDG PC | AY67: 0 | AZ67: 7.26789999 | BG67: JNSNRDG PC | BH67: 0 | BI67: 2.455199957 | BK67: JNSNRDG PC | BL67: 0 | BM67: 2.445899963 | BO67: JNSNRDG PC | BP67: 0 | BQ67: 2.122400045 | BS67: JNSNRDG PC | BT67: 0 | BU67: 7.023499966 | CD67: KNY FLD PC | CE67: 62.7 | CF67: 2.93569994 | CH67: KNY FLD PC | CI67: 62.7 | CJ67: 2.828999996 | CL67: KNY FLD PC | CM67: 62.7 | CN67: 2.914000034 | CP67: MDBXCOMP PC | CQ67: 0 | CR67: 0.6420999914
A68: KNY FLD PC | B68: 2.943000078 | C68: 3.028700113 | D68: 3.019399881 | E68: 2.910000086 | F68: 2.994600058 | G68: 2.885999918 | H68: 2.969799995 | I68: 2.960500002 | J68: 2.5704 | K68: 2.93569994 | L68: 2.828999996 | M68: 2.914000034 | N68: 34.9611001 | R68: KNY FLD PC | S68: 4.355 | T68: 2.943000078 | V68: KNY FLD PC | W68: 0.087 | X68: 3.028700113 | Z68: KNY FLD PC | AA68: 1.852 | AB68: 3.019399881 | AD68: KNY FLD PC | AE68: 6.294 | AF68: 8.991100073 | AL68: KNY FLD PC | AM68: 0 | AN68: 2.910000086 | AP68: KNY FLD PC | AQ68: 0 | AR68: 2.994600058 | AT68: KNY FLD PC | AU68: 0 | AV68: 2.885999918 | AX68: KNY FLD PC | AY68: 0 | AZ68: 8.790600061 | BG68: KNY FLD PC | BH68: 0 | BI68: 2.969799995 | BK68: KNY FLD PC | BL68: 0 | BM68: 2.960500002 | BO68: KNY FLD PC | BP68: 0 | BQ68: 2.5704 | BS68: KNY FLD PC | BT68: 0 | BU68: 8.500699997 | CD68: MOSUMT PC | CE68: 63.7 | CF68: 11.53820038 | CH68: MOSUMT PC | CI68: 63.7 | CJ68: 11.08500004 | CL68: MOSUMT PC | CM68: 63.7 | CN68: 11.37080002 | CP68: MOSUMT PC | CQ68: 0 | CR68: 36.07250023
A69: MOSUMT PC | B69: 11.92500019 | C69: 12.23260021 | D69: 12.1427002 | E69: 11.66699982 | F69: 11.9659996 | G69: 11.49600029 | H69: 11.79240036 | I69: 11.70559978 | J69: 10.13599968 | K69: 11.53820038 | L69: 11.08500004 | M69: 11.37080002 | N69: 139.0573006 | R69: MOSUMT PC | S69: 7.428 | T69: 11.92500019 | V69: MOSUMT PC | W69: 9.699 | X69: 12.23260021 | Z69: MOSUMT PC | AA69: 9.271 | AB69: 12.1427002 | AD69: MOSUMT PC | AE69: 26.398 | AF69: 36.3003006 | AL69: MOSUMT PC | AM69: 0 | AN69: 11.66699982 | AP69: MOSUMT PC | AQ69: 0 | AR69: 11.9659996 | AT69: MOSUMT PC | AU69: 0 | AV69: 11.49600029 | AX69: MOSUMT PC | AY69: 0 | AZ69: 35.12899971 | BG69: MOSUMT PC | BH69: 0 | BI69: 11.79240036 | BK69: MOSUMT PC | BL69: 0 | BM69: 11.70559978 | BO69: MOSUMT PC | BP69: 0 | BQ69: 10.13599968 | BS69: MOSUMT PC | BT69: 0 | BU69: 33.63399982 | CD69: PDW1A1B PC | CE69: 64.7 | CF69: 0.9826999903 | CH69: PDW1A1B PC | CI69: 64.7 | CJ69: 0.7409999967 | CL69: PDW1A1B PC | CM69: 64.7 | CN69: 0.7595000267 | CP69: NBXCAMP PC | CQ69: 0 | CR69: 12.01710033
A70: PDW1A1B PC | B70: 0 | C70: 0 | D70: 0 | E70: 0 | F70: 0 | G70: 0.9779999852 | H70: 1.004400015 | I70: 0.9981999993 | J70: 0.8623999953 | K70: 0.9826999903 | L70: 0.7409999967 | M70: 0.7595000267 | N70: 6.326200008 | R70: PDW1A1B PC | S70: 0.962 | T70: =IFERROR(VLOOKUP(R70,$A$6:$M$119,2,FALSE),"") -> 0 | V70: PDW1A1B PC | W70: =IFERROR(VLOOKUP(V70,$V$116:$W$210,2,FALSE),0) -> 0.964 | X70: =IFERROR(VLOOKUP(V70,$A$6:$M$119,3,FALSE),"") -> 0 | Z70: PDW1A1B PC | AA70: =IFERROR(VLOOKUP(A70,$Z$116:$AA$210,2,FALSE),0) -> 1.188 | AB70: =IFERROR(VLOOKUP(Z70,$A$6:$M$119,4,FALSE),"") -> 0 | AD70: PDW1A1B PC | AE70: 3.114 | AF70: 0 | AL70: PDW1A1B PC | AM70: 0 | AN70: =IFERROR(VLOOKUP(AL70,$A$6:$M$119,5,FALSE),"") -> 0 | AP70: PDW1A1B PC | AQ70: 0 | AR70: =IFERROR(VLOOKUP($AP70,$A$6:$M$119,6,FALSE),"") -> 0 | AT70: PDW1A1B PC | AU70: 0 | AV70: =IFERROR(VLOOKUP($AT70,$A$6:$M$119,7,FALSE),"") -> 0.9779999852 | AX70: PDW1A1B PC | AY70: 0 | AZ70: 0.9779999852 | BG70: PDW1A1B PC | BH70: 0 | BI70: =IFERROR(VLOOKUP($BG70,$A$6:$M$119,8,FALSE),"") -> 1.004400015 | BK70: PDW1A1B PC | BL70: 0 | BM70: =IFERROR(VLOOKUP($BK70,$A$6:$M$119,9,FALSE),"") -> 0.9981999993 | BO70: =A70 -> PDW1A1B PC | BP70: 0 | BQ70: =IFERROR(VLOOKUP($BO70,$A$6:$M$119,10,FALSE),0) -> 0.8623999953 | BS70: =A70 -> PDW1A1B PC | BT70: =SUM(BH70,BL70,BP70) -> 0 | BU70: =SUM(BI70,BM70,BQ70) -> 2.86500001 | CD70: PDW1AB MT PC | CE70: 65.7 | CF70: 3.47510004 | CH70: PDW1AB MT PC | CI70: 65.7 | CJ70: 3.345000029 | CL70: PDW1AB MT PC | CM70: 65.7 | CN70: 3.440999985 | CP70: NOBXFLD PC | CQ70: 0 | CR70: 7.217000246
A71: PDW1AB MT PC | B71: 3.513000011 | C71: 3.611500025 | D71: 3.592900038 | E71: 3.461999893 | F71: 3.558799982 | G71: 3.428999901 | H71: 3.524699926 | I71: 3.509200096 | J71: 3.043600082 | K71: 3.47510004 | L71: 3.345000029 | M71: 3.440999985 | N71: =SUM(B71:M71) -> 41.50580001 | R71: PDW1AB MT PC | S71: =IFERROR(VLOOKUP(R71,$R$116:$S$210,2,FALSE),0) -> 4.781 | T71: 3.513000011 | V71: PDW1AB MT PC | W71: 5.571 | X71: 3.611500025 | Z71: PDW1AB MT PC | AA71: 5.346 | AB71: 3.592900038 | AD71: PDW1AB MT PC | AE71: =SUM(S71,W71,AA71) -> 15.698 | AF71: =SUM(T71,X71,AB71) -> 10.71740007 | AL71: =AD71 -> PDW1AB MT PC | AM71: 0 | AN71: 3.461999893 | AP71: =AL71 -> PDW1AB MT PC | AQ71: 0 | AR71: 3.558799982 | AT71: PDW1AB MT PC | AU71: 0 | AV71: 3.428999901 | AX71: PDW1AB MT PC | AY71: 0 | AZ71: 10.44979978 | BG71: PDW1AB MT PC | BH71: 0 | BI71: 3.524699926 | BK71: PDW1AB MT PC | BL71: 0 | BM71: 3.509200096 | BO71: PDW1AB MT PC | BP71: 0 | BQ71: 3.043600082 | BS71: PDW1AB MT PC | BT71: 0 | BU71: 10.0775001 | CD71: PDWCUT PC | CE71: 66.7 | CF71: 0.6169000268 | CH71: PDWCUT PC | CI71: 66.7 | CJ71: 0.5939999819 | CL71: PDWCUT PC | CM71: 66.7 | CN71: 0.6107000113 | CP71: PDW1A1B PC | CQ71: 0 | CR71: 49.55020142
A72: PDWCUT PC | B72: 0.6150000095 | C72: 0.6355000138 | D72: 0.6323999763 | E72: 0.6090000272 | F72: 0.6262000203 | G72: 0.6060000062 | H72: 0.6230999827 | I72: 0.6200000048 | J72: 0.5404000282 | K72: 0.6169000268 | L72: 0.5939999819 | M72: 0.6107000113 | N72: 7.329200089 | R72: PDWCUT PC | S72: 0.602 | T72: 0.6150000095 | V72: PDWCUT PC | W72: 1.034 | X72: 0.6355000138 | Z72: PDWCUT PC | AA72: 1.294 | AB72: 0.6323999763 | AD72: PDWCUT PC | AE72: 2.93 | AF72: 1.8829 | AL72: PDWCUT PC | AM72: 0 | AN72: 0.6090000272 | AP72: PDWCUT PC | AQ72: 0 | AR72: 0.6262000203 | AT72: =AP72 -> PDWCUT PC | AU72: 0 | AV72: 0.6060000062 | AX72: =AT72 -> PDWCUT PC | AY72: =SUM(AM72,AQ72,AU72) -> 0 | AZ72: =SUM(AN72,AR72,AV72) -> 1.841200054 | BG72: PDWCUT PC | BH72: 0 | BI72: 0.6230999827 | BK72: PDWCUT PC | BL72: 0 | BM72: 0.6200000048 | BO72: PDWCUT PC | BP72: 0 | BQ72: 0.5404000282 | BS72: PDWCUT PC | BT72: 0 | BU72: 1.783500016
A73: PDWPLT2 PC | B73: 4.217999935 | C73: 4.336900234 | D73: 4.31829977 | E73: 4.157999992 | F73: 4.27489996 | G73: 4.118999958 | H73: 4.234600067 | I73: 4.21600008 | J73: 3.659600019 | K73: 4.175700188 | L73: 4.019999981 | M73: 4.135399818 | N73: 49.8664 | R73: =A73 -> PDWPLT2 PC | S73: 6.387 | T73: 4.217999935 | V73: =R73 -> PDWPLT2 PC | W73: 5.339 | X73: 4.336900234 | Z73: =R73 -> PDWPLT2 PC | AA73: 0.001 | AB73: 4.31829977 | AD73: =R73 -> PDWPLT2 PC | AE73: 11.727 | AF73: 12.87319994 | AL73: PDWPLT2 PC | AM73: 0 | AN73: 4.157999992 | AP73: PDWPLT2 PC | AQ73: 0 | AR73: 4.27489996 | AT73: PDWPLT2 PC | AU73: 0 | AV73: 4.118999958 | AX73: PDWPLT2 PC | AY73: 0 | AZ73: 12.55189991 | BG73: =R73 -> PDWPLT2 PC | BH73: 0 | BI73: 4.234600067 | BK73: PDWPLT2 PC | BL73: 0 | BM73: 4.21600008 | BO73: PDWPLT2 PC | BP73: 0 | BQ73: 3.659600019 | BS73: PDWPLT2 PC | BT73: 0 | BU73: 12.11020017 | CD73: =A74 -> PDWPLT3 PC | CE73: 67.7 | CF73: =IFERROR(VLOOKUP($A74,$A$6:$M$119,11,FALSE),"") -> 5.183199883 | CH73: =A74 -> PDWPLT3 PC | CI73: 67.7 | CJ73: =IFERROR(VLOOKUP($A74,$A$6:$M$119,12,FALSE),"") -> 4.992000103 | CL73: =A74 -> PDWPLT3 PC | CM73: 67.7 | CN73: =IFERROR(VLOOKUP($A74,$A$6:$M$119,13,FALSE),"") -> 5.133600235 | CP73: PDWCUT PC | CQ73: 0 | CR73: 10.39709997
A74: PDWPLT3 PC | B74: 5.237999916 | C74: 5.384699821 | D74: 5.359899998 | E74: 5.163000107 | F74: 5.307199955 | G74: 5.111999989 | H74: 5.257599831 | I74: 5.232800007 | J74: 4.541600227 | K74: 5.183199883 | L74: 4.992000103 | M74: 5.133600235 | N74: 61.90560007 | R74: PDWPLT3 PC | S74: 5.312 | T74: 5.237999916 | V74: PDWPLT3 PC | W74: 6.686 | X74: 5.384699821 | Z74: PDWPLT3 PC | AA74: 6.209 | AB74: 5.359899998 | AD74: PDWPLT3 PC | AE74: 18.207 | AF74: 15.98259974 | AL74: PDWPLT3 PC | AM74: 0 | AN74: 5.163000107 | AP74: PDWPLT3 PC | AQ74: 0 | AR74: 5.307199955 | AT74: PDWPLT3 PC | AU74: 0 | AV74: 5.111999989 | AX74: PDWPLT3 PC | AY74: 0 | AZ74: 15.58220005 | BG74: PDWPLT3 PC | BH74: 0 | BI74: 5.257599831 | BK74: PDWPLT3 PC | BL74: 0 | BM74: 5.232800007 | BO74: PDWPLT3 PC | BP74: 0 | BQ74: 4.541600227 | BS74: PDWPLT3 PC | BT74: 0 | BU74: 15.03200006 | CD74: SGRLF PC | CE74: 68.7 | CF74: 35.42990112 | CH74: SGRLF PC | CI74: 68.7 | CJ74: 34.04700089 | CL74: SGRLF PC | CM74: 68.7 | CN74: 34.93700027 | CP74: PDWPLT2 PC | CQ74: 0 | CR74: 58.49489975
A75: SGRLF PC | B75: 36.58200073 | C75: 37.5223999 | D75: 37.24959946 | E75: 35.78699875 | F75: 36.7132988 | G75: 35.27399826 | H75: 36.18939972 | I75: 35.93209839 | J75: 31.11639977 | K75: 35.42990112 | L75: 34.04700089 | M75: 34.93700027 | N75: 426.7800961 | R75: SGRLF PC | S75: 41.143 | T75: 36.58200073 | V75: SGRLF PC | W75: 41.033 | X75: 37.5223999 | Z75: SGRLF PC | AA75: 0 | AB75: 37.24959946 | AD75: SGRLF PC | AE75: 82.176 | AF75: 111.3540001 | AL75: SGRLF PC | AM75: 0 | AN75: 35.78699875 | AP75: SGRLF PC | AQ75: 0 | AR75: 36.7132988 | AT75: SGRLF PC | AU75: 0 | AV75: 35.27399826 | AX75: SGRLF PC | AY75: 0 | AZ75: 107.7742958 | BG75: SGRLF PC | BH75: 0 | BI75: 36.18939972 | BK75: SGRLF PC | BL75: 0 | BM75: 35.93209839 | BO75: SGRLF PC | BP75: 0 | BQ75: 31.11639977 | BS75: SGRLF PC | BT75: 0 | BU75: 103.2378979 | CD75: TRAIL PC | CE75: 69.7 | CF75: 1.184200048 | CH75: TRAIL PC | CI75: 69.7 | CJ75: 1.136999965 | CL75: TRAIL PC | CM75: 69.7 | CN75: 1.165599942 | CP75: PDWPLT3 PC | CQ75: 0 | CR75: 27.73690033
A76: TRAIL PC | B76: 1.218000054 | C76: 1.252400041 | D76: 1.243100047 | E76: 1.194000006 | F76: 1.224499941 | G76: 1.175999999 | H76: 1.208999991 | I76: 1.199699998 | J76: 1.038800001 | K76: 1.184200048 | L76: 1.136999965 | M76: 1.165599942 | N76: 14.24230003 | R76: TRAIL PC | S76: 1.317 | T76: 1.218000054 | V76: TRAIL PC | W76: 1.388 | X76: 1.252400041 | Z76: TRAIL PC | AA76: 1.237 | AB76: 1.243100047 | AD76: TRAIL PC | AE76: 3.942 | AF76: 3.713500142 | AL76: TRAIL PC | AM76: 0 | AN76: 1.194000006 | AP76: TRAIL PC | AQ76: 0 | AR76: 1.224499941 | AT76: TRAIL PC | AU76: 0 | AV76: 1.175999999 | AX76: TRAIL PC | AY76: 0 | AZ76: 3.594499946 | BG76: TRAIL PC | BH76: 0 | BI76: 1.208999991 | BK76: =R76 -> TRAIL PC | BL76: 0 | BM76: 1.199699998 | BO76: TRAIL PC | BP76: 0 | BQ76: 1.038800001 | BS76: TRAIL PC | BT76: 0 | BU76: 3.44749999 | CD76: WHLA PC | CE76: 70.7 | CF76: 7.765500069 | CH76: WHLA PC | CI76: 70.7 | CJ76: 7.452000141 | CL76: WHLA PC | CM76: 70.7 | CN76: 7.638400078 | CP76: SGRLF PC | CQ76: 0 | CR76: 106.3186989
A77: WHLA PC | B77: 8.105999947 | C77: 8.304900169 | D77: 8.233599663 | E77: 7.90199995 | F77: 8.094099998 | G77: 7.769999981 | H77: 7.960800171 | I77: 7.895699978 | J77: 6.826399803 | K77: 7.765500069 | L77: 7.452000141 | M77: 7.638400078 | N77: 93.94939995 | R77: WHLA PC | S77: 3.868 | T77: 8.105999947 | V77: WHLA PC | W77: 6.962 | X77: 8.304900169 | Z77: WHLA PC | AA77: 3.694 | AB77: 8.233599663 | AD77: WHLA PC | AE77: 14.524 | AF77: 24.64449978 | AL77: WHLA PC | AM77: 0 | AN77: 7.90199995 | AP77: WHLA PC | AQ77: 0 | AR77: 8.094099998 | AT77: WHLA PC | AU77: 0 | AV77: 7.769999981 | AX77: WHLA PC | AY77: 0 | AZ77: 23.76609993 | BG77: WHLA PC | BH77: 0 | BI77: 7.960800171 | BK77: WHLA PC | BL77: 0 | BM77: 7.895699978 | BO77: WHLA PC | BP77: 0 | BQ77: 6.826399803 | BS77: WHLA PC | BT77: 0 | BU77: 22.68289995 | CD77: WWILSON PC | CE77: 71.7 | CF77: 12.43410015 | CH77: WWILSON PC | CI77: 71.7 | CJ77: 11.96100044 | CL77: WWILSON PC | CM77: 71.7 | CN77: 12.28530025 | CP77: TRAIL PC | CQ77: 0 | CR77: 3.342700005
A78: WWILSON PC | B78: 12.70800018 | C78: 13.05099964 | D78: 12.97350025 | E78: 12.47999954 | F78: 12.81849957 | G78: 12.32999992 | H78: 12.66349983 | I78: 12.58600044 | J78: 10.91160011 | K78: 12.43410015 | L78: 11.96100044 | M78: 12.28530025 | N78: 149.2025003 | R78: WWILSON PC | S78: 8.171 | T78: 12.70800018 | V78: WWILSON PC | W78: 14.019 | X78: 13.05099964 | Z78: WWILSON PC | AA78: 12.108 | AB78: 12.97350025 | AD78: WWILSON PC | AE78: 34.298 | AF78: 38.73250008 | AL78: WWILSON PC | AM78: 0 | AN78: 12.47999954 | AP78: WWILSON PC | AQ78: 0 | AR78: 12.81849957 | AT78: WWILSON PC | AU78: 0 | AV78: 12.32999992 | AX78: WWILSON PC | AY78: 0 | AZ78: 37.62849903 | BG78: WWILSON PC | BH78: 0 | BI78: 12.66349983 | BK78: WWILSON PC | BL78: 0 | BM78: 12.58600044 | BO78: WWILSON PC | BP78: 0 | BQ78: 10.91160011 | BS78: WWILSON PC | BT78: 0 | BU78: 36.16110039 | CD78: MOSU MT | CE78: 72.7 | CF78: 0 | CH78: MOSU MT | CI78: 72.7 | CJ78: 0 | CL78: MOSU MT | CM78: 72.7 | CN78: 0 | CP78: WHLA PC | CQ78: 0 | CR78: 26.20359993
A79: MOSU MT | B79: 0 | C79: 0 | D79: 0 | E79: 0 | F79: 0 | G79: 0 | H79: 0 | I79: 0 | J79: 0 | K79: 0 | L79: 0 | M79: 0 | N79: 0 | R79: MOSU MT | S79: 0.015 | T79: 0 | V79: MOSU MT | W79: 0.362 | X79: 0 | Z79: MOSU MT | AA79: 0.51 | AB79: 0 | AD79: MOSU MT | AE79: 0.887 | AF79: 0 | AL79: MOSU MT | AM79: 0 | AN79: 0 | AP79: MOSU MT | AQ79: 0 | AR79: 0 | AT79: MOSU MT | AU79: 0 | AV79: 0 | AX79: MOSU MT | AY79: 0 | AZ79: 0 | BG79: MOSU MT | BH79: 0 | BI79: 0 | BK79: MOSU MT | BL79: 0 | BM79: 0 | BO79: MOSU MT | BP79: 0 | BQ79: 0 | BS79: MOSU MT | BT79: 0 | BU79: 0 | CD79: =#REF! ->  | CE79: 73.7 | CF79: =IFERROR(VLOOKUP(#REF!,$A$6:$M$119,11,FALSE),"") ->  | CH79: =#REF! ->  | CI79: 73.7 | CJ79: =IFERROR(VLOOKUP(#REF!,$A$6:$M$119,12,FALSE),"") ->  | CL79: =#REF! ->  | CM79: 73.7 | CN79: =IFERROR(VLOOKUP(#REF!,$A$6:$M$119,13,FALSE),"") ->  | CP79: WWILSON PC | CQ79: 0 | CR79: 42.77359962
A80: PDW1A1B D21 | R80: PDW1A1B D21 | S80: 0.437 | T80: 0 | V80: PDW1A1B D21 | W80: 0.886 | X80: 0 | Z80: PDW1A1B D21 | AA80: =AA175 -> 0.63 | AB80: 0 | AD80: PDW1A1B D21 | AE80: =SUM(S80,W80,AA80) -> 1.953 | AF80: =SUM(T80,X80,AB80) -> 0
A81: Legacy Total | B81: =SUM(B6:B79) -> 3013.617028 | C81: =SUM(C6:C79) -> 3081.976571 | D81: 3051.44163 | E81: 2924.276985 | F81: 2992.526089 | G81: 2880.713974 | H81: 3117.794004 | I81: 3087.885178 | J81: 2668.108823 | K81: 3030.566152 | L81: 2906.078974 | M81: 2976.365814 | N81: 35731.35122 | R81: =A81 -> Legacy Total | S81: =SUM(S6:S80) -> 3138.969 | T81: =SUM(T6:T79) -> 3013.617028 | V81: =R81 -> Legacy Total | W81: =SUM(W6:W80) -> 3115.088 | X81: =SUM(X6:X79) -> 3081.976571 | Z81: Legacy Total | AA81: =SUM(AA6:AA80) -> 3014.381 | AB81: =SUM(AB6:AB79) -> 3051.44163 | AD81: Legacy Total | AE81: =SUM(AE6:AE79) -> 9266.485 | AF81: =SUM(AF6:AF79) -> 9147.035229 | AL81: =AD81 -> Legacy Total | AM81: =SUM(AM6:AM79) -> 0 | AN81: =SUM(AN6:AN79) -> 2924.276985 | AP81: =AL81 -> Legacy Total | AQ81: =SUM(AQ6:AQ79) -> 0 | AR81: =SUM(AR6:AR79) -> 2992.526089 | AT81: =AP81 -> Legacy Total | AU81: =SUM(AU6:AU79) -> 0 | AV81: =SUM(AV6:AV79) -> 2880.713974 | AX81: =AT81 -> Legacy Total | AY81: =SUM(AM81,AQ81,AU81) -> 0 | AZ81: 8797.517048 | BF81: =(AY81-AZ81)/AZ81 -> -1 | BG81: =R81 -> Legacy Total | BH81: =SUM(BH6:BH79) -> 0 | BI81: =SUM(BI6:BI79) -> 3117.794004 | BK81: =R81 -> Legacy Total | BL81: =SUM(BL6:BL79) -> 0 | BM81: =SUM(BM6:BM79) -> 3087.885178 | BO81: =A81 -> Legacy Total | BP81: =SUM(BP6:BP79) -> 0 | BQ81: =SUM(BQ6:BQ79) -> 2668.108823 | BS81: =A81 -> Legacy Total | BT81: =SUM(BH81,BL81,BP81) -> 0 | BU81: =SUM(BI81,BM81,BQ81) -> 8873.788006 | CD81: =A81 -> Legacy Total | CE81: 83.7 | CF81: =IFERROR(VLOOKUP($A81,$A$6:$M$119,11,FALSE),"") -> 3030.566152 | CH81: =A81 -> Legacy Total | CI81: 83.7 | CJ81: =IFERROR(VLOOKUP($A81,$A$6:$M$119,12,FALSE),"") -> 2906.078974 | CL81: =A81 -> Legacy Total | CM81: 83.7 | CN81: =IFERROR(VLOOKUP($A81,$A$6:$M$119,13,FALSE),"") -> 2976.365814 | CP81: Legacy Total | CQ81: 0 | CR81: 10271.90039
X82: =IFERROR(VLOOKUP(V82,$A$6:$M$119,3,FALSE),"") ->  | AB82: =IFERROR(VLOOKUP(Z82,$A$6:$M$119,4,FALSE),"") ->  | AR82: =IFERROR(VLOOKUP($AP82,$A$6:$M$119,6,FALSE),"") ->  | AV82: =IFERROR(VLOOKUP($AT82,$A$6:$M$119,7,FALSE),"") ->  | BM82: =IFERROR(VLOOKUP($BK82,$A$6:$M$119,9,FALSE),"") ->  | CF82: =IFERROR(VLOOKUP($A82,$A$6:$M$119,11,FALSE),"") ->  | CJ82: =IFERROR(VLOOKUP($A82,$A$6:$M$119,12,FALSE),"") ->  | CN82: =IFERROR(VLOOKUP($A82,$A$6:$M$119,13,FALSE),"") -> 
A83: Wexpro I | B83: =B5 -> 2020-06-01 | C83: 2020-07-01 | D83: 2020-08-01 | E83: 2020-09-01 | F83: 2020-10-01 | G83: 2020-11-01 | H83: 2020-12-01 | I83: 2021-01-01 | J83: 2021-02-01 | K83: 2021-03-01 | L83: 2021-04-01 | M83: 2021-05-01 | N83: Total | R83: =A83 -> Wexpro I | V83: =R83 -> Wexpro I | Z83: =R83 -> Wexpro I | AD83: =R83 -> Wexpro I | AL83: =AD83 -> Wexpro I | AP83: =AL83 -> Wexpro I | AT83: =AL83 -> Wexpro I | AX83: =AL83 -> Wexpro I | BG83: =AT83 -> Wexpro I | BK83: =AX83 -> Wexpro I | BO83: Wexpro I | BS83: =A83 -> Wexpro I | CF83: =IFERROR(VLOOKUP($A83,$A$6:$M$119,11,FALSE),"") -> 44256 | CJ83: =IFERROR(VLOOKUP($A83,$A$6:$M$119,12,FALSE),"") -> 44287 | CN83: =IFERROR(VLOOKUP($A83,$A$6:$M$119,13,FALSE),"") -> 44317 | CP83: Wexpro I
A84: CCRUNIT MT | B84: 52.40100098 | C84: 53.01309967 | D84: 51.93740082 | E84: 49.27500153 | F84: 49.94409943 | G84: 47.43600082 | H84: 48.13370132 | I84: 47.29050064 | J84: 40.53559875 | K84: 45.70330048 | L84: 43.50899887 | M84: 44.24629974 | N84: =SUM(B84:M84) -> 573.4250031 | R84: CCRUNIT MT | S84: =IFERROR(VLOOKUP(R84,$R$116:$S$210,2,FALSE),0)*O139 -> 53.48584584 | T84: =IFERROR(VLOOKUP(R84,$A$6:$M$119,2,FALSE),"") -> 52.40100098 | V84: CCRUNIT MT | W84: =IFERROR(VLOOKUP(V84,$V$116:$W$210,2,FALSE),0)*O140 -> 56.25912581 | X84: =IFERROR(VLOOKUP(V84,$A$6:$M$119,3,FALSE),"") -> 53.01309967 | Z84: CCRUNIT MT | AA84: =AA135*O141 -> 54.85785523 | AB84: =IFERROR(VLOOKUP(Z84,$A$6:$M$119,4,FALSE),"") -> 51.93740082 | AD84: CCRUNIT MT | AE84: =SUM(S84,W84,AA84) -> 164.6028269 | AF84: =SUM(T84,X84,AB84) -> 157.3515015 | AL84: CCRUNIT MT | AM84: =IFERROR(VLOOKUP(AL84,$AL$116:$AM$206,2,FALSE),0) -> 0 | AN84: =IFERROR(VLOOKUP(AL84,$A$6:$M$119,5,FALSE),"") -> 49.27500153 | AP84: CCRUNIT MT | AQ84: =IFERROR(VLOOKUP(AP84,$AP$116:$AQ$215,2,FALSE),0) -> 0 | AR84: =IFERROR(VLOOKUP($AP84,$A$6:$M$119,6,FALSE),"") -> 49.94409943 | AT84: CCRUNIT MT | AU84: =IFERROR(VLOOKUP(AT84,$AT$116:$AU$208,2,FALSE),0) -> 0 | AV84: =IFERROR(VLOOKUP($AT84,$A$6:$M$119,7,FALSE),"") -> 47.43600082 | AX84: CCRUNIT MT | AY84: =SUM(AM84,AQ84,AU84) -> 0 | AZ84: =SUM(AN84,AR84,AV84) -> 146.6551018 | BG84: =R84 -> CCRUNIT MT | BH84: =IFERROR(VLOOKUP($BG84,$BG$114:$BH$209,2,FALSE),0) -> 0 | BI84: =IFERROR(VLOOKUP($BG84,$A$6:$M$119,8,FALSE),"") -> 48.13370132 | BK84: =R84 -> CCRUNIT MT | BL84: =IFERROR(VLOOKUP($BK84,$BK$118:$BL$207,2,FALSE),0) -> 0 | BM84: =IFERROR(VLOOKUP($BK84,$A$6:$M$119,9,FALSE),"") -> 47.29050064 | BO84: =A84 -> CCRUNIT MT | BP84: =IFERROR(VLOOKUP($BO84,$BO$117:$BP$204,2,FALSE),0) -> 0 | BQ84: =IFERROR(VLOOKUP($BO84,$A$6:$M$119,10,FALSE),0) -> 40.53559875 | BS84: CCRUNIT MT | BT84: =SUM(BH84,BL84,BP84) -> 0 | BU84: 135.9598007 | CD84: =A84 -> CCRUNIT MT | CF84: =IFERROR(VLOOKUP($A84,$A$6:$M$119,11,FALSE),"") -> 45.70330048 | CH84: =A84 -> CCRUNIT MT | CJ84: =IFERROR(VLOOKUP($A84,$A$6:$M$119,12,FALSE),"") -> 43.50899887 | CL84: =A84 -> CCRUNIT MT | CN84: =IFERROR(VLOOKUP($A84,$A$6:$M$119,13,FALSE),"") -> 44.24629974 | CP84: CCRUNIT D8 | CQ84: 0 | CR84: 0
A85: CCRUNIT D8 | B85: 246.845993 | C85: 247.414093 | D85: 240.5413971 | E85: 226.7640076 | F85: 227.8159027 | G85: 213.9210052 | H85: 214.8392944 | I85: 209.1011963 | J85: 177.7160034 | K85: 198.8339996 | L85: 187.9440002 | M85: 189.875 | N85: =SUM(B85:M85) -> 2581.611893 | R85: CCRUNIT D8 | S85: =IFERROR(VLOOKUP(R85,$R$116:$S$210,2,FALSE),0) -> 252.393 | T85: 246.845993 | V85: CCRUNIT D8 | W85: =IFERROR(VLOOKUP(V85,$V$116:$W$210,2,FALSE),0) -> 267.975 | X85: 247.414093 | Z85: CCRUNIT D8 | AA85: =IFERROR(VLOOKUP(Z85,$Z$116:$AA$210,2,FALSE),0) -> 254.277 | AB85: 240.5413971 | AD85: CCRUNIT D8 | AE85: =SUM(S85,W85,AA85) -> 774.645 | AF85: 734.8014832 | AL85: CCRUNIT D8 | AM85: 0 | AN85: 226.7640076 | AP85: CCRUNIT D8 | AQ85: 0 | AR85: 227.8159027 | AT85: CCRUNIT D8 | AU85: 0 | AV85: 213.9210052 | AX85: CCRUNIT D8 | AY85: =SUM(AM85,AQ85,AU85) -> 0 | AZ85: =SUM(AN85,AR85,AV85) -> 668.5009155 | BG85: CCRUNIT D8 | BH85: 0 | BI85: 214.8392944 | BK85: CCRUNIT D8 | BL85: 0 | BM85: 209.1011963 | BO85: CCRUNIT D8 | BP85: 0 | BQ85: 177.7160034 | BS85: CCRUNIT D8 | BT85: 0 | BU85: 601.6564941 | CD85: CCRUNIT D8 | CE85: 86.7 | CF85: =IFERROR(VLOOKUP($A85,$A$6:$M$119,11,FALSE),"") -> 198.8339996 | CH85: CCRUNIT D8 | CI85: 86.7 | CJ85: =IFERROR(VLOOKUP($A85,$A$6:$M$119,12,FALSE),"") -> 187.9440002 | CL85: CCRUNIT D8 | CM85: 86.7 | CN85: =IFERROR(VLOOKUP($A85,$A$6:$M$119,13,FALSE),"") -> 189.875 | CP85: MESA D8 | CQ85: 0 | CR85: 938.6582947
A86: KNY FLD D8 | B86: 20.47200012 | C86: 20.87540054 | D86: 20.60880089 | E86: 19.69199944 | F86: 20.09729958 | G86: 19.21500015 | H86: 19.61989975 | I86: 19.39360046 | J86: 16.71879959 | K86: 18.95960045 | L86: 18.14699936 | M86: 18.55039978 | N86: 232.3498001 | R86: KNY FLD D8 | S86: 0 | T86: 20.47200012 | V86: KNY FLD D8 | W86: 0 | X86: 20.87540054 | Z86: KNY FLD D8 | AA86: 15.391 | AB86: 20.60880089 | AD86: KNY FLD D8 | AE86: =SUM(S86,W86,AA86) -> 15.391 | AF86: =SUM(T86,X86,AB86) -> 61.95620155 | AL86: KNY FLD D8 | AM86: 0 | AN86: 19.69199944 | AP86: KNY FLD D8 | AQ86: 0 | AR86: 20.09729958 | AT86: KNY FLD D8 | AU86: 0 | AV86: 19.21500015 | AX86: KNY FLD D8 | AY86: =SUM(AM86,AQ86,AU86) -> 0 | AZ86: =SUM(AN86,AR86,AV86) -> 59.00429916 | BG86: KNY FLD D8 | BH86: 0 | BI86: 19.61989975 | BK86: KNY FLD D8 | BL86: 0 | BM86: 19.39360046 | BO86: KNY FLD D8 | BP86: 0 | BQ86: 16.71879959 | BS86: KNY FLD D8 | BT86: 0 | BU86: 55.7322998 | CD86: KNY FLD D8 | CH86: KNY FLD D8 | CL86: KNY FLD D8
A87: MESA D8 | B87: 681.7470093 | C87: 677.3530884 | D87: 653.4055786 | E87: 611.6040039 | F87: 612.6499023 | G87: 575.8380127 | H87: 578.8723145 | I87: 563.9675293 | J87: 479.7687988 | K87: 537.2703247 | L87: 508.2900085 | M87: 513.9396973 | N87: 6994.706268 | R87: MESA D8 | S87: 442.108 | T87: 681.7470093 | V87: MESA D8 | W87: 436.103 | X87: 677.3530884 | Z87: MESA D8 | AA87: 415.627 | AB87: 653.4055786 | AD87: MESA D8 | AE87: 1293.838 | AF87: 2012.505676 | AL87: MESA D8 | AM87: 0 | AN87: 611.6040039 | AP87: MESA D8 | AQ87: 0 | AR87: 612.6499023 | AT87: MESA D8 | AU87: 0 | AV87: 575.8380127 | AX87: MESA D8 | AY87: 0 | AZ87: 1800.091919 | BG87: MESA D8 | BH87: 0 | BI87: 578.8723145 | BK87: MESA D8 | BL87: 0 | BM87: 563.9675293 | BO87: MESA D8 | BP87: 0 | BQ87: 479.7687988 | BS87: MESA D8 | BT87: 0 | BU87: 1622.608643 | CD87: MESA D8 | CH87: MESA D8 | CL87: MESA D8 | CP87: z18 CCRK D8
A88: TRAIL D8 | B88: 100.4489975 | C88: 101.0010986 | D88: 98.42189789 | E88: 92.94000244 | F88: 93.81839752 | G88: 88.78800201 | H88: 89.80699921 | I88: 87.98419952 | J88: 75.23320007 | K88: 84.64550018 | L88: 80.42700195 | M88: 81.65090179 | N88: 1075.166199 | R88: TRAIL D8 | S88: 105.489 | T88: 100.4489975 | V88: TRAIL D8 | W88: 52.922 | X88: 101.0010986 | Z88: TRAIL D8 | AA88: 52.912 | AB88: 98.42189789 | AD88: TRAIL D8 | AE88: 211.323 | AF88: 299.871994 | AL88: TRAIL D8 | AM88: 0 | AN88: 92.94000244 | AP88: TRAIL D8 | AQ88: 0 | AR88: 93.81839752 | AT88: TRAIL D8 | AU88: 0 | AV88: 88.78800201 | AX88: TRAIL D8 | AY88: 0 | AZ88: 275.546402 | BG88: TRAIL D8 | BH88: 0 | BI88: 89.80699921 | BK88: TRAIL D8 | BL88: 0 | BM88: 87.98419952 | BO88: TRAIL D8 | BP88: 0 | BQ88: 75.23320007 | BS88: TRAIL D8 | BT88: 0 | BU88: 253.0243988 | CD88: TRAIL D8 | CE88: 88.7 | CF88: =IFERROR(VLOOKUP($A88,$A$6:$M$119,11,FALSE),"") -> 84.64550018 | CH88: TRAIL D8 | CI88: 88.7 | CJ88: =IFERROR(VLOOKUP($A88,$A$6:$M$119,12,FALSE),"") -> 80.42700195 | CL88: TRAIL D8 | CM88: 88.7 | CN88: =IFERROR(VLOOKUP($A88,$A$6:$M$119,13,FALSE),"") -> 81.65090179 | CP88: z18 PINED D8 | CQ88: 0 | CR88: 796.3660126
A89: z20 MESA D8 | R89: z20 MESA D8 | S89: 253.097 | T89: 0 | V89: =R89 -> z20 MESA D8 | W89: 250.736 | X89: 0 | Z89: =R89 -> z20 MESA D8 | AA89: 235.046 | AB89: 0 | AD89: =R89 -> z20 MESA D8 | AE89: =SUM(S89,W89,AA89) -> 738.879 | AF89: =SUM(T89,X89,AB89) -> 0 | AL89: z20 MESA D8 | AM89: 0 | AN89: 0 | AP89: =AL89 -> z20 MESA D8 | AQ89: 0 | AR89: 0 | AT89: =AP89 -> z20 MESA D8 | AU89: 0 | AV89: 0 | AX89: =AT89 -> z20 MESA D8 | AY89: =SUM(AM89,AQ89,AU89) -> 0 | AZ89: =SUM(AN89,AR89,AV89) -> 0 | BG89: z20 MESA D8 | BH89: 0 | BI89: 0 | BK89: z20 MESA D8 | BL89: 0 | BM89: 0 | BO89: =#REF! ->  | BP89: 0 | BQ89: 0 | BS89: =#REF! ->  | BT89: =SUM(BH89,BL89,BP89) -> 0 | BU89: =SUM(BI89,BM89,BQ89) -> 0 | CD89: =#REF! ->  | CE89: 85.7 | CF89: =IFERROR(VLOOKUP(#REF!,$A$6:$M$119,11,FALSE),"") ->  | CH89: =#REF! ->  | CI89: 85.7 | CJ89: =IFERROR(VLOOKUP(#REF!,$A$6:$M$119,12,FALSE),"") ->  | CL89: =#REF! ->  | CM89: 85.7 | CN89: =IFERROR(VLOOKUP(#REF!,$A$6:$M$119,13,FALSE),"") ->  | CP89: KNY FLD D8 | CQ89: 0 | CR89: 43.79970074
A90: z20 TRAIL D8 | B90: 0 | C90: 0 | D90: 0 | E90: 0 | F90: 204.8325043 | G90: 174.2189941 | H90: 161.9781036 | I90: 148.1148987 | J90: 119.5235977 | K90: 127.9773026 | L90: 116.4779968 | M90: 113.8567963 | N90: 1166.980194 | R90: =A90 -> z20 TRAIL D8 | S90: 0 | T90: 0 | V90: =R90 -> z20 TRAIL D8 | W90: 0 | X90: 0 | Z90: =R90 -> z20 TRAIL D8 | AA90: 0 | AB90: 0 | AD90: =R90 -> z20 TRAIL D8 | AE90: =SUM(S90,W90,AA90) -> 0 | AF90: =SUM(T90,X90,AB90) -> 0
A91: z21 CCRK D8 | B91: 0 | C91: 0 | D91: 0 | E91: 0 | F91: 0 | G91: 0 | H91: 0 | I91: 0 | J91: 0 | K91: 0 | L91: 0 | M91: 0 | N91: 0 | R91: z21 CCRK D8 | S91: 0 | T91: 0 | V91: z21 CCRK D8 | W91: 0 | X91: 0 | Z91: z21 CCRK D8 | AA91: 0 | AB91: 0 | AD91: z21 CCRK D8 | AE91: 0 | AF91: 0
A92: z21 CHBT D8 | B92: 0 | C92: 0 | D92: 0 | E92: 0 | F92: 0 | G92: 0 | H92: 0 | I92: 0 | J92: 0 | K92: 0 | L92: 0 | M92: 0 | N92: 0 | R92: z21 CHBT D8 | S92: 0 | T92: 0 | V92: z21 CHBT D8 | W92: 0 | X92: 0 | Z92: z21 CHBT D8 | AA92: 0 | AB92: 0 | AD92: z21 CHBT D8 | AE92: 0 | AF92: 0
A93: z21 TRAIL D8 | B93: 0 | C93: 0 | D93: 0 | E93: 0 | F93: 0 | G93: 0 | H93: 0 | I93: 0 | J93: 0 | K93: 0 | L93: 0 | M93: 0 | N93: 0 | R93: z21 TRAIL D8 | S93: 0 | T93: 0 | V93: =R93 -> z21 TRAIL D8 | W93: 0 | X93: 0 | Z93: z21 TRAIL D8 | AA93: 0 | AB93: 0 | AD93: z21 TRAIL D8 | AE93: 0 | AF93: 0
A94: Wexpro I Total | B94: =SUM(B84:B93) -> 1101.915001 | C94: 1099.65678 | D94: 1064.915075 | E94: 1000.275015 | F94: 1209.158106 | G94: 1119.417015 | H94: 1113.250313 | I94: 1075.851925 | J94: 909.4959984 | K94: 1013.390028 | L94: 954.7950058 | M94: 962.1190948 | N94: 12624.23936 | R94: Wexpro l Total | S94: =SUM(S84:S93) -> 1106.572846 | T94: =SUM(T84:T93) -> 1101.915001 | V94: Wexpro l Total | W94: =SUM(W84:W93) -> 1063.995126 | X94: =SUM(X84:X93) -> 1099.65678 | Z94: Wexpro l Total | AA94: =SUM(AA84:AA93) -> 1028.110855 | AB94: =SUM(AB84:AB93) -> 1064.915075 | AD94: Wexpro l Total | AE94: 582.763 | AF94: 840.7417049 | AL94: =Z94 -> Wexpro l Total | AM94: =SUM(AM84:AM93) -> 0 | AN94: =SUM(AN84:AN93) -> 1000.275015 | AP94: =AD94 -> Wexpro l Total | AQ94: =SUM(AQ84:AQ93) -> 0 | AR94: =SUM(AR84:AR93) -> 1004.325602 | AT94: Wexpro l Total | AU94: =SUM(AU84:AU93) -> 0 | AV94: =SUM(AV84:AV93) -> 945.1980209 | AX94: Wexpro l Total | AY94: =SUM(AM94,AQ94,AU94) -> 0 | AZ94: =SUM(AN94,AR94,AV94) -> 2949.798637 | BF94: =(AY94-AZ94)/AZ94 -> -1 | BG94: Wexpro l Total | BH94: =SUM(BH84:BH93) -> 0 | BI94: =SUM(BI84:BI93) -> 951.2722092 | BK94: Wexpro l Total | BL94: =SUM(BL84:BL93) -> 0 | BM94: =SUM(BM84:BM93) -> 927.7370262 | BO94: Wexpro l Total | BP94: =SUM(BP84:BP93) -> 0 | BQ94: =SUM(BQ84:BQ93) -> 789.9724007 | BS94: Wexpro l Total | BT94: =SUM(BH94,BL94,BP94) -> 0 | BU94: =SUM(BI94,BM94,BQ94) -> 2668.981636 | CF94: =IFERROR(VLOOKUP($A94,$A$6:$M$119,11,FALSE),"") -> 1013.390028 | CJ94: =IFERROR(VLOOKUP($A94,$A$6:$M$119,12,FALSE),"") -> 954.7950058 | CN94: =IFERROR(VLOOKUP($A94,$A$6:$M$119,13,FALSE),"") -> 962.1190948 | CP94: New Drill Total | CQ94: 0 | CR94: 3426.454913
T95: =IFERROR(VLOOKUP(R95,$A$6:$M$119,2,FALSE),"") ->  | X95: =IFERROR(VLOOKUP(V95,$A$6:$M$119,3,FALSE),"") ->  | AB95: =IFERROR(VLOOKUP(Z95,$A$6:$M$119,4,FALSE),"") ->  | AN95: =IFERROR(VLOOKUP(AL95,$A$6:$M$119,5,FALSE),"") ->  | AR95: =IFERROR(VLOOKUP($AP95,$A$6:$M$119,6,FALSE),"") ->  | AV95: =IFERROR(VLOOKUP($AT95,$A$6:$M$119,7,FALSE),"") ->  | BB95: IRP Variance | BC95: ='Ex 1 HDD'!I2 -> Docket No. 20-057-02 | BD95: Dominion Energy Utah | BI95: =IFERROR(VLOOKUP($BG95,$A$6:$M$119,8,FALSE),"") ->  | BM95: =IFERROR(VLOOKUP($BK95,$A$6:$M$119,9,FALSE),"") -> 
A96: Wexpro II | B96: =B5 -> 2020-06-01 | C96: 2020-07-01 | D96: 2020-08-01 | E96: 2020-09-01 | F96: 2020-10-01 | G96: 2020-11-01 | H96: 2020-12-01 | I96: 2021-01-01 | J96: 2021-02-01 | K96: 2021-03-01 | L96: 2021-04-01 | M96: 2021-05-01 | N96: =N83 -> Total | R96: =A96 -> Wexpro II | V96: Wexpro II | Z96: Wexpro II | AD96: =V96 -> Wexpro II | AL96: =AD96 -> Wexpro II | AP96: Wexpro II | AT96: Wexpro II | AX96: Wexpro II | BG96: Wexpro II | BK96: =BG96 -> Wexpro II | BO96: =BK96 -> Wexpro II | BS96: =BO96 -> Wexpro II | CD96: =A96 -> Wexpro II | CE96: 90.7 | CF96: 44256 | CH96: =A96 -> Wexpro II | CI96: 90.7 | CJ96: 44287 | CL96: =A96 -> Wexpro II | CM96: 90.7 | CN96: 44317 | CP96: Wexpro II | CQ96: 0 | CR96: 130398
A97: CCOPA 2E | B97: 4.782000065 | C97: 4.913499832 | D97: 4.88560009 | E97: 4.701000214 | F97: 4.829800129 | G97: 4.650000095 | H97: 4.777100086 | I97: 4.749199867 | J97: 4.118800163 | K97: 4.696499825 | L97: 4.518000126 | M97: 4.640699863 | N97: =SUM(B97:M97) -> 56.26220036 | R97: CCOPA 2E | S97: =IFERROR(VLOOKUP(R97,$R$116:$S$210,2,FALSE),0) -> 4.443 | T97: =IFERROR(VLOOKUP(R97,$A$6:$M$119,2,FALSE),"") -> 4.782000065 | V97: CCOPA 2E | W97: =IFERROR(VLOOKUP(V97,$V$116:$W$210,2,FALSE),0) -> 4.127 | X97: =IFERROR(VLOOKUP(V97,$A$6:$M$119,3,FALSE),"") -> 4.913499832 | Z97: =R97 -> CCOPA 2E | AA97: =IFERROR(VLOOKUP(Z97,$Z$116:$AA$208,2,FALSE),0) -> 3.523 | AB97: =IFERROR(VLOOKUP(Z97,$A$6:$M$119,4,FALSE),"") -> 4.88560009 | AD97: CCOPA 2E | AE97: =SUM(S97,W97,AA97) -> 12.093 | AF97: =SUM(T97,X97,AB97) -> 14.58109999 | AH97: ='Ex 1 HDD'!I3 -> IRP Variance Exhibit | AI97: ='Ex 1 HDD'!I2 -> Docket No. 20-057-02 | AJ97: ='Ex 1 HDD'!I1 -> Dominion Energy Utah | AL97: CCOPA 2E | AM97: =IFERROR(VLOOKUP(AL97,$AL$116:$AM$206,2,FALSE),0) -> 0 | AN97: =IFERROR(VLOOKUP(AL97,$A$6:$M$119,5,FALSE),"") -> 4.701000214 | AP97: CCOPA 2E | AQ97: =IFERROR(VLOOKUP(AP97,$AP$116:$AQ$215,2,FALSE),0) -> 0 | AR97: =IFERROR(VLOOKUP($AP97,$A$6:$M$119,6,FALSE),"") -> 4.829800129 | AT97: CCOPA 2E | AU97: =IFERROR(VLOOKUP(AT97,$AT$116:$AU$208,2,FALSE),0) -> 0 | AV97: =IFERROR(VLOOKUP($AT97,$A$6:$M$119,7,FALSE),"") -> 4.650000095 | AX97: CCOPA 2E | AY97: =SUM(AM97,AQ97,AU97) -> 0 | AZ97: =SUM(AN97,AR97,AV97) -> 14.18080044 | BG97: =R97 -> CCOPA 2E | BH97: =IFERROR(VLOOKUP($BG97,$BG$114:$BH$209,2,FALSE),0) -> 0 | BI97: =IFERROR(VLOOKUP($BG97,$A$6:$M$119,8,FALSE),"") -> 4.777100086 | BK97: =R97 -> CCOPA 2E | BL97: =IFERROR(VLOOKUP($BK97,$BK$117:$BL$207,2,FALSE),0) -> 0 | BM97: =IFERROR(VLOOKUP($BK97,$A$6:$M$119,9,FALSE),"") -> 4.749199867 | BO97: =A97 -> CCOPA 2E | BP97: =IFERROR(VLOOKUP($BO97,$BO$117:$BP$207,2,FALSE),0) -> 0 | BQ97: =IFERROR(VLOOKUP($BO97,$A$6:$M$119,10,FALSE),0) -> 4.118800163 | BS97: =A97 -> CCOPA 2E | BT97: =SUM(BH97,BL97,BP97) -> 0 | BU97: =SUM(BI97,BM97,BQ97) -> 13.64510012 | CD97: =A97 -> CCOPA 2E | CE97: 91.7 | CF97: 4.696499825 | CH97: =A97 -> CCOPA 2E | CI97: 91.7 | CJ97: 4.518000126 | CL97: =A97 -> CCOPA 2E | CM97: 91.7 | CN97: 4.640699863 | CP97: CCOPA 2E | CQ97: 0 | CR97: 16.3652997
A98: CCRUNIT2EMT | B98: 24.40200043 | C98: 25.02939987 | D98: 24.8465004 | E98: 23.86800003 | F98: 24.48380089 | G98: 23.31299973 | H98: 23.91650009 | I98: 23.74600029 | J98: 20.56040001 | K98: 23.40810013 | L98: 22.49399948 | M98: 23.07640076 | N98: =SUM(B98:M98) -> 283.1441021 | R98: CCRUNIT2EMT | S98: 23.314 | T98: 24.40200043 | V98: CCRUNIT2EMT | W98: 26.322 | X98: 25.02939987 | Z98: CCRUNIT2EMT | AA98: 27.247 | AB98: 24.8465004 | AD98: CCRUNIT2EMT | AE98: =SUM(S98,W98,AA98) -> 76.883 | AF98: =SUM(T98,X98,AB98) -> 74.2779007 | AL98: CCRUNIT2EMT | AM98: =IFERROR(VLOOKUP(AL98,$AL$116:$AM$206,2,FALSE),0)*P142 -> 0 | AN98: 23.86800003 | AP98: CCRUNIT2EMT | AQ98: =IFERROR(VLOOKUP(AP98,$AP$116:$AQ$206,2,FALSE),0)*P143 -> 0 | AR98: 24.48380089 | AT98: CCRUNIT2EMT | AU98: =IFERROR(VLOOKUP(AT98,$AT$116:$AU$208,2,FALSE),0)*P144 -> 0 | AV98: 23.31299973 | AX98: CCRUNIT2EMT | AY98: =SUM(AM98,AQ98,AU98) -> 0 | AZ98: =SUM(AN98,AR98,AV98) -> 71.66480064 | BG98: CCRUNIT2EMT | BH98: =IFERROR(VLOOKUP($BG98,$BG$118:$BH$209,2,FALSE),0)*P145 -> 0 | BI98: 23.91650009 | BK98: CCRUNIT2EMT | BL98: =IFERROR(VLOOKUP($BK98,$BK$117:$BL$207,2,FALSE),0)*P146 -> 0 | BM98: 23.74600029 | BO98: CCRUNIT2EMT | BP98: =IFERROR(VLOOKUP($BO98,$BO$117:$BP$207,2,FALSE),0)*P147 -> 0 | BQ98: 20.56040001 | BS98: CCRUNIT2EMT | BT98: 0 | BU98: 68.22290039 | CD98: =A98 -> CCRUNIT2EMT | CE98: 92.7 | CF98: 23.40810013 | CH98: =A98 -> CCRUNIT2EMT | CI98: 92.7 | CJ98: 22.49399948 | CL98: =A98 -> CCRUNIT2EMT | CM98: 92.7 | CN98: 23.07640076 | CP98: CCRUNIT 2D8 | CQ98: 0 | CR98: 300.7169952
A99: CCRUNIT 2D8 | B99: 100.2509995 | C99: 100.4430981 | D99: 97.62210083 | E99: 92.00099945 | F99: 92.39550018 | G99: 86.71800232 | H99: 87.05420113 | I99: 84.70129967 | J99: 71.96280003 | K99: 80.48530102 | L99: 76.0530014 | M99: 76.80869865 | N99: 1046.496002 | R99: CCRUNIT 2D8 | S99: 95.178 | T99: 100.2509995 | V99: CCRUNIT 2D8 | W99: 94.546 | X99: 100.4430981 | Z99: CCRUNIT 2D8 | AA99: 91.214 | AB99: 97.62210083 | AD99: CCRUNIT 2D8 | AE99: =SUM(S99,W99,AA99) -> 280.938 | AF99: =SUM(T99,X99,AB99) -> 298.3161983 | AL99: CCRUNIT 2D8 | AM99: =IFERROR(VLOOKUP(AL99,$AL$116:$AM$206,2,FALSE),0) -> 0 | AN99: 92.00099945 | AP99: CCRUNIT 2D8 | AQ99: =IFERROR(VLOOKUP(AP99,$AP$116:$AQ$215,2,FALSE),0) -> 0 | AR99: 92.39550018 | AT99: CCRUNIT 2D8 | AU99: =IFERROR(VLOOKUP(AT99,$AT$116:$AU$208,2,FALSE),0) -> 0 | AV99: 86.71800232 | AX99: CCRUNIT 2D8 | AY99: =SUM(AM99,AQ99,AU99) -> 0 | AZ99: =SUM(AN99,AR99,AV99) -> 271.114502 | BG99: CCRUNIT 2D8 | BH99: =IFERROR(VLOOKUP($BG99,$BG$114:$BH$209,2,FALSE),0) -> 0 | BI99: 87.05420113 | BK99: CCRUNIT 2D8 | BL99: =IFERROR(VLOOKUP($BK99,$BK$117:$BL$207,2,FALSE),0) -> 0 | BM99: 84.70129967 | BO99: CCRUNIT 2D8 | BP99: =IFERROR(VLOOKUP($BO99,$BO$117:$BP$207,2,FALSE),0) -> 0 | BQ99: 71.96280003 | BS99: CCRUNIT 2D8 | BT99: 0 | BU99: 243.7183008 | BV99: IRP Variance | BW99: Docket No. 19-057-01 | BX99: Dominion Energy Utah | CD99: =A99 -> CCRUNIT 2D8 | CF99: 80.48530102 | CH99: =A99 -> CCRUNIT 2D8 | CJ99: 76.0530014 | CL99: =A99 -> CCRUNIT 2D8 | CN99: 76.80869865 | CP99: CCRUNIT 2E | CQ99: 0 | CR99: 732.0568085
A100: CCRUNIT 2E | B100: 284.9880066 | C100: 290.4978943 | D100: 286.7034912 | E100: 273.947998 | F100: 279.6106873 | G100: 267.3659973 | H100: 273.0697021 | I100: 269.9758911 | J100: 232.8312073 | K100: 264.085907 | L100: 252.845993 | M100: 258.5462036 | N100: 3234.468979 | R100: CCRUNIT 2E | S100: 262.572 | T100: 284.9880066 | V100: CCRUNIT 2E | W100: 277.737 | X100: 290.4978943 | Z100: CCRUNIT 2E | AA100: 278.277 | AB100: 286.7034912 | AD100: CCRUNIT 2E | AE100: 818.586 | AF100: 862.1893921 | AL100: CCRUNIT 2E | AM100: 0 | AN100: 273.947998 | AP100: CCRUNIT 2E | AQ100: 0 | AR100: 279.6106873 | AT100: CCRUNIT 2E | AU100: 0 | AV100: 267.3659973 | AX100: CCRUNIT 2E | AY100: 0 | AZ100: 820.9246826 | BG100: CCRUNIT 2E | BH100: 0 | BI100: 273.0697021 | BK100: CCRUNIT 2E | BL100: 0 | BM100: 269.9758911 | BO100: CCRUNIT 2E | BP100: 0 | BQ100: 232.8312073 | BS100: CCRUNIT 2E | BT100: 0 | BU100: 775.8768005 | CP100: CCRUNIT2EMT | CQ100: 0 | CR100: 67.91430092
A101: TRAIL 2E | B101: 404.243988 | C101: 409.9284973 | D101: 402.6496887 | E101: 383.04599 | F101: 389.3599854 | G101: 370.881012 | H101: 377.4312134 | I101: 371.8883972 | J101: 319.6983948 | K101: 361.5220032 | L101: 345.1470032 | M101: 351.973999 | N101: 4487.770172 | R101: TRAIL 2E | S101: 433.419 | T101: 404.243988 | V101: TRAIL 2E | W101: 326.705 | X101: 409.9284973 | Z101: TRAIL 2E | AA101: 330.971 | AB101: 402.6496887 | AD101: TRAIL 2E | AE101: 1091.095 | AF101: 1216.822174 | AL101: TRAIL 2E | AM101: 0 | AN101: 383.04599 | AP101: TRAIL 2E | AQ101: 0 | AR101: 389.3599854 | AT101: TRAIL 2E | AU101: 0 | AV101: 370.881012 | AX101: TRAIL 2E | AY101: 0 | AZ101: 1143.286987 | BG101: TRAIL 2E | BH101: 0 | BI101: 377.4312134 | BK101: TRAIL 2E | BL101: 0 | BM101: 371.8883972 | BO101: TRAIL 2E | BP101: 0 | BQ101: 319.6983948 | BS101: TRAIL 2E | BT101: 0 | BU101: 1069.018005 | CP101: TRAIL 2D8 | CQ101: 0 | CR101: 98.62989998
A102: TRAIL 2E MT | B102: 54.50699997 | C102: 55.43730164 | D102: 54.60340118 | E102: 52.08000183 | F102: 53.06579971 | G102: 50.66400146 | H102: 51.66770172 | I102: 51.0135994 | J102: 43.93759918 | K102: 49.77360153 | L102: 47.60100174 | M102: 48.62039948 | N102: 612.9714088 | R102: TRAIL 2E MT | S102: 50.777 | T102: 54.50699997 | V102: TRAIL 2E MT | W102: 50.702 | X102: 55.43730164 | Z102: TRAIL 2E MT | AA102: 51.258 | AB102: 54.60340118 | AD102: TRAIL 2E MT | AE102: 152.737 | AF102: 164.5477028 | AL102: TRAIL 2E MT | AM102: 0 | AN102: 52.08000183 | AP102: TRAIL 2E MT | AQ102: 0 | AR102: 53.06579971 | AT102: TRAIL 2E MT | AU102: 0 | AV102: 50.66400146 | AX102: TRAIL 2E MT | AY102: 0 | AZ102: 155.809803 | BG102: TRAIL 2E MT | BH102: 0 | BI102: 51.66770172 | BK102: TRAIL 2E MT | BL102: 0 | BM102: 51.0135994 | BO102: TRAIL 2E MT | BP102: 0 | BQ102: 43.93759918 | BS102: TRAIL 2E MT | BT102: 0 | BU102: 146.6189003 | CP102: TRAIL 2E | CQ102: 0 | CR102: 1085.887085
A103: WHISKEYC 2E | B103: 98.28900146 | C103: 99.74250031 | D103: 98.01270294 | E103: 93.26100159 | F103: 94.80419922 | G103: 90.30000305 | H103: 91.88089752 | I103: 90.51380157 | J103: 77.78959656 | K103: 87.94080353 | L103: 83.93399811 | M103: 85.56620026 | N103: 1092.034706 | R103: WHISKEYC 2E | S103: 99.989 | T103: 98.28900146 | V103: WHISKEYC 2E | W103: 99.754 | X103: 99.74250031 | Z103: WHISKEYC 2E | AA103: 97.158 | AB103: 98.01270294 | AD103: WHISKEYC 2E | AE103: 296.901 | AF103: 296.0442047 | AL103: WHISKEYC 2E | AM103: 0 | AN103: 93.26100159 | AP103: WHISKEYC 2E | AQ103: 0 | AR103: 94.80419922 | AT103: WHISKEYC 2E | AU103: 0 | AV103: 90.30000305 | AX103: WHISKEYC 2E | AY103: =SUM(AM103,AQ103,AU103) -> 0 | AZ103: =SUM(AN103,AR103,AV103) -> 278.3652039 | BG103: WHISKEYC 2E | BH103: 0 | BI103: 91.88089752 | BK103: WHISKEYC 2E | BL103: 0 | BM103: 90.51380157 | BO103: WHISKEYC 2E | BP103: 0 | BQ103: 77.78959656 | BS103: WHISKEYC 2E | BT103: 0 | BU103: 260.1842957 | CP103: TRAIL 2E MT | CQ103: 0 | CR103: 159.1819
A104: WHISKEY MT | B104: 33.26699829 | C104: 33.70320129 | D104: 33.0646019 | E104: 31.40999985 | F104: 31.87730026 | G104: 30.31800079 | H104: 30.8015995 | I104: 30.29940033 | J104: 26.00359917 | K104: 29.35700035 | L104: 27.9810009 | M104: 28.48900032 | N104: 366.571703 | R104: WHISKEY MT | S104: 31.854 | T104: 33.26699829 | V104: WHISKEY MT | W104: 31.377 | X104: 33.70320129 | Z104: WHISKEY MT | AA104: 34.848 | AB104: 33.0646019 | AD104: WHISKEY MT | AE104: 98.079 | AF104: 100.0348015 | AL104: WHISKEY MT | AM104: 0 | AN104: 31.40999985 | AP104: WHISKEY MT | AQ104: 0 | AR104: 31.87730026 | AT104: WHISKEY MT | AU104: 0 | AV104: 30.31800079 | AX104: WHISKEY MT | AY104: 0 | AZ104: 93.6053009 | BB104: 9.2 | BG104: WHISKEY MT | BH104: 0 | BI104: 30.8015995 | BK104: WHISKEY MT | BL104: 0 | BM104: 30.29940033 | BO104: WHISKEY MT | BP104: 0 | BQ104: 26.00359917 | BS104: WHISKEY MT | BT104: 0 | BU104: 87.104599 | CP104: WHISKEYC 2E | CQ104: 0 | CR104: 534.4078979
A105: TRAIL 2D8 | B105: 94.52700043 | C105: 94.39499664 | D105: 91.40660095 | E105: 85.80599976 | F105: 86.14589691 | G105: 81.11100006 | H105: 81.65399933 | I105: 79.63899994 | J105: 67.81040192 | K105: 75.99340057 | L105: 71.93699646 | M105: 72.77559662 | N105: 983.2008896 | R105: TRAIL 2D8 | S105: 65.23 | T105: 94.52700043 | V105: TRAIL 2D8 | W105: 18.459 | X105: 94.39499664 | Z105: TRAIL 2D8 | AA105: 18.334 | AB105: 91.40660095 | AD105: TRAIL 2D8 | AE105: 102.023 | AF105: 280.328598 | AL105: TRAIL 2D8 | AM105: 0 | AN105: 85.80599976 | AP105: TRAIL 2D8 | AQ105: 0 | AR105: 86.14589691 | AT105: TRAIL 2D8 | AU105: 0 | AV105: 81.11100006 | AX105: TRAIL 2D8 | AY105: 0 | AZ105: 253.0628967 | BG105: TRAIL 2D8 | BH105: 0 | BI105: 81.65399933 | BK105: TRAIL 2D8 | BL105: 0 | BM105: 79.63899994 | BO105: TRAIL 2D8 | BP105: 0 | BQ105: 67.81040192 | BS105: TRAIL 2D8 | BT105: 0 | BU105: 229.1034012 | CP105: z18 CCRK 2D8 | CQ105: 0 | CR105: 473.4044037
A106: CCRUNIT MT | B106: 21.79199982 | C106: 22.04409981 | D106: 21.59770012 | E106: 20.48999977 | F106: 20.77000046 | G106: 19.72500038 | H106: 20.01670074 | I106: 19.66329956 | J106: 16.8560009 | K106: 19.0060997 | L106: 18.09300041 | M106: 18.39850044 | N106: 238.4524021 | R106: CCRUNIT MT | S106: =S137*P139 -> 22.24315416 | T106: =B106 -> 21.79199982 | V106: =R106 -> CCRUNIT MT | W106: =W137*P140 -> 23.39387419 | X106: =C106 -> 22.04409981 | Z106: =R106 -> CCRUNIT MT | AA106: =AA135*P141 -> 22.81214477 | AB106: =D106 -> 21.59770012 | AD106: =R106 -> CCRUNIT MT | AE106: =SUM(S106,W106,AA106) -> 68.44917312 | AF106: =SUM(T106,X106,AB106) -> 65.43379974
A107: z20 TRAIL2D8 | B107: 0 | C107: 0 | D107: 0 | E107: 0 | F107: 394.6238098 | G107: 335.7869873 | H107: 312.2753906 | I107: 285.6061096 | J107: 230.5072021 | K107: 246.8406067 | L107: 224.6820068 | M107: 219.6443024 | N107: 2249.966415 | R107: z20 TRAIL2D8 | S107: =IFERROR(VLOOKUP(R107,$R$116:$S$210,2,FALSE),0) -> 0 | T107: =IFERROR(VLOOKUP(R107,$A$6:$M$119,2,FALSE),"") -> 0 | V107: =R107 -> z20 TRAIL2D8 | W107: =IFERROR(VLOOKUP(V107,$V$116:$W$210,2,FALSE),0) -> 0 | X107: =IFERROR(VLOOKUP(V107,$A$6:$M$119,3,FALSE),"") -> 0 | Z107: =R107 -> z20 TRAIL2D8 | AA107: =IFERROR(VLOOKUP(Z107,$Z$116:$AA$208,2,FALSE),0) -> 0 | AB107: =IFERROR(VLOOKUP(Z107,$A$6:$M$119,4,FALSE),"") -> 0 | AD107: =R107 -> z20 TRAIL2D8 | AE107: =SUM(S107,W107,AA107) -> 0 | AF107: =SUM(T107,X107,AB107) -> 0
A108: z21 CCRK 2D8 | B108: 0 | C108: 0 | D108: 0 | E108: 0 | F108: 0 | G108: 0 | H108: 0 | I108: 0 | J108: 0 | K108: 0 | L108: 0 | M108: 0 | N108: 0 | R108: z21 CCRK 2D8 | S108: =IFERROR(VLOOKUP(R108,$R$116:$S$210,2,FALSE),0) -> 0 | T108: =IFERROR(VLOOKUP(R108,$A$6:$M$119,2,FALSE),"") -> 0 | V108: z21 CCRK 2D8 | W108: =IFERROR(VLOOKUP(V108,$V$116:$W$210,2,FALSE),0) -> 0 | X108: =IFERROR(VLOOKUP(V108,$A$6:$M$119,3,FALSE),"") -> 0 | Z108: z21 CCRK 2D8 | AA108: =IFERROR(VLOOKUP(Z108,$Z$116:$AA$208,2,FALSE),0) -> 0 | AB108: =IFERROR(VLOOKUP(Z108,$A$6:$M$119,4,FALSE),"") -> 0 | AD108: z21 CCRK 2D8 | AE108: 0 | AF108: 0
A109: z21 TRAIL2D8 | B109: 0 | C109: 0 | D109: 0 | E109: 0 | F109: 0 | G109: 0 | H109: 0 | I109: 0 | J109: 0 | K109: 0 | L109: 0 | M109: 0 | N109: 0 | R109: z21 TRAIL2D8 | S109: =IFERROR(VLOOKUP(R109,$R$116:$S$210,2,FALSE),0) -> 0 | T109: =IFERROR(VLOOKUP(R109,$A$6:$M$119,2,FALSE),"") -> 0 | V109: z21 TRAIL2D8 | W109: =IFERROR(VLOOKUP(V109,$V$116:$W$210,2,FALSE),0) -> 0 | X109: =IFERROR(VLOOKUP(V109,$A$6:$M$119,3,FALSE),"") -> 0 | Z109: z21 TRAIL2D8 | AA109: =IFERROR(VLOOKUP(Z109,$Z$116:$AA$208,2,FALSE),0) -> 0 | AB109: =IFERROR(VLOOKUP(Z109,$A$6:$M$119,4,FALSE),"") -> 0 | AD109: z21 TRAIL2D8 | AE109: 0 | AF109: 0
A110: z21 WSKY 2D8 | B110: 0 | C110: 0 | D110: 0 | E110: 0 | F110: 0 | G110: 0 | H110: 0 | I110: 0 | J110: 0 | K110: 0 | L110: 0 | M110: 0 | N110: 0 | R110: z21 WSKY 2D8 | S110: =IFERROR(VLOOKUP(R110,$R$116:$S$210,2,FALSE),0) -> 0 | T110: =IFERROR(VLOOKUP(R110,$A$6:$M$119,2,FALSE),"") -> 0 | V110: z21 WSKY 2D8 | W110: =IFERROR(VLOOKUP(V110,$V$116:$W$210,2,FALSE),0) -> 0 | X110: =IFERROR(VLOOKUP(V110,$A$6:$M$119,3,FALSE),"") -> 0 | Z110: z21 WSKY 2D8 | AA110: =IFERROR(VLOOKUP(Z110,$Z$116:$AA$208,2,FALSE),0) -> 0 | AB110: =IFERROR(VLOOKUP(Z110,$A$6:$M$119,4,FALSE),"") -> 0 | AD110: z21 WSKY 2D8 | AE110: 0 | AF110: 0
A111: Wexpro II Total | B111: =SUM(B97:B110) -> 1121.048995 | C111: 1136.134489 | D111: 1115.392388 | E111: 1060.610991 | F111: 1471.96678 | G111: 1360.833004 | H111: 1354.545006 | I111: 1311.795999 | J111: 1112.076002 | K111: 1243.109324 | L111: 1175.286002 | M111: 1188.540001 | N111: 14651.33898 | R111: Wexpro II Total | S111: =SUM(S97:S110) -> 1089.019154 | T111: =SUM(T97:T110) -> 1121.048995 | V111: Wexpro II Total | W111: =SUM(W97:W110) -> 953.1228742 | X111: =SUM(X97:X110) -> 1136.134489 | Z111: Wexpro II Total | AA111: =SUM(AA97:AA110) -> 955.6421448 | AB111: =SUM(AB97:AB110) -> 1115.392388 | AD111: Wexpro II Total | AE111: =SUM(AE97:AE110) -> 2997.784173 | AF111: =SUM(AF97:AF110) -> 3372.575872 | AL111: =AD111 -> Wexpro II Total | AM111: =SUM(AM97:AM110) -> 0 | AN111: =SUM(AN97:AN110) -> 1040.120991 | AP111: New Drill Total | AQ111: =SUM(AQ97:AQ110) -> 0 | AR111: =SUM(AR97:AR110) -> 1056.57297 | AT111: New Drill Total | AU111: =SUM(AU97:AU110) -> 0 | AV111: =SUM(AV97:AV110) -> 1005.321017 | AX111: New Drill Total | AY111: 0 | AZ111: 3102.014977 | BG111: =R111 -> Wexpro II Total | BH111: =SUM(BH97:BH110) -> 0 | BI111: =SUM(BI97:BI110) -> 1022.252915 | BK111: =R111 -> Wexpro II Total | BL111: =SUM(BL97:BL110) -> 0 | BM111: =SUM(BM97:BM110) -> 1006.526589 | BO111: =BK111 -> Wexpro II Total | BP111: =SUM(BP97:BP110) -> 0 | BQ111: =SUM(BQ97:BQ110) -> 864.7127991 | BT111: =SUM(BT97:BT110) -> 0 | BU111: =SUM(BU97:BU110) -> 2893.492303 | CF111: =IFERROR(VLOOKUP($A111,$A$6:$M$119,11,FALSE),"") -> 1243.109324 | CJ111: =IFERROR(VLOOKUP($A111,$A$6:$M$119,12,FALSE),"") -> 1175.286002 | CN111: =IFERROR(VLOOKUP($A111,$A$6:$M$119,13,FALSE),"") -> 1188.540001 | CQ111: 0 | CR111: 3826.006295
BW112: 9.2
A113: Off System | B113: =B5 -> 2020-06-01 | C113: 2020-07-01 | D113: 2020-08-01 | E113: 2020-09-01 | F113: 2020-10-01 | G113: 2020-11-01 | H113: 2020-12-01 | I113: 2021-01-01 | J113: 2021-02-01 | K113: 2021-03-01 | L113: 2021-04-01 | M113: 2021-05-01 | N113: =N96 -> Total | R113: Total | S113: =SUM(S81,S94,S111) -> 5334.561 | T113: =SUM(T81,T94,T111) -> 5236.581024 | V113: Total | W113: =SUM(W81,W94,W111) -> 5132.206 | X113: =SUM(X81,X94,X111) -> 5317.76784 | Z113: Total | AA113: =SUM(AA81,AA94,AA111) -> 4998.134 | AB113: =SUM(AB81,AB94,AB111) -> 5231.749093 | AD113: Total | AE113: =SUM(AE81,AE94,AE111) -> 12847.03217 | AF113: =SUM(AF81,AF94,AF111) -> 13360.35281 | AL113: Total | AM113: =SUM(AM81,AM94,AM111) -> 0 | AN113: =SUM(AN81,AN94,AN111) -> 4964.67299 | AP113: Total | AQ113: =SUM(AQ81,AQ94,AQ111) -> 0 | AR113: =SUM(AR81,AR94,AR111) -> 5053.42466 | AT113: Total | AU113: =SUM(AU81,AU94,AU111) -> 0 | AV113: =SUM(AV81,AV94,AV111) -> 4831.233012 | AX113: Total | AY113: =SUM(AY81,AY94,AY111) -> 0 | AZ113: =SUM(AZ81,AZ94,AZ111) -> 14849.33066 | BG113: =R113 -> Total | BH113: =SUM(BH111,BH94,BH81) -> 0 | BI113: =SUM(BI111,BI94,BI81) -> 5091.319128 | BK113: =R113 -> Total | BL113: =SUM(BL111,BL94,BL81) -> 0 | BM113: =SUM(BM111,BM94,BM81) -> 5022.148794 | BO113: =V113 -> Total | BP113: =SUM(BP111,BP94,BP81) -> 0 | BQ113: =SUM(BQ111,BQ94,BQ81) -> 4322.794023 | BS113: =Z113 -> Total | BT113: =SUM(BT111,BT94,BT81) -> 0 | BU113: =SUM(BU111,BU94,BU81) -> 14436.26195 | CP113: Total | CQ113: 0 | CR113: 17524.3616
A114: OFF SYS D24 | B114: 33.63308716 | C114: 34.56347275 | D114: 34.34426498 | E114: 33.05182266 | F114: 33.9628334 | G114: 32.65512466 | H114: 33.55290985 | I114: 33.36219406 | J114: 30.221735 | K114: 32.97766113 | L114: 31.72930145 | M114: 32.59622955 | N114: =SUM(B114:M114) -> 396.6506367
A115: OFF SYS PC | B115: 8.411999702 | C115: 8.655200005 | D115: 8.618000031 | E115: 8.303999901 | F115: 8.543600082 | G115: 8.232000351 | H115: 8.469200134 | I115: 8.43200016 | J115: 7.322000027 | K115: 8.360699654 | L115: 8.055000305 | M115: 8.286299706 | N115: =SUM(B115:M115) -> 99.69000006 | R115: nomgroup | S115: value_6 | T115: month_tot | V115: nomgroup | W115: value_7 | X115: month_tot | Z115: nomgroup | AA115: value_8 | AB115: month_tot
A116: OFF SYS PW | B116: 0 | C116: 0 | D116: 0 | E116: 0 | F116: 0 | G116: 0 | H116: 0 | I116: 0 | J116: 0 | K116: 0 | L116: 0 | M116: 0 | N116: =SUM(B116:M116) -> 0 | R116: ACEJDMT D24 | S116: 11.616 | T116: 5334.56 | V116: ACEJDMT D24 | W116: 9.432 | X116: 5132.2 | Z116: ACEJDMT D24 | AA116: 11.519 | AB116: 4998.13
A117: Off System Total | B117: =SUM(B114:B116) -> 42.04508686 | C117: =SUM(C114:C116) -> 43.21867275 | D117: 42.96226501 | E117: 41.35582256 | F117: 42.50643349 | G117: 40.88712502 | H117: 42.02210999 | I117: 41.79419422 | J117: 37.54373503 | K117: 41.33836079 | L117: 39.78430176 | M117: 40.88252926 | N117: =SUM(B117:M117) -> 496.3406367 | R117: ACEJDMT PC | S117: 3.443 | T117: 5334.56 | V117: ACEJDMT PC | W117: 3.93 | X117: 5132.2 | Z117: ACEJDMT PC | AA117: 2.512 | AB117: 4998.13
R118: BIRCH CREEK | S118: 132.936 | T118: 5334.56 | V118: BIRCH CREEK | W118: 134.366 | X118: 5132.2 | Z118: BIRCH CREEK | AA118: 133.616 | AB118: 4998.13
A119: Total without Off System | B119: =SUM(B81,B94,B111) -> 5236.581024 | C119: 5317.76784 | D119: 5231.749093 | E119: 4985.16299 | F119: 5673.650975 | G119: 5360.963994 | H119: 5585.589323 | I119: 5475.533102 | J119: 4689.680824 | K119: 5287.065504 | L119: 5036.159982 | M119: 5127.02491 | N119: 63006.92956 | R119: BKSPUNT6MTPC | S119: 5.84 | T119: 5334.56 | V119: BKSPUNT6MTPC | W119: 3.016 | X119: 5132.2 | Z119: BKSPUNT6MTPC | AA119: 2.403 | AB119: 4998.13
A120: Days/Month | B120: =DAY(EOMONTH(B5,0)) -> 30 | C120: 31 | D120: 31 | E120: 30 | F120: 31 | G120: 30 | H120: 31 | I120: 31 | J120: 28 | K120: 31 | L120: 30 | M120: 31 | R120: BRCH CRK D8 | S120: 0.588 | T120: 5334.56 | V120: BRCH CRK D8 | W120: 0 | X120: 5132.2 | Z120: BRFM D24 | AA120: 2.242 | AB120: 4998.13
A121: Per day | B121: =B119/B120 -> 174.5527008 | C121: =C119/C120 -> 171.5408981 | D121: 168.7660998 | E121: 166.1720997 | F121: 183.0209992 | G121: 178.6987998 | H121: 180.1803008 | I121: 176.6301001 | J121: 167.4886008 | K121: 170.5505001 | L121: 167.8719994 | M121: 165.3879003 | R121: BRFM D24 | S121: 1.996 | T121: 5334.56 | V121: BRFM D24 | W121: 2.298 | X121: 5132.2 | Z121: BRFM PC | AA121: 0.154 | AB121: 4998.13
R122: BRFM PC | S122: 0.161 | T122: 5334.56 | V122: BRFM PC | W122: 0.165 | X122: 5132.2 | Z122: BRFQ D24 | AA122: 147.947 | AB122: 4998.13
A123: Total with Off System | B123: =SUM(B117,B119) -> 5278.626111 | C123: =SUM(C117,C119) -> 5360.986513 | D123: 5274.711358 | E123: 5026.518813 | F123: 5716.157408 | G123: 5401.851119 | H123: 5627.611433 | I123: =SUM(I117,I119) -> 5517.327296 | J123: 4727.224559 | K123: 5328.403865 | L123: 5075.944284 | M123: 5167.90744 | N123: 63503.2702 | R123: BRFQ D24 | S123: 149.781 | T123: 5334.56 | V123: BRFQ D24 | W123: 153.818 | X123: 5132.2 | Z123: BRFQ PC | AA123: 9.308 | AB123: 4998.13
R124: BRFQ PC | S124: 10.736 | T124: 5334.56 | V124: BRFQ PC | W124: 12.339 | X124: 5132.2 | Z124: BRFQMT D24 | AA124: 4.928 | AB124: 4998.13
A125: Total Possible Prod. From SendOut | B125: 5421.189042 | C125: 5507.134508 | D125: 5419.74238 | E125: 5165.76605 | F125: 5858.919386 | G125: 5526.263975 | H125: 5586.339537 | I125: 5476.277121 | J125: 4690.327629 | K125: 5287.803294 | L125: 5036.871046 | M125: 5127.753429 | N125: =SUM(B125:M125) -> 64104.3874 | R125: BRFQMT D24 | S125: 2.026 | T125: 5334.56 | V125: BRFQMT D24 | W125: 1.199 | X125: 5132.2 | Z125: BRFQMT PC | AA125: 7.094 | AB125: 4998.13
A126: 1000 | R126: BRFQMT PC | S126: 6.549 | T126: 5334.56 | V126: BRFQMT PC | W126: 6.742 | X126: 5132.2 | Z126: BRFW D24 | AA126: 70.355 | AB126: 4998.13
A127: Shut-In per Month/dth | B127: =(B125-B119)*$A$126 -> 184608.0183 | C127: 189366.6679 | D127: 187993.2866 | E127: 180603.06 | F127: 185268.411 | G127: 165299.981 | H127: 750.2135464 | I127: 744.0191656 | J127: 646.8054057 | K127: 737.7902761 | L127: 711.0642351 | M127: 728.5185873 | N127: =SUM(B127:M127) -> 1097457.836 | R127: BRFW D24 | S127: 63.577 | T127: 5334.56 | V127: BRFW D24 | W127: 71.723 | X127: 5132.2 | Z127: BRFW PC | AA127: 11.536 | AB127: 4998.13
A128: Shut-In per Day/dth | B128: =B127/B120 -> 6153.600609 | C128: =C127/C120 -> 6108.602189 | D128: 6064.299568 | E128: 6020.102 | F128: 5976.400355 | G128: 5509.999365 | H128: 24.20043698 | I128: 24.00061825 | J128: 23.10019306 | K128: 23.79968633 | L128: 23.70214117 | M128: 23.50059959 | R128: BRFW PC | S128: 10.184 | T128: 5334.56 | V128: BRFW PC | W128: 11.794 | X128: 5132.2 | Z128: BRUFF MT | AA128: 8.882 | AB128: 4998.13
A129: Total New Drill | B129: =SUM(B90:B93,B107:B110) -> 0 | C129: 0 | D129: 0 | E129: 0 | F129: 599.4563141 | G129: 510.0059814 | H129: 474.2534943 | I129: 433.7210083 | J129: 350.0307999 | K129: 374.8179092 | L129: 341.1600037 | M129: 333.5010986 | N129: =SUM(B129:M129) -> 3416.946609 | R129: BRUFF MT | S129: 9.123 | T129: 5334.56 | V129: BRUFF MT | W129: 9.647 | X129: 5132.2 | Z129: CBFR PC | AA129: 61.665 | AB129: 4998.13
R130: CBFR D24 | S130: 12.064 | T130: 5334.56 | V130: CBFR D24 | W130: 4.681 | X130: 5132.2 | Z130: CCRUNIT 2D8 | AA130: 91.214 | AB130: 4998.13
P131: Add into CCRUNIT 2E | R131: CBFR PC | S131: 59.744 | T131: 5334.56 | V131: CBFR PC | W131: 62.123 | X131: 5132.2 | Z131: CCRUNIT 2E | AA131: 278.277 | AB131: 4998.13
B132: 81.63899994 | C132: 81.46489716 | D132: 78.86090088 | E132: 74.02799988 | F132: 74.3348999 | G132: 70.01100159 | H132: 70.50640106 | I132: 68.80139923 | J132: 58.61240005 | K132: 65.72000122 | L132: 62.24700165 | M132: 63.00439835 | R132: CCRUNIT 2D8 | S132: 95.178 | T132: 5334.56 | V132: CCRUNIT 2D8 | W132: 94.546 | X132: 5132.2 | Z132: CCRUNIT2EMT | AA132: 27.247 | AB132: 4998.13
B133: 18.61199951 | C133: 18.97820091 | D133: 18.76119995 | E133: 17.97299957 | F133: 18.06060028 | G133: 16.70700073 | H133: 16.54780006 | I133: 15.89990044 | J133: 13.35039997 | K133: 14.7652998 | L133: 13.80599976 | M133: 13.80430031 | R133: CCRUNIT 2E | S133: 262.572 | T133: 5334.56 | V133: CCRUNIT 2E | W133: 277.737 | X133: 5132.2 | Z133: CCRUNIT D24 | AA133: 487.875 | AB133: 4998.13
B134: 100.2509995 | C134: 100.4430981 | D134: 97.62210083 | E134: 92.00099945 | F134: 92.39550018 | G134: 86.71800232 | H134: 87.05420113 | I134: 84.70129967 | J134: 71.96280003 | K134: 80.48530102 | L134: 76.0530014 | M134: 76.80869865 | R134: CCRUNIT2EMT | S134: 23.314 | T134: 5334.56 | V134: CCRUNIT2EMT | W134: 26.322 | X134: 5132.2 | Z134: CCRUNIT D8 | AA134: 254.277 | AB134: 4998.13
R135: CCRUNIT D24 | S135: 457.373 | T135: 5334.56 | V135: CCRUNIT D24 | W135: 481.667 | X135: 5132.2 | Z135: CCRUNIT MT | AA135: 77.67 | AB135: 4998.13
M136: WE are now broken out between wexpro one and 2 based on y's | R136: CCRUNIT D8 | S136: 252.393 | T136: 5334.56 | V136: CCRUNIT D8 | W136: 267.975 | X136: 5132.2 | Z136: CCRUNIT PC | AA136: 47.936 | AB136: 4998.13
M137: Divide CCRUNIT MT Between Legacy and Wexpro II | R137: CCRUNIT MT | S137: 75.729 | T137: 5334.56 | V137: CCRUNIT MT | W137: 79.653 | X137: 5132.2 | Z137: CCRUNITMT PC | AA137: 16.351 | AB137: 4998.13
L138: Month | M138: Legacy | N138: Wexpro II | O138: % Legacy | P138: % Wexpro II | R138: CCRUNIT PC | S138: 49.077 | T138: 5334.56 | V138: CCRUNIT PC | W138: 51.611 | X138: 5132.2 | Z138: CCRUNITMTD24 | AA138: 40.298 | AB138: 4998.13
L139: June | M139: =B84 -> 52.40100098 | N139: =B106 -> 21.79199982 | O139: =M139/SUM(M139:N139) -> 0.7062795738 | P139: =N139/SUM(M139:N139) -> 0.2937204262 | R139: CCRUNITMT PC | S139: 13.841 | T139: 5334.56 | V139: CCRUNITMT PC | W139: 14.451 | X139: 5132.2 | Z139: CCOPA 2E | AA139: 3.523 | AB139: 4998.13
L140: July | M140: =C84 -> 53.01309967 | N140: =C106 -> 22.04409981 | O140: 0.7063026604 | P140: =N140/SUM(M140:N140) -> 0.2936973396 | R140: CCRUNITMTD24 | S140: 38.791 | T140: 5334.56 | V140: CCRUNITMTD24 | W140: 40.24 | X140: 5132.2 | Z140: CHBT MT | AA140: 16.21 | AB140: 4998.13
L141: Aug | M141: =D84 -> 51.93740082 | N141: =D106 -> 21.59770012 | O141: 0.7062940032 | P141: 0.2937059968 | R141: CCOPA 2E | S141: 4.443 | T141: 5334.56 | V141: CCOPA 2E | W141: 4.127 | X141: 5132.2 | Z141: CHBTBUFF D24 | AA141: 0.983 | AB141: 4998.13
L142: Sept | M142: =E84 -> 49.27500153 | N142: =E106 -> 20.48999977 | O142: 0.7062997292 | P142: 0.2937002708 | R142: CHBT MT | S142: 15.358 | T142: 5334.56 | V142: CHBT MT | W142: 15.189 | X142: 5132.2 | Z142: CHBTC1 MT PC | AA142: 25.3 | AB142: 4998.13
L143: Oct | M143: =F84 -> 49.94409943 | N143: =F106 -> 20.77000046 | O143: 0.7062820499 | P143: 0.2937179501 | R143: CHBTBUFF D24 | S143: 0.834 | T143: 5334.56 | V143: CHBTBUFF D24 | W143: 0.747 | X143: 5132.2 | Z143: CHBTCAT1 PC | AA143: 31.399 | AB143: 4998.13
L144: Nov | M144: =G84 -> 47.43600082 | N144: =G106 -> 19.72500038 | O144: 0.7063027646 | P144: 0.2936972354 | R144: CHBTC1 MT PC | S144: 19.572 | T144: 5334.56 | V144: CHBTC1 MT PC | W144: 13.359 | X144: 5132.2 | Z144: CHBTCAT2 D24 | AA144: 108.025 | AB144: 4998.13
L145: Dec | M145: =H84 -> 48.13370132 | N145: =H106 -> 20.01670074 | O145: 0.7062863881 | P145: =N145/SUM(M145:N145) -> 0.2937136119 | R145: CHBTCAT1 PC | S145: 36.562 | T145: 5334.56 | V145: CHBTCAT1 PC | W145: 41.836 | X145: 5132.2 | Z145: CHBTCAT2 PC | AA145: 2.435 | AB145: 4998.13
L146: Jan | M146: =I84 -> 47.29050064 | N146: =I106 -> 19.66329956 | O146: 0.706315407 | P146: 0.293684593 | R146: CHBTCAT2 D24 | S146: 78.82 | T146: 5334.56 | V146: CHBTCAT2 D24 | W146: 92.633 | X146: 5132.2 | Z146: CHBTCAT3 D24 | AA146: 162.037 | AB146: 4998.13
L147: Feb | M147: =J84 -> 40.53559875 | N147: =J106 -> 16.8560009 | O147: 0.7062984653 | P147: 0.2937015347 | R147: CHBTCAT2 PC | S147: 2.041 | T147: 5334.56 | V147: CHBTCAT2 PC | W147: 2.363 | X147: 5132.2 | Z147: DRY PINY MT | AA147: 4.305 | AB147: 4998.13
L148: Mar | M148: =K84 -> 45.70330048 | R148: CHBTCAT3 D24 | S148: 146.814 | T148: 5334.56 | V148: CHBTCAT3 D24 | W148: 152.336 | X148: 5132.2 | Z148: DRYPINY6 D24 | AA148: 0.827 | AB148: 4998.13
L149: Apr | M149: =L84 -> 43.50899887 | R149: DRY PINY MT | S149: 4.242 | T149: 5334.56 | V149: DRY PINY MT | W149: 4.202 | X149: 5132.2 | Z149: DRYPINY6 PC | AA149: 1.137 | AB149: 4998.13
L150: May | M150: =M84 -> 44.24629974 | R150: DRYPINY6 D24 | S150: 0.806 | T150: 5334.56 | V150: DRYPINY6 D24 | W150: 0.729 | X150: 5132.2 | Z150: DRYPINYU D24 | AA150: 1.951 | AB150: 4998.13
R151: DRYPINY6 PC | S151: 1.134 | T151: 5334.56 | V151: DRYPINY6 PC | W151: 1.108 | X151: 5132.2 | Z151: DRYPINYU PC | AA151: 9.829 | AB151: 4998.13
R152: DRYPINYU D24 | S152: 1.911 | T152: 5334.56 | V152: DRYPINYU D24 | W152: 1.967 | X152: 5132.2 | Z152: FOGARTY PC | AA152: 1.108 | AB152: 4998.13
R153: DRYPINYU PC | S153: 9.202 | T153: 5334.56 | V153: DRYPINYU PC | W153: 10.166 | X153: 5132.2 | Z153: HWA MT | AA153: 3.26 | AB153: 4998.13
R154: HWA DEEP D24 | S154: 0.462 | T154: 5334.56 | V154: FOGARTY PC | W154: 1.249 | X154: 5132.2 | Z154: HWPL1&3MTD24 | AA154: 8.493 | AB154: 4998.13
R155: HWA DEEP PC | S155: 0.197 | T155: 5334.56 | V155: HWA DEEP D24 | W155: 0.344 | X155: 5132.2 | Z155: HWPL1&3MTPC | AA155: 6.123 | AB155: 4998.13
R156: HWA MT | S156: 2.909 | T156: 5334.56 | V156: HWA DEEP PC | W156: 0.133 | X156: 5132.2 | Z156: HWPLT1&3 D24 | AA156: 87.575 | AB156: 4998.13
R157: HWADEEPMTD24 | S157: 16.945 | T157: 5334.56 | V157: HWA MT | W157: 3.266 | X157: 5132.2 | Z157: HWPLT1&3 PC | AA157: 14.04 | AB157: 4998.13
R158: HWPL1&3MTD24 | S158: 7.469 | T158: 5334.56 | V158: HWADEEPMTD24 | W158: 16.376 | X158: 5132.2 | Z158: HWPLT2 D24 | AA158: 7.369 | AB158: 4998.13
R159: HWPL1&3MTPC | S159: 4.412 | T159: 5334.56 | V159: HWPL1&3MTD24 | W159: 8.774 | X159: 5132.2 | Z159: HWPLT2 PC | AA159: 0.988 | AB159: 4998.13
R160: HWPLT1&3 D24 | S160: 77.469 | T160: 5334.56 | V160: HWPL1&3MTPC | W160: 8.21 | X160: 5132.2 | Z160: HWPLT2MT D24 | AA160: 3.197 | AB160: 4998.13
R161: HWPLT1&3 PC | S161: 56.234 | T161: 5334.56 | V161: HWPLT1&3 D24 | W161: 88.022 | X161: 5132.2 | Z161: ISLAND D24 | AA161: 46.34 | AB161: 4998.13
R162: HWPLT2 D24 | S162: 8.167 | T162: 5334.56 | V162: HWPLT1&3 PC | W162: 25.878 | X162: 5132.2 | Z162: ISLAND PC | AA162: 0.607 | AB162: 4998.13
R163: HWPLT2 PC | S163: 0.617 | T163: 5334.56 | V163: HWPLT2 D24 | W163: 8.321 | X163: 5132.2 | Z163: JNSNRDG D24 | AA163: 2.897 | AB163: 4998.13
R164: HWPLT2MT D24 | S164: 3.029 | T164: 5334.56 | V164: HWPLT2 PC | W164: 1.079 | X164: 5132.2 | Z164: JNSNRDG PC | AA164: 2.556 | AB164: 4998.13
R165: ISLAND D24 | S165: 48.96 | T165: 5334.56 | V165: HWPLT2MT D24 | W165: 3.294 | X165: 5132.2 | Z165: JRDG WFS D24 | AA165: 3.786 | AB165: 4998.13
R166: ISLAND PC | S166: 0.579 | T166: 5334.56 | V166: ISLAND D24 | W166: 46.465 | X166: 5132.2 | Z166: KNY FLD D24 | AA166: 8.441 | AB166: 4998.13
R167: JNSNRDG D24 | S167: 5.517 | T167: 5334.56 | V167: ISLAND PC | W167: 0.56 | X167: 5132.2 | Z167: KNY FLD D8 | AA167: 15.391 | AB167: 4998.13
R168: JNSNRDG PC | S168: 4.041 | T168: 5334.56 | V168: JNSNRDG D24 | W168: 3.347 | X168: 5132.2 | Z168: KNY FLD PC | AA168: 1.852 | AB168: 4998.13
R169: JRDG WFS D24 | S169: 6.959 | T169: 5334.56 | V169: JNSNRDG PC | W169: 2.982 | X169: 5132.2 | Z169: MESA D24 | AA169: 723.381 | AB169: 4998.13
R170: KNY FLD D24 | S170: 9.682 | T170: 5334.56 | V170: JRDG WFS D24 | W170: 4.424 | X170: 5132.2 | Z170: MESA D8 | AA170: 415.627 | AB170: 4998.13
R171: KNY FLD PC | S171: 4.355 | T171: 5334.56 | V171: KNY FLD D24 | W171: 7.419 | X171: 5132.2 | Z171: MOSU MT | AA171: 0.51 | AB171: 4998.13
R172: MESA D24 | S172: 706.507 | T172: 5334.56 | V172: KNY FLD PC | W172: 0.087 | X172: 5132.2 | Z172: MOSUMT D24 | AA172: 1.119 | AB172: 4998.13
R173: MESA D8 | S173: =442.108 -> 442.108 | T173: 5334.56 | V173: MESA D24 | W173: 736.877 | X173: 5132.2 | Z173: MOSUMT PC | AA173: 9.271 | AB173: 4998.13
R174: MOSU MT | S174: 0.015 | T174: 5334.56 | V174: MESA D8 | W174: 436.103 | X174: 5132.2 | Z174: PDW MT | AA174: 198.192 | AB174: 4998.13
R175: MOSUMT D24 | S175: 0.683 | T175: 5334.56 | V175: MOSU MT | W175: 0.362 | X175: 5132.2 | Z175: PDW1A1B D21 | AA175: 0.63 | AB175: 4998.13
R176: MOSUMT PC | S176: 7.428 | T176: 5334.56 | V176: MOSUMT D24 | W176: 1.149 | X176: 5132.2 | Z176: PDW1A1B D24 | AA176: 0.199 | AB176: 4998.13
R177: PDW MT | S177: 187.392 | T177: 5334.56 | V177: MOSUMT PC | W177: 9.699 | X177: 5132.2 | Z177: PDW1AB MT PC | AA177: 5.346 | AB177: 4998.13
R178: PDW1A1B D21 | S178: 0.437 | T178: 5334.56 | V178: PDW MT | W178: 202.647 | X178: 5132.2 | Z178: PDW1A1B PC | AA178: 1.188 | AB178: 4998.13
R179: PDW1A1B D24 | S179: 0.185 | T179: 5334.56 | V179: PDW1A1B D21 | W179: 0.886 | X179: 5132.2 | Z179: PDWCUT PC | AA179: 1.294 | AB179: 4998.13
R180: PDW1AB MT PC | S180: 4.781 | T180: 5334.56 | V180: PDW1A1B D24 | W180: 0.267 | X180: 5132.2 | Z180: PDWMT D24 | AA180: 18.399 | AB180: 4998.13
R181: PDW1A1B PC | S181: 0.962 | T181: 5334.56 | V181: PDW1AB MT PC | W181: 5.571 | X181: 5132.2 | Z181: PDWPLT2 D24 | AA181: 4.914 | AB181: 4998.13
R182: PDWCUT D24 | S182: 0.799 | T182: 5334.56 | V182: PDW1A1B PC | W182: 0.964 | X182: 5132.2 | Z182: PDWPLT2 PC | AA182: 0.001 | AB182: 4998.13
R183: PDWCUT PC | S183: 0.602 | T183: 5334.56 | V183: PDWCUT D24 | W183: 1.122 | X183: 5132.2 | Z183: PDWPLT3 PC | AA183: 6.209 | AB183: 4998.13
R184: PDWMT D24 | S184: 22.042 | T184: 5334.56 | V184: PDWCUT PC | W184: 1.034 | X184: 5132.2 | Z184: TRAIL 2D8 | AA184: 18.334 | AB184: 4998.13
R185: PDWPLT2 D24 | S185: 4.2 | T185: 5334.56 | V185: PDWMT D24 | W185: 19.511 | X185: 5132.2 | Z185: TRAIL 2E | AA185: 330.971 | AB185: 4998.13
R186: PDWPLT2 PC | S186: 6.387 | T186: 5334.56 | V186: PDWPLT2 D24 | W186: 5.157 | X186: 5132.2 | Z186: TRAIL 2E MT | AA186: 51.258 | AB186: 4998.13
R187: PDWPLT3 PC | S187: 5.312 | T187: 5334.56 | V187: PDWPLT2 PC | W187: 5.339 | X187: 5132.2 | Z187: TRAIL D24 | AA187: 299.98 | AB187: 4998.13
R188: SGRLF D24 | S188: 1.115 | T188: 5334.56 | V188: PDWPLT3 PC | W188: 6.686 | X188: 5132.2 | Z188: TRAIL D8 | AA188: 52.912 | AB188: 4998.13
R189: SGRLF PC | S189: 41.143 | T189: 5334.56 | V189: SGRLF D24 | W189: 1.351 | X189: 5132.2 | Z189: TRAIL PC | AA189: 1.237 | AB189: 4998.13
R190: SGRLFMT D24 | S190: 21.869 | T190: 5334.56 | V190: SGRLF PC | W190: 41.033 | X190: 5132.2 | Z190: TRAILMT D24 | AA190: 51.99 | AB190: 4998.13
R191: TRAIL 2D8 | S191: 65.23 | T191: 5334.56 | V191: SGRLFMT D24 | W191: 16.974 | X191: 5132.2 | Z191: WHISKEY MT | AA191: 34.848 | AB191: 4998.13
R192: TRAIL 2E | S192: 433.419 | T192: 5334.56 | V192: TRAIL 2D8 | W192: 18.459 | X192: 5132.2 | Z192: WHISKEYC 2E | AA192: 97.158 | AB192: 4998.13
R193: TRAIL 2E MT | S193: 50.777 | T193: 5334.56 | V193: TRAIL 2E | W193: 326.705 | X193: 5132.2 | Z193: WHLA D24 | AA193: 41.535 | AB193: 4998.13
R194: TRAIL D24 | S194: 403.745 | T194: 5334.56 | V194: TRAIL 2E MT | W194: 50.702 | X194: 5132.2 | Z194: WHLA PC | AA194: 3.694 | AB194: 4998.13
R195: TRAIL D8 | S195: 105.489 | T195: 5334.56 | V195: TRAIL D24 | W195: 295.407 | X195: 5132.2 | Z195: WWILSON D24 | AA195: 3.493 | AB195: 4998.13
R196: TRAIL PC | S196: 1.317 | T196: 5334.56 | V196: TRAIL D8 | W196: 52.922 | X196: 5132.2 | Z196: WWILSON PC | AA196: 12.108 | AB196: 4998.13
R197: TRAILMT D24 | S197: 51.382 | T197: 5334.56 | V197: TRAIL PC | W197: 1.388 | X197: 5132.2 | Z197: z20 MESA D8 | AA197: 235.046 | AB197: 4998.13
R198: WHISKEY MT | S198: 31.854 | T198: 5334.56 | V198: TRAILMT D24 | W198: 51.208 | X198: 5132.2
R199: WHISKEYC 2E | S199: 99.989 | T199: 5334.56 | V199: WHISKEY MT | W199: 31.377 | X199: 5132.2
R200: WHLA D24 | S200: 40.487 | T200: 5334.56 | V200: WHISKEYC 2E | W200: 99.754 | X200: 5132.2
... 6 more rows

Sheet Normal Purchase % (hidden)
B3: 2 | C3: 3 | D3: 4 | E3: 5 | F3: 6 | G3: 7 | H3: 8 | I3: 9
A4: Month | B4: Actual Purchase Mdth | C4: Normal Purchase Mdth | D4: Actual Company Mdth | E4: Normal Company Mdths | F4: Actual Purchase as Percent of Total | G4: Normal Purchase as Percent of Total | H4: Actual Cost-of-Service as Percent of Total | I4: Normal Cost-of-Service as Percent of Total | K4: Check Should = 100% | L4: Check Should = 100%
A5: ='Ex 1 HDD'!A8 -> 2020-06-01 | B5: ='Ex 4 Purchase Gas'!B8 -> 390 | C5: ='Ex 4 Purchase Gas'!C8 -> 0 | D5: ='Ex 7 Co. Owned Gas'!B8 -> 5334.561 | E5: ='Ex 7 Co. Owned Gas'!C8 -> 5278.6 | F5: =IFERROR(B5/(B5+D5),0) -> 0.06812749484 | G5: =C5/(C5+E5) -> 0 | H5: =IFERROR(D5/(D5+B5),0) -> 0.9318725052 | I5: =E5/(E5+C5) -> 1 | K5: =F5+H5 -> 1 | L5: =G5+I5 -> 1
A6: ='Ex 1 HDD'!A9 -> 2020-07-01 | B6: ='Ex 4 Purchase Gas'!B9 -> 55 | C6: ='Ex 4 Purchase Gas'!C9 -> 0 | D6: ='Ex 7 Co. Owned Gas'!B9 -> 5132.206 | E6: ='Ex 7 Co. Owned Gas'!C9 -> 5360.98 | F6: =IFERROR(B6/(B6+D6),0) -> 0.01060301056 | G6: 0 | H6: =IFERROR(D6/(D6+B6),0) -> 0.9893969894 | I6: 1 | K6: 1 | L6: 1
A7: ='Ex 1 HDD'!A10 -> 2020-08-01 | B7: ='Ex 4 Purchase Gas'!B10 -> 0 | C7: ='Ex 4 Purchase Gas'!C10 -> 0 | D7: ='Ex 7 Co. Owned Gas'!B10 -> 4998.134 | E7: ='Ex 7 Co. Owned Gas'!C10 -> 5274.711 | F7: 0 | G7: 0 | H7: 1 | I7: 1 | K7: 1 | L7: 1
A8: ='Ex 1 HDD'!A11 -> 2020-09-01 | B8: ='Ex 4 Purchase Gas'!B11 -> 0 | C8: ='Ex 4 Purchase Gas'!C11 -> 1934.3 | D8: ='Ex 7 Co. Owned Gas'!B11 -> 0 | E8: ='Ex 7 Co. Owned Gas'!C11 -> 5026.519 | F8: 0 | G8: 0.2778839674 | H8: 0 | I8: 0.7221160326 | K8: 0 | L8: 1
A9: ='Ex 1 HDD'!A12 -> 2020-10-01 | B9: ='Ex 4 Purchase Gas'!B12 -> 0 | C9: ='Ex 4 Purchase Gas'!C12 -> 2467.2 | D9: ='Ex 7 Co. Owned Gas'!B12 -> 0 | E9: ='Ex 7 Co. Owned Gas'!C12 -> 5716.15 | F9: 0 | G9: 0.301490221 | H9: 0 | I9: 0.698509779 | K9: 0 | L9: 1
A10: ='Ex 1 HDD'!A13 -> 2020-11-01 | B10: ='Ex 4 Purchase Gas'!B13 -> 0 | C10: ='Ex 4 Purchase Gas'!C13 -> 7175.5 | D10: ='Ex 7 Co. Owned Gas'!B13 -> 0 | E10: ='Ex 7 Co. Owned Gas'!C13 -> 5401.851 | F10: 0 | G10: 0.5705096407 | H10: 0 | I10: 0.4294903593 | K10: =F10+H10 -> 0 | L10: 1
A11: ='Ex 1 HDD'!A14 -> 2020-12-01 | B11: ='Ex 4 Purchase Gas'!B14 -> 0 | C11: ='Ex 4 Purchase Gas'!C14 -> 13238.1 | D11: ='Ex 7 Co. Owned Gas'!B14 -> 0 | E11: ='Ex 7 Co. Owned Gas'!C14 -> 5627.61 | F11: 0 | G11: 0.7017016587 | H11: 0 | I11: 0.2982983413 | K11: 0 | L11: 1
A12: ='Ex 1 HDD'!A15 -> 2021-01-01 | B12: ='Ex 4 Purchase Gas'!B15 -> 0 | C12: ='Ex 4 Purchase Gas'!C15 -> 11026 | D12: ='Ex 7 Co. Owned Gas'!B15 -> 0 | E12: ='Ex 7 Co. Owned Gas'!C15 -> 5517.327 | F12: 0 | G12: 0.6664922963 | H12: 0 | I12: 0.3335077037 | K12: 0 | L12: 1
A13: ='Ex 1 HDD'!A16 -> 2021-02-01 | B13: ='Ex 4 Purchase Gas'!B16 -> 0 | C13: ='Ex 4 Purchase Gas'!C16 -> 8816 | D13: ='Ex 7 Co. Owned Gas'!B16 -> 0 | E13: ='Ex 7 Co. Owned Gas'!C16 -> 4727.225 | F13: 0 | G13: 0.6509527827 | H13: 0 | I13: 0.3490472173 | K13: 0 | L13: 1
A14: ='Ex 1 HDD'!A17 -> 2021-03-01 | B14: ='Ex 4 Purchase Gas'!B17 -> 0 | C14: ='Ex 4 Purchase Gas'!C17 -> 3402.447 | D14: ='Ex 7 Co. Owned Gas'!B17 -> 0 | E14: ='Ex 7 Co. Owned Gas'!C17 -> 5328.404 | F14: 0 | G14: 0.3897039361 | H14: 0 | I14: 0.6102960639 | K14: 0 | L14: 1
A15: ='Ex 1 HDD'!A18 -> 2021-04-01 | B15: ='Ex 4 Purchase Gas'!B18 -> 0 | C15: ='Ex 4 Purchase Gas'!C18 -> 2103.9 | D15: ='Ex 7 Co. Owned Gas'!B18 -> 0 | E15: ='Ex 7 Co. Owned Gas'!C18 -> 5075.944 | F15: 0 | G15: 0.2930286508 | H15: 0 | I15: 0.7069713492 | K15: 0 | L15: 1
A16: ='Ex 1 HDD'!A19 -> 2021-05-01 | B16: ='Ex 4 Purchase Gas'!B19 -> 0 | C16: ='Ex 4 Purchase Gas'!C19 -> 390.151 | D16: ='Ex 7 Co. Owned Gas'!B19 -> 0 | E16: ='Ex 7 Co. Owned Gas'!C19 -> 5167.9 | F16: 0 | G16: 0.07019564952 | H16: 0 | I16: 0.9298043505 | K16: 0 | L16: 1
A18: Q1 | B18: =SUM(B5:B7) -> 445 | C18: =SUM(C5:C7) -> 0 | D18: =SUM(D5:D7) -> 15464.901 | E18: =SUM(E5:E7) -> 15914.291 | F18: =IFERROR(B18/(B18+D18),0) -> 0.02797000434 | G18: =C18/(C18+E18) -> 0 | H18: =IFERROR(D18/(D18+B18),0) -> 0.9720299957 | I18: =E18/(E18+C18) -> 1 | K18: =F18+H18 -> 1 | L18: 1
A19: Q2 | B19: =SUM(B8:B10) -> 0 | C19: =SUM(C8:C10) -> 11577 | D19: =SUM(D8:D10) -> 0 | E19: =SUM(E8:E10) -> 16144.52 | F19: =IFERROR(B19/(B19+D19),0) -> 0 | G19: =C19/(C19+E19) -> 0.417617793 | H19: =IFERROR(D19/(D19+B19),0) -> 0 | I19: =E19/(E19+C19) -> 0.582382207 | K19: 0 | L19: 1
A20: Q3 | B20: =SUM(B11:B13) -> 0 | C20: =SUM(C11:C13) -> 33080.1 | D20: =SUM(D11:D13) -> 0 | E20: =SUM(E11:E13) -> 15872.162 | F20: 0 | G20: 0.6757624397 | H20: 0 | I20: 0.3242375603 | K20: 0 | L20: 1
A21: Q4 | B21: =SUM(B14:B16) -> 0 | C21: =SUM(C14:C16) -> 5896.498 | D21: =SUM(D14:D16) -> 0 | E21: =SUM(E14:E16) -> 15572.248 | F21: 0 | G21: 0.2746549798 | H21: 0 | I21: =E21/(E21+C21) -> 0.7253450202 | K21: =F21+H21 -> 0 | L21: =G21+I21 -> 1
B22: IRP | C22: Actual | D22: IRP | E22: Actual | F22: 0 | G22: Actual | H22: 0 | I22: Actual
F24: =F4 -> Actual Purchase as Percent of Total | G24: =G4 -> Normal Purchase as Percent of Total | H24: =H4 -> Actual Cost-of-Service as Percent of Total | I24: =I4 -> Normal Cost-of-Service as Percent of Total
E25: =A5 -> 2020-06-01 | F25: =VLOOKUP($E25,$A$5:$I$16,F$3,FALSE) -> 0.06812749484 | G25: =VLOOKUP($E25,$A$5:$I$16,G$3,FALSE) -> 0 | H25: 0.9318725052 | I25: 1 | K25: =F25+H25 -> 1 | L25: 1
E26: =A6 -> 2020-07-01 | F26: =VLOOKUP($E26,$A$5:$I$16,F$3,FALSE) -> 0.01060301056 | G26: 0 | H26: 0.9893969894 | I26: 1 | K26: 1 | L26: 1
E27: =A7 -> 2020-08-01 | F27: =VLOOKUP($E27,$A$5:$I$16,F$3,FALSE) -> 0 | G27: 0 | H27: 1 | I27: 1 | K27: 1 | L27: 1
E29: =A18 -> Q1 | F29: =VLOOKUP($E29,$A$18:$I$21,F$3,FALSE) -> 0.02797000434 | G29: =VLOOKUP($E29,$A$18:$I$21,G$3,FALSE) -> 0 | H29: 0.9720299957 | I29: 1 | K29: =F29+H29 -> 1 | L29: 1
E30: =A19 -> Q2 | F30: =VLOOKUP($E30,$A$18:$I$21,F$3,FALSE) -> 0 | G30: 0.417617793 | H30: 0 | I30: 0.582382207 | K30: 0 | L30: 1
E31: =A20 -> Q3 | F31: =VLOOKUP($E31,$A$18:$I$21,F$3,FALSE) -> 0 | G31: 0.6757624397 | H31: 0 | I31: 0.3242375603 | K31: 0 | L31: 1
E32: Q4 | F32: =VLOOKUP($E32,$A$18:$I$21,F$3,FALSE) -> 0 | G32: 0.2746549798 | H32: 0 | I32: 0.7253450202 | K32: 0 | L32: 1 | N32: =F32-G32 -> -0.2746549798 | O32: =I32-H32 -> 0.7253450202
F34: =AVERAGE((F25:F27)) -> 0.0262435018 | G34: =AVERAGE((G25:G27)) -> 0 | H34: =AVERAGE((H25:H27)) -> 0.9737564982 | I34: =AVERAGE((I25:I27)) -> 1

Sheet IRP Pruch Cover Sheet (hidden)
C1: 2 | D1: 3 | E1: 4 | F1: 5
C2: ='Normal Purchase %'!F24 -> Actual Purchase as Percent of Total | D2: ='Normal Purchase %'!G24 -> Normal Purchase as Percent of Total | E2: ='Normal Purchase %'!H24 -> Actual Cost-of-Service as Percent of Total | F2: ='Normal Purchase %'!I24 -> Normal Cost-of-Service as Percent of Total
B4: ='Normal Purchase %'!E25 -> 2020-06-01 | C4: =VLOOKUP($B4,'Normal Purchase %'!$E$25:$I$27,'IRP Pruch Cover Sheet'!C$1,FALSE) -> 0.06812749484 | D4: =VLOOKUP($B4,'Normal Purchase %'!$E$25:$I$27,'IRP Pruch Cover Sheet'!D$1,FALSE) -> 0 | E4: =VLOOKUP($B4,'Normal Purchase %'!$E$25:$I$27,'IRP Pruch Cover Sheet'!E$1,FALSE) -> 0.9318725052 | F4: =VLOOKUP($B4,'Normal Purchase %'!$E$25:$I$27,'IRP Pruch Cover Sheet'!F$1,FALSE) -> 1
B5: ='Normal Purchase %'!E26 -> 2020-07-01 | C5: =VLOOKUP($B5,'Normal Purchase %'!$E$25:$I$27,'IRP Pruch Cover Sheet'!C$1,FALSE) -> 0.01060301056 | D5: =VLOOKUP($B5,'Normal Purchase %'!$E$25:$I$27,'IRP Pruch Cover Sheet'!D$1,FALSE) -> 0 | E5: =VLOOKUP($B5,'Normal Purchase %'!$E$25:$I$27,'IRP Pruch Cover Sheet'!E$1,FALSE) -> 0.9893969894 | F5: =VLOOKUP($B5,'Normal Purchase %'!$E$25:$I$27,'IRP Pruch Cover Sheet'!F$1,FALSE) -> 1
B6: ='Normal Purchase %'!E27 -> 2020-08-01 | C6: =VLOOKUP($B6,'Normal Purchase %'!$E$25:$I$27,'IRP Pruch Cover Sheet'!C$1,FALSE) -> 0 | D6: =VLOOKUP($B6,'Normal Purchase %'!$E$25:$I$27,'IRP Pruch Cover Sheet'!D$1,FALSE) -> 0 | E6: =VLOOKUP($B6,'Normal Purchase %'!$E$25:$I$27,'IRP Pruch Cover Sheet'!E$1,FALSE) -> 1 | F6: =VLOOKUP($B6,'Normal Purchase %'!$E$25:$I$27,'IRP Pruch Cover Sheet'!F$1,FALSE) -> 1
B8: ='Normal Purchase %'!E29 -> Q1 | C8: =VLOOKUP($B$8,'Normal Purchase %'!$E$29:$I$32,'IRP Pruch Cover Sheet'!C$1,FALSE) -> 0.02797000434 | D8: =VLOOKUP($B$8,'Normal Purchase %'!$E$29:$I$32,'IRP Pruch Cover Sheet'!D$1,FALSE) -> 0 | E8: =VLOOKUP($B$8,'Normal Purchase %'!$E$29:$I$32,'IRP Pruch Cover Sheet'!E$1,FALSE) -> 0.9720299957 | F8: =VLOOKUP($B$8,'Normal Purchase %'!$E$29:$I$32,'IRP Pruch Cover Sheet'!F$1,FALSE) -> 1
D15: =C8-D8 -> 0.02797000434 | E15: =F8-E8 -> 0.02797000434

Sheet Shut-In (hidden)
B4: June | C4: July | D4: August | E4: Total Dth for Quarter | H4: December | I4: January | J4: February | K4: Total Dth for Quarter
A5: Estimated Shut-in (dth/day) | B5: ='Company Nom Groups'!B128 -> 6153.600609 | C5: ='Company Nom Groups'!C128 -> 6108.602189 | D5: ='Company Nom Groups'!D128 -> 6064.299568 | E5: =SUM(B5:D5) -> 18326.50237 | G5: Estimated Shut-in (dth/day) | H5: =H41/30 -> 0 | I5: =I41/30 -> 0 | J5: 0 | K5: =K41 -> 0
A6: Actual Shut-in (dth/day) | B6: 0 | C6: 2323 | D6: 5437 | E6: =D6+C6 -> 7760 | G6: Acutal Shut-in (dth/day) | H6: =H75/30 -> 0 | I6: =I75/31 -> 0 | J6: 0 | K6: =K75 -> 0
A10: 1 | B10: 59 | C10: =C5 -> 6108.602189 | D10: 0 | G10: =A10 -> 1
A11: 2 | B11: 59 | C11: 780 | D11: 0 | G11: =A11 -> 2
A12: 3 | B12: 59 | C12: 780 | D12: 0 | G12: 3
A13: 4 | B13: 59 | C13: 780 | D13: 0 | G13: 4
A14: 5 | B14: 59 | C14: 780 | D14: 0 | G14: 5
A15: 6 | B15: 59 | C15: 780 | D15: 0 | G15: 6
A16: 7 | B16: 59 | C16: =C11 -> 780 | D16: 0 | G16: 7
A17: 8 | B17: 59 | C17: 780 | D17: 0 | G17: 8
A18: 9 | B18: 59 | C18: 780 | D18: 0 | G18: 9
A19: 10 | B19: 59 | C19: =C14 -> 780 | D19: 0 | G19: 10
A20: 11 | B20: 59 | C20: 780 | D20: 0 | G20: 11
A21: 12 | B21: 59 | C21: 780 | D21: 0 | G21: 12
A22: 13 | B22: 59 | C22: =C17 -> 780 | D22: 0 | G22: 13
A23: 14 | B23: 59 | C23: 780 | D23: 0 | G23: 14
A24: 15 | B24: 59 | C24: 780 | D24: 0 | G24: 15
A25: 16 | B25: 59 | C25: =C20 -> 780 | D25: 0 | G25: 16
A26: 17 | B26: 59 | C26: 780 | D26: 0 | G26: 17
A27: 18 | B27: 59 | C27: 780 | D27: 0 | G27: 18
A28: 19 | B28: 59 | C28: =C23 -> 780 | D28: 0 | G28: 19
A29: 20 | B29: 59 | C29: 780 | D29: 0 | G29: 20
A30: 21 | B30: 59 | C30: 780 | D30: 0 | G30: 21
A31: 22 | B31: 59 | C31: =C26 -> 780 | D31: 0 | G31: 22
A32: 23 | B32: 59 | C32: 780 | D32: 0 | G32: 23
A33: 24 | B33: 59 | C33: 780 | D33: 0 | G33: 24
A34: 25 | B34: 59 | C34: =C29 -> 780 | D34: 0 | G34: 25
A35: 26 | B35: 59 | C35: 780 | D35: 0 | G35: 26
A36: 27 | B36: 59 | C36: 780 | D36: 0 | G36: 27
A37: 28 | B37: 59 | C37: =C32 -> 780 | D37: 0 | G37: 28
A38: 29 | B38: 59 | C38: 780 | D38: 0 | G38: 29
A39: 30 | B39: 59 | C39: 780 | D39: 0 | G39: 30
A40: 31 | B40: 0 | C40: =C35 -> 780 | D40: 0 | G40: 31
B41: =SUM(B10:B40) -> 1770 | C41: =SUM(C10:C40) -> 29508.60219 | D41: =SUM(D10:D40) -> 0 | E41: =SUM(B41:D41) -> 31278.60219 | H41: 0 | I41: 0 | J41: 0 | K41: =SUM(H41:J41) -> 0
A44: 1 | B44: 0 | C44: 0 | D44: 0 | G44: 1 | H44: 0 | I44: 0 | J44: 0
A45: 2 | B45: 0 | C45: 0 | D45: 0 | G45: 2 | H45: 0 | I45: 0 | J45: 0
A46: 3 | B46: 0 | C46: 0 | D46: 0 | G46: 3 | H46: 0 | I46: 0 | J46: 0
A47: 4 | B47: 0 | C47: 0 | D47: 5724 | G47: 4 | H47: 0 | I47: 0 | J47: 0
A48: 5 | B48: 0 | C48: 0 | D48: 5724 | G48: 5 | H48: 0 | I48: 0 | J48: 0
A49: 6 | B49: 0 | C49: 0 | D49: 5724 | G49: 6 | H49: 0 | I49: 0 | J49: 0
A50: 7 | B50: 0 | C50: 0 | D50: 5724 | G50: 7 | H50: 0 | I50: 0 | J50: 0
A51: 8 | B51: 0 | C51: 0 | D51: 5724 | G51: 8 | H51: 0 | I51: 0 | J51: 0
A52: 9 | B52: 0 | C52: 0 | D52: 5724 | G52: 9 | H52: 0 | I52: 0 | J52: 0
A53: 10 | B53: 0 | C53: 0 | D53: 5724 | G53: 10 | H53: 0 | I53: 0 | J53: 0
A54: 11 | B54: 0 | C54: 0 | D54: 5724 | G54: 11 | H54: 0 | I54: 0 | J54: 0
A55: 12 | B55: 0 | C55: 0 | D55: 5724 | G55: 12 | H55: 0 | I55: 0 | J55: 0
A56: 13 | B56: 0 | C56: 0 | D56: 5724 | G56: 13 | H56: 0 | I56: 0 | J56: 0
A57: 14 | B57: 0 | C57: 0 | D57: 5724 | G57: 14 | H57: 0 | I57: 0 | J57: 0
A58: 15 | B58: 0 | C58: 0 | D58: 5724 | G58: 15 | H58: 0 | I58: 0 | J58: 0
A59: 16 | B59: 0 | C59: 0 | D59: 5724 | G59: 16 | H59: 0 | I59: 0 | J59: 0
A60: 17 | B60: 0 | C60: 0 | D60: 5724 | G60: 17 | H60: 0 | I60: 0 | J60: 0
A61: 18 | B61: 0 | C61: 0 | D61: 5724 | G61: 18 | H61: 0 | I61: 0 | J61: 0
A62: 19 | B62: 0 | C62: 0 | D62: 5724 | G62: 19 | H62: 0 | I62: 0 | J62: 0
A63: 20 | B63: 0 | C63: 0 | D63: 5724 | G63: 20 | H63: 0 | I63: 0 | J63: 0
A64: 21 | B64: 0 | C64: 0 | D64: 5724 | G64: 21 | H64: 0 | I64: 0 | J64: 0
A65: 22 | B65: 0 | C65: 0 | D65: 5724 | G65: 22 | H65: 0 | I65: 0 | J65: 0
A66: 23 | B66: 0 | C66: 0 | D66: 5724 | G66: 23 | H66: 0 | I66: 0 | J66: 0
A67: 24 | B67: 0 | C67: 0 | D67: 5724 | G67: 24 | H67: 0 | I67: 0 | J67: 0
A68: 25 | B68: 0 | C68: 0 | D68: 5724 | G68: 25 | H68: 0 | I68: 0 | J68: 0
A69: 26 | B69: 0 | C69: 0 | D69: 5724 | G69: 26 | H69: 0 | I69: 0 | J69: 0
A70: 27 | B70: 0 | C70: 0 | D70: 5724 | G70: 27 | H70: 0 | I70: 0 | J70: 0
A71: 28 | B71: 0 | C71: 0 | D71: 5724 | G71: 28 | H71: 0 | I71: 0 | J71: 0
A72: 29 | B72: 0 | C72: 0 | D72: 5724 | G72: 29 | H72: 0 | I72: 0 | J72: 0
A73: 30 | B73: 0 | C73: 0 | D73: 5724 | G73: 30 | H73: 0 | I73: 0 | J73: 0
A74: 31 | B74: 0 | C74: 0 | D74: 5724 | G74: 31 | I74: 0
B75: =SUM(B44:B74) -> 0 | C75: =SUM(C44:C74) -> 0 | D75: =SUM(D44:D74) -> 160272 | E75: =SUM(B75:D75) -> 160272 | H75: =SUM(H44:H74) -> 0 | I75: =SUM(I44:I74) -> 0 | J75: =SUM(J44:J74) -> 0 | K75: =SUM(H75:J75) -> 0
